{"text_format":"1","workbook":"xlsx","n_sheets":5,"sheets":["FiscalYear Est Tons","APConly","SearchResults","Output","MasterFacilityData"],"not_rendered":{"charts":0,"images":2,"macros":1,"external_links":0,"defined_names":1,"comments":2,"pivot_tables":0},"unopened":[],"bounds":{"document_bytes":16777216,"sheet_cells":100000,"rows_first":2000,"rows_last":500,"rows_between":2000,"halvings":0,"cell_chars":16384,"cell_head_chars":4096},"cells_cut":0,"cells_raw":0,"read":"whole","date_system":"1900"}

{"sheet":"FiscalYear Est Tons","index":0,"n_rows":208,"n_cols":105,"rows_kept":208,"cut":false,"hidden":false,"merged":[]}
["Facility ID","Primary Name","Non-EGU or EGU?","PM ALW","PM ACT","SO2 ALW","SO2 ACT","VOC ALW","VOC ACT","NOX ALW","NOX ACT","HAP NOstd ALW","HAP NOstd ACT","HAP std ALW","HAP std ACT","NSPS ALW","NSPS ACT","TOTAL ALW","TOTAL ACT","ALW $/ton","ACT $/ton","$/ton fee","$/ton fee + base fee","total fee",null,null,null,null,null,null,null,null,null,null,null,null,null,null,null,null,null,null,null,null,null,null,null,null,null,null,null,null,null,null,null,null,null,null,null,null,null,null,null,null,null,null,null,null,null,null,null,null,null,null,null,null,null,null,null,null,null,null,null,null,null,null,null,null,null,null,null,null,null,null,null,null,null,null,"Count","Order","Facility ID","total fee"]
["01-0009","Tennessee Valley Authority - Bull Run Fossil Plant","EGU",null,116,null,199,null,20.2,null,794,null,6.8,null,null,null,null,0,1136,46.900001525878906,75.040000915527344,85245.441040039063,91245.441040039063,91245.441040039063,null,null,null,null,null,null,null,null,null,null,null,null,null,null,null,null,null,null,null,null,null,null,null,null,null,null,null,null,null,null,null,null,null,null,null,null,null,null,null,null,null,null,null,null,null,null,null,null,null,null,null,null,null,null,null,null,null,null,null,null,null,null,null,null,null,null,null,null,null,null,null,null,null,null,1,1,"81-0011",834265.87211608887,"Mean",{"$f":"AVERAGE(CX2:CX207)","v":40576.876516719545},{"$f":"AVERAGE(CX2:CX207)","v":40576.876516719545}]
["01-0020","US Department of Energy - Oak Ridge Y-12 National Security Complex","Non-EGU",168.57,3.4,0,0.32,59.23,3.07,165.48,15.41,48,14.43,2,2.65E-3,0,0,443.28,36.632649999999998,33.5,53.599998474121094,16813.389984103011,22813.389984103011,22813.389984103011,null,null,null,null,null,null,null,null,null,null,null,null,null,null,null,null,null,null,null,null,null,null,null,null,null,null,null,null,null,null,null,null,null,null,null,null,null,null,null,null,null,null,null,null,null,null,null,null,null,null,null,null,null,null,null,null,null,null,null,null,null,null,null,null,null,null,null,null,null,null,null,null,null,null,2,2,"82-0003",710251.90617752075,"Median",{"$f":"MEDIAN(CX2:CX207)","v":17530.805312995908},{"$f":"MEDIAN(CX2:CX207)","v":17530.805312995908}]
["01-0114","The Carlstar Group LLC","Non-EGU",61.42,null,null,7.4999999999999997E-2,null,70.12,null,14.48,null,null,null,null,null,null,61.42,84.675000000000011,33.5,53.599998474121094,6596.1498707962037,12596.149870796204,12596.149870796204,null,null,null,null,null,null,null,null,null,null,null,null,null,null,null,null,null,null,null,null,null,null,null,null,null,null,null,null,null,null,null,null,null,null,null,null,null,null,null,null,null,null,null,null,null,null,null,null,null,null,null,null,null,null,null,null,null,null,null,null,null,null,null,null,null,null,null,null,null,null,null,null,null,null,3,3,"83-0025",390714.4375350952,"Mode",{"$f":"MODE(CX2:CX207)","v":9000},{"$f":"MODE(CX2:CX207)","v":9000}]
["01-0170","Chestnut Ridge Landfill and Recycling Center","Non-EGU",null,7.47,null,13.13,null,20.96,null,69.09,null,null,null,null,null,null,0,110.65,33.5,53.599998474121094,5930.8398311614992,11930.839831161498,11930.839831161498,null,null,null,null,null,null,null,null,null,null,null,null,null,null,null,null,null,null,null,null,null,null,null,null,null,null,null,null,null,null,null,null,null,null,null,null,null,null,null,null,null,null,null,null,null,null,null,null,null,null,null,null,null,null,null,null,null,null,null,null,null,null,null,null,null,null,null,null,null,null,null,null,null,null,4,4,"73-0013",313192.43679428101,"StdDev",{"$f":"STDEV(CX2:CX207)","v":89013.468587475334},{"$f":"STDEV(CX2:CX207)","v":89013.468587475334}]
["03-0045","West Camden Sanitary Landfill","Non-EGU",null,8.5,null,29.87,null,19.940000000000001,null,48.18,null,null,null,null,null,null,0,106.49000000000001,33.5,53.599998474121094,5707.8638375091559,11707.863837509156,11707.863837509156,null,null,null,null,null,null,null,null,null,null,null,null,null,null,null,null,null,null,null,null,null,null,null,null,null,null,null,null,null,null,null,null,null,null,null,null,null,null,null,null,null,null,null,null,null,null,null,null,null,null,null,null,null,null,null,null,null,null,null,null,null,null,null,null,null,null,null,null,null,null,null,null,null,null,5,5,"36-0002",261411.06342773436]
["05-0008","Arconic Inc. ","Non-EGU",null,110.69,null,5.93,null,204.4,null,158.82,null,6.6369999999999996,null,56.214700000000001,null,null,0,542.69169999999997,33.5,53.599998474121094,29088.27429191818,35088.274291918176,35088.274291918176,null,null,null,null,null,null,null,null,null,null,null,null,null,null,null,null,null,null,null,null,null,null,null,null,null,null,null,null,null,null,null,null,null,null,null,null,null,null,null,null,null,null,null,null,null,null,null,null,null,null,null,null,null,null,null,null,null,null,null,null,null,null,null,null,null,null,null,null,null,null,null,null,null,null,6,6,"54-0012",255487.22256744382]
["05-0011","Alcoa/Maryville/Blount County Landfill","Non-EGU",null,18.38,null,null,null,6.03,null,1.1399999999999999,null,0.61799999999999999,null,null,null,null,0,26.167999999999999,33.5,53.599998474121094,1402.6047600708007,7402.6047600708007,9000,null,null,null,null,null,null,null,null,null,null,null,null,null,null,null,null,null,null,null,null,null,null,null,null,null,null,null,null,null,null,null,null,null,null,null,null,null,null,null,null,null,null,null,null,null,null,null,null,null,null,null,null,null,null,null,null,null,null,null,null,null,null,null,null,null,null,null,null,null,null,null,null,null,null,7,7,"64-0013",221510.08616691589]
["05-0183","Denso Manufacturing Tennessee, Inc.","Non-EGU",15.29,null,0,null,112,null,0,null,null,null,24.95,null,0.2,null,152.43999999999997,0,33.5,53.599998474121094,5106.7399999999989,11106.739999999998,11106.739999999998,null,null,null,null,null,null,null,null,null,null,null,null,null,null,null,null,null,null,null,null,null,null,null,null,null,null,null,null,null,null,null,null,null,null,null,null,null,null,null,null,null,null,null,null,null,null,null,null,null,null,null,null,null,null,null,null,null,null,null,null,null,null,null,null,null,null,null,null,null,null,null,null,null,null,8,8,"37-0028",198430.48752731323]
["05-0199","Skier's Choice, Inc","Non-EGU",45.2,null,0,null,245,null,0,null,null,null,0,null,0,null,290.2,0,33.5,53.599998474121094,9721.6999999999989,15721.699999999999,15721.699999999999,null,null,null,null,null,null,null,null,null,null,null,null,null,null,null,null,null,null,null,null,null,null,null,null,null,null,null,null,null,null,null,null,null,null,null,null,null,null,null,null,null,null,null,null,null,null,null,null,null,null,null,null,null,null,null,null,null,null,null,null,null,null,null,null,null,null,null,null,null,null,null,null,null,null,9,9,"37-0026",176813.15006706241]
["06-0014","Olin Corporation","Non-EGU",12.9,null,33.5,null,6.75,null,163.19999999999999,null,null,null,3.6,null,4.3,null,224.25,0,33.5,53.599998474121094,7512.375,13512.375,13512.375,null,null,null,null,null,null,null,null,null,null,null,null,null,null,null,null,null,null,null,null,null,null,null,null,null,null,null,null,null,null,null,null,null,null,null,null,null,null,null,null,null,null,null,null,null,null,null,null,null,null,null,null,null,null,null,null,null,null,null,null,null,null,null,null,null,null,null,null,null,null,null,null,null,null,10,10,"43-0007",169152.12688121799]
["06-0085","Duracell Manufacturing, Inc.","Non-EGU",65.599999999999994,null,0,null,77.400000000000006,null,0,null,null,null,0,null,0,null,143,0,33.5,53.599998474121094,4790.5,10790.5,10790.5,null,null,null,null,null,null,null,null,null,null,null,null,null,null,null,null,null,null,null,null,null,null,null,null,null,null,null,null,null,null,null,null,null,null,null,null,null,null,null,null,null,null,null,null,null,null,null,null,null,null,null,null,null,null,null,null,null,null,null,null,null,null,null,null,null,null,null,null,null,null,null,null,null,null,11,11,"75-0155",148363.32007064819]
["06-0205","Bradley County Landfill (Bradley County Government)","Non-EGU",null,null,null,null,null,15.85,null,null,null,null,null,null,null,9.3699999999999992,0,25.22,33.5,53.599998474121094,1351.7919615173339,7351.7919615173341,9000,null,null,null,null,null,null,null,null,null,null,null,null,null,null,null,null,null,null,null,null,null,null,null,null,null,null,null,null,null,null,null,null,null,null,null,null,null,null,null,null,null,null,null,null,null,null,null,null,null,null,null,null,null,null,null,null,null,null,null,null,null,null,null,null,null,null,null,null,null,null,null,null,null,null,12,12,"09-0012",136501.59072002408]
["06-0215","Innovative Water Care, LLC","Non-EGU",234.8,null,0.2,null,1.5,null,39.5,null,null,null,40,null,0,null,316,0,33.5,53.599998474121094,10586,16586,16586,null,null,null,null,null,null,null,null,null,null,null,null,null,null,null,null,null,null,null,null,null,null,null,null,null,null,null,null,null,null,null,null,null,null,null,null,null,null,null,null,null,null,null,null,null,null,null,null,null,null,null,null,null,null,null,null,null,null,null,null,null,null,null,null,null,null,null,null,null,null,null,null,null,null,13,13,"41-0002",134423.29241249082]
["09-0012","GrÃ¤nges Americas Inc.","Non-EGU",102.8,null,254.7,null,2002.61,null,224.5,null,null,null,24.9,null,0,null,2609.5099999999998,0,33.5,53.599998474121094,87418.584999999992,93418.584999999992,93418.584999999992,null,null,null,null,null,null,null,null,null,null,null,null,null,null,null,null,null,null,null,null,null,null,null,null,null,null,null,null,null,null,null,null,null,null,null,null,null,null,null,null,null,null,null,null,null,null,null,null,null,null,null,null,null,null,null,null,null,null,null,null,null,null,null,null,null,null,null,null,null,null,null,null,null,null,14,14,"01-0009",133254.71618652344]
["11-0023","State Industries Incorporated","Non-EGU",133.4,1,25.8,null,4.0999999999999996,253,77.900000000000006,null,null,null,null,null,null,null,241.20000000000002,254,33.5,53.599998474121094,21694.599612426759,27694.599612426759,27694.599612426759,null,null,null,null,null,null,null,null,null,null,null,null,null,null,null,null,null,null,null,null,null,null,null,null,null,null,null,null,null,null,null,null,null,null,null,null,null,null,null,null,null,null,null,null,null,null,null,null,null,null,null,null,null,null,null,null,null,null,null,null,null,null,null,null,null,null,null,null,null,null,null,null,null,null,15,15,"43-0010",124707.73281585694]
["11-0039","Arcosa Marine Products, Inc. [Plant No. 296]","Non-EGU",28.6,null,0,null,221,null,0,null,null,null,0,null,0,null,249.6,0,33.5,53.599998474121094,8361.6,14361.6,14361.6,null,null,null,null,null,null,null,null,null,null,null,null,null,null,null,null,null,null,null,null,null,null,null,null,null,null,null,null,null,null,null,null,null,null,null,null,null,null,null,null,null,null,null,null,null,null,null,null,null,null,null,null,null,null,null,null,null,null,null,null,null,null,null,null,null,null,null,null,null,null,null,null,null,null,16,16,"83-0008",102510.2774912796]
["13-0083","SumiRiko Tennessee, Inc. - Tazewell","Non-EGU",null,12.04,null,null,null,220.78,null,null,null,null,null,null,null,null,0,232.82,33.5,53.599998474121094,12479.151644744872,18479.151644744874,18479.151644744874,null,null,null,null,null,null,null,null,null,null,null,null,null,null,null,null,null,null,null,null,null,null,null,null,null,null,null,null,null,null,null,null,null,null,null,null,null,null,null,null,null,null,null,null,null,null,null,null,null,null,null,null,null,null,null,null,null,null,null,null,null,null,null,null,null,null,null,null,null,null,null,null,null,null,17,17,"64-0001",88568.286704299928]
["14-0022","Honest Abe Log Homes, Inc.","Non-EGU",273.47000000000003,null,22.95,null,2.15,null,28.03,null,null,null,0,null,0,null,326.60000000000002,0,33.5,53.599998474121094,10941.1,16941.099999999999,16941.099999999999,null,null,null,null,null,null,null,null,null,null,null,null,null,null,null,null,null,null,null,null,null,null,null,null,null,null,null,null,null,null,null,null,null,null,null,null,null,null,null,null,null,null,null,null,null,null,null,null,null,null,null,null,null,null,null,null,null,null,null,null,null,null,null,null,null,null,null,null,null,null,null,null,null,null,18,18,"53-0081",84565.707363128662]
["15-0005","SI Group, Inc.","Non-EGU",11.92,null,28.23,null,35.03,null,61.23,null,null,null,0,null,0,null,136.41,0,33.5,53.599998474121094,4569.7349999999997,10569.735000000001,10569.735000000001,null,null,null,null,null,null,null,null,null,null,null,null,null,null,null,null,null,null,null,null,null,null,null,null,null,null,null,null,null,null,null,null,null,null,null,null,null,null,null,null,null,null,null,null,null,null,null,null,null,null,null,null,null,null,null,null,null,null,null,null,null,null,null,null,null,null,null,null,null,null,null,null,null,null,19,19,"53-0003",84365.167269859317]
["15-0009","Commercial Furniture Group","Non-EGU",100.73,null,0,null,107,null,0,null,null,null,0,null,0,null,207.73000000000002,0,33.5,53.599998474121094,6958.9550000000008,12958.955000000002,12958.955000000002,null,null,null,null,null,null,null,null,null,null,null,null,null,null,null,null,null,null,null,null,null,null,null,null,null,null,null,null,null,null,null,null,null,null,null,null,null,null,null,null,null,null,null,null,null,null,null,null,null,null,null,null,null,null,null,null,null,null,null,null,null,null,null,null,null,null,null,null,null,null,null,null,null,null,20,20,"82-0022",76721.345540657057]
["15-0020","Sonoco Products Company","Non-EGU",null,2.02,null,0.16,null,2.6890000000000001,null,26.6,null,null,null,2.4300000000000002,null,null,0,33.899000000000001,33.5,53.599998474121094,1816.986348274231,7816.9863482742312,9000,null,null,null,null,null,null,null,null,null,null,null,null,null,null,null,null,null,null,null,null,null,null,null,null,null,null,null,null,null,null,null,null,null,null,null,null,null,null,null,null,null,null,null,null,null,null,null,null,null,null,null,null,null,null,null,null,null,null,null,null,null,null,null,null,null,null,null,null,null,null,null,null,null,null,21,21,"87-0028",72948.384753036487]
["16-0010","Arnold Engineering Development Complex","Non-EGU",null,4.6269999999999998,null,2.7290000000000001,null,12.042999999999999,null,59.154000000000003,null,null,null,null,null,null,0,78.552999999999997,33.5,53.599998474121094,4210.4406801376344,10210.440680137635,10210.440680137635,null,null,null,null,null,null,null,null,null,null,null,null,null,null,null,null,null,null,null,null,null,null,null,null,null,null,null,null,null,null,null,null,null,null,null,null,null,null,null,null,null,null,null,null,null,null,null,null,null,null,null,null,null,null,null,null,null,null,null,null,null,null,null,null,null,null,null,null,null,null,null,null,null,null,22,22,"60-0011",56135.023317337036]
["16-0067","Batesville Manufacturing, Inc.","Non-EGU",null,9.4930000000000003,null,null,null,196.64,null,null,null,31.34,null,null,null,null,0,237.47299999999998,33.5,53.599998474121094,12728.552437644958,18728.552437644958,18728.552437644958,null,null,null,null,null,null,null,null,null,null,null,null,null,null,null,null,null,null,null,null,null,null,null,null,null,null,null,null,null,null,null,null,null,null,null,null,null,null,null,null,null,null,null,null,null,null,null,null,null,null,null,null,null,null,null,null,null,null,null,null,null,null,null,null,null,null,null,null,null,null,null,null,null,null,23,23,"54-0174",54226.641781387334]
["16-0113","Kasai North America, Inc.","Non-EGU",41,null,0,null,225,null,6,null,null,null,0,null,0,null,272,0,33.5,53.599998474121094,9112,15112,15112,null,null,null,null,null,null,null,null,null,null,null,null,null,null,null,null,null,null,null,null,null,null,null,null,null,null,null,null,null,null,null,null,null,null,null,null,null,null,null,null,null,null,null,null,null,null,null,null,null,null,null,null,null,null,null,null,null,null,null,null,null,null,null,null,null,null,null,null,null,null,null,null,null,null,24,24,"05-0008",49426.188012220002]
["16-0123","Sonoco Protective Solutions, Inc.","Non-EGU",null,0.69,null,0.05,null,56.2,null,9.11,null,null,null,null,null,null,0,66.050000000000011,33.5,53.599998474121094,3540.2798992156991,9540.2798992156986,9540.2798992156986,null,null,null,null,null,null,null,null,null,null,null,null,null,null,null,null,null,null,null,null,null,null,null,null,null,null,null,null,null,null,null,null,null,null,null,null,null,null,null,null,null,null,null,null,null,null,null,null,null,null,null,null,null,null,null,null,null,null,null,null,null,null,null,null,null,null,null,null,null,null,null,null,null,null,25,25,"18-0120",49204.137649955745]
["18-0090","Crossville Hardwoods, LLC","Non-EGU",null,102.38800000000001,null,1.456,null,6.6319999999999997,null,28.548999999999999,null,null,null,null,null,null,0,139.02500000000001,33.5,53.599998474121094,7451.7397878646852,13451.739787864684,13451.739787864684,null,null,null,null,null,null,null,null,null,null,null,null,null,null,null,null,null,null,null,null,null,null,null,null,null,null,null,null,null,null,null,null,null,null,null,null,null,null,null,null,null,null,null,null,null,null,null,null,null,null,null,null,null,null,null,null,null,null,null,null,null,null,null,null,null,null,null,null,null,null,null,null,null,null,26,26,"38-0069",48769.234718322747]
["18-0120","StonePeak Ceramics, Inc.","Non-EGU",313.67,null,196.97,null,79.38,null,255.13,null,null,null,18.759999999999998,null,0,null,863.91,0,33.5,53.599998474121094,28940.985000000001,34940.985000000001,34940.985000000001,null,null,null,null,null,null,null,null,null,null,null,null,null,null,null,null,null,null,null,null,null,null,null,null,null,null,null,null,null,null,null,null,null,null,null,null,null,null,null,null,null,null,null,null,null,null,null,null,null,null,null,null,null,null,null,null,null,null,null,null,null,null,null,null,null,null,null,null,null,null,null,null,null,null,27,27,"50-0003",46558.108638763428]
["20-0052","Decatur County Municipal Solid Waste Landfill","Non-EGU",null,null,null,null,null,16.3,null,null,null,null,null,null,null,null,0,16.3,33.5,53.599998474121094,873.67997512817385,6873.6799751281742,9000,null,null,null,null,null,null,null,null,null,null,null,null,null,null,null,null,null,null,null,null,null,null,null,null,null,null,null,null,null,null,null,null,null,null,null,null,null,null,null,null,null,null,null,null,null,null,null,null,null,null,null,null,null,null,null,null,null,null,null,null,null,null,null,null,null,null,null,null,null,null,null,null,null,null,28,28,"63-0320",46490.095041046145]
["21-0031","Federal-Mogul Motorparts","Non-EGU",null,1.68,null,1.93,null,53.14,null,13.04,null,null,null,5.34,null,null,0,75.13,33.5,53.599998474121094,4026.9678853607174,10026.967885360718,10026.967885360718,null,null,null,null,null,null,null,null,null,null,null,null,null,null,null,null,null,null,null,null,null,null,null,null,null,null,null,null,null,null,null,null,null,null,null,null,null,null,null,null,null,null,null,null,null,null,null,null,null,null,null,null,null,null,null,null,null,null,null,null,null,null,null,null,null,null,null,null,null,null,null,null,null,null,29,29,"60-0132",45717.12513381958]
["22-0055","Ebbtide Holdings, LLC ","Non-EGU",null,null,null,null,null,null,null,null,null,null,null,null,null,null,0,0,33.5,53.599998474121094,0,6000,9000,null,null,null,null,null,null,null,null,null,null,null,null,null,null,null,null,null,null,null,null,null,null,null,null,null,null,null,null,null,null,null,null,null,null,null,null,null,null,null,null,null,null,null,null,null,null,null,null,null,null,null,null,null,null,null,null,null,null,null,null,null,null,null,null,null,null,null,null,null,null,null,null,null,null,30,30,"53-0093",45633.494241180415]
["22-0072","Nemak USA, Inc.","Non-EGU",null,97.19,null,0.2,null,117.12,null,30.42,null,0.08,null,0.22,null,null,0,245.23000000000002,33.5,53.599998474121094,13144.327625808717,19144.327625808717,19144.327625808717,null,null,null,null,null,null,null,null,null,null,null,null,null,null,null,null,null,null,null,null,null,null,null,null,null,null,null,null,null,null,null,null,null,null,null,null,null,null,null,null,null,null,null,null,null,null,null,null,null,null,null,null,null,null,null,null,null,null,null,null,null,null,null,null,null,null,null,null,null,null,null,null,null,null,31,31,"62-0096",44097.520401763919]
["22-0112","Bridgestone APM","Non-EGU",null,0.67900000000000005,null,1E-3,null,134.79,null,0.1,null,2.46,null,null,null,null,0,138.03,33.5,53.599998474121094,7398.4077893829344,13398.407789382934,13398.407789382934,null,null,null,null,null,null,null,null,null,null,null,null,null,null,null,null,null,null,null,null,null,null,null,null,null,null,null,null,null,null,null,null,null,null,null,null,null,null,null,null,null,null,null,null,null,null,null,null,null,null,null,null,null,null,null,null,null,null,null,null,null,null,null,null,null,null,null,null,null,null,null,null,null,null,32,32,"37-0007",41835.196926116943]
["22-0177","Dal-Tile Tennessee LLC dba Dal-Tile Dickson","Non-EGU",null,63.5,null,1.2,null,38.4,null,47.1,null,1.6,null,null,0,null,0,151.79999999999998,33.5,53.599998474121094,8136.4797683715815,14136.479768371581,14136.479768371581,null,null,null,null,null,null,null,null,null,null,null,null,null,null,null,null,null,null,null,null,null,null,null,null,null,null,null,null,null,null,null,null,null,null,null,null,null,null,null,null,null,null,null,null,null,null,null,null,null,null,null,null,null,null,null,null,null,null,null,null,null,null,null,null,null,null,null,null,null,null,null,null,null,null,33,33,"57-0024",41578.144015312195]
["23-0092","Trunkline Gas Company- Dyersburg Compressor Station","Non-EGU",null,0.23,null,1.65,null,1.05,null,33.729999999999997,null,0.04,null,null,null,null,0,36.699999999999996,33.5,53.599998474121094,1967.119944000244,7967.1199440002438,9000,null,null,null,null,null,null,null,null,null,null,null,null,null,null,null,null,null,null,null,null,null,null,null,null,null,null,null,null,null,null,null,null,null,null,null,null,null,null,null,null,null,null,null,null,null,null,null,null,null,null,null,null,null,null,null,null,null,null,null,null,null,null,null,null,null,null,null,null,null,null,null,null,null,null,34,34,"72-0107",39845.266564064026]
["23-0120","SRG Global Coatings, Inc. - Newbern","Non-EGU",103.5,null,0.44,null,230.2,null,4.4000000000000004,null,null,null,24.9,null,0,null,363.43999999999994,0,33.5,53.599998474121094,12175.239999999998,18175.239999999998,18175.239999999998,null,null,null,null,null,null,null,null,null,null,null,null,null,null,null,null,null,null,null,null,null,null,null,null,null,null,null,null,null,null,null,null,null,null,null,null,null,null,null,null,null,null,null,null,null,null,null,null,null,null,null,null,null,null,null,null,null,null,null,null,null,null,null,null,null,null,null,null,null,null,null,null,null,null,35,35,"11-0023",38387.490742492679]
["23-0182","Frazier Industrial Company - Dyersburg Facility","Non-EGU",13.469999999999999,null,0.01,null,244,null,0.86,null,null,null,0,null,0,null,258.34000000000003,0,33.5,53.599998474121094,8654.3900000000012,14654.390000000001,14654.390000000001,null,null,null,null,null,null,null,null,null,null,null,null,null,null,null,null,null,null,null,null,null,null,null,null,null,null,null,null,null,null,null,null,null,null,null,null,null,null,null,null,null,null,null,null,null,null,null,null,null,null,null,null,null,null,null,null,null,null,null,null,null,null,null,null,null,null,null,null,null,null,null,null,null,null,36,36,"91-0001",38386.093141365054]
["24-0080","Stabilit America, Inc.","Non-EGU",11.8,null,0,null,50.3,null,9.4,null,null,null,0,null,0,null,71.5,0,33.5,53.599998474121094,2395.25,8395.25,9000,null,null,null,null,null,null,null,null,null,null,null,null,null,null,null,null,null,null,null,null,null,null,null,null,null,null,null,null,null,null,null,null,null,null,null,null,null,null,null,null,null,null,null,null,null,null,null,null,null,null,null,null,null,null,null,null,null,null,null,null,null,null,null,null,null,null,null,null,null,null,null,null,null,null,37,37,"43-0011",38374.742401817319]
["26-0079","Tepro Inc.","Non-EGU",17.52,null,0,null,130,null,0,null,null,null,0,null,0,null,147.52000000000001,0,33.5,53.599998474121094,4941.92,10941.92,10941.92,null,null,null,null,null,null,null,null,null,null,null,null,null,null,null,null,null,null,null,null,null,null,null,null,null,null,null,null,null,null,null,null,null,null,null,null,null,null,null,null,null,null,null,null,null,null,null,null,null,null,null,null,null,null,null,null,null,null,null,null,null,null,null,null,null,null,null,null,null,null,null,null,null,null,38,38,"75-0057",38093.916422843933]
["26-0086","Tennessee Zanini, Inc.","Non-EGU",null,5.4,null,null,null,109.1,null,null,null,17,null,null,null,null,0,131.5,33.5,53.599998474121094,7048.3997993469238,13048.399799346924,13048.399799346924,null,null,null,null,null,null,null,null,null,null,null,null,null,null,null,null,null,null,null,null,null,null,null,null,null,null,null,null,null,null,null,null,null,null,null,null,null,null,null,null,null,null,null,null,null,null,null,null,null,null,null,null,null,null,null,null,null,null,null,null,null,null,null,null,null,null,null,null,null,null,null,null,null,null,39,39,"63-0092",37468.663879852298]
["26-0131","CJBBB, Inc. dba Phoenix Boats","Non-EGU",null,0.48,null,null,null,55.65,null,null,null,null,null,null,null,null,0,56.129999999999995,33.5,53.599998474121094,3008.5679143524167,9008.5679143524176,9008.5679143524176,null,null,null,null,null,null,null,null,null,null,null,null,null,null,null,null,null,null,null,null,null,null,null,null,null,null,null,null,null,null,null,null,null,null,null,null,null,null,null,null,null,null,null,null,null,null,null,null,null,null,null,null,null,null,null,null,null,null,null,null,null,null,null,null,null,null,null,null,null,null,null,null,null,null,40,40,"73-0107",37319.761648826599]
["27-0100","Ceco Door Products","Non-EGU",93.8,null,0.12,null,230.5,null,19.84,null,null,null,0,null,0,null,344.26,0,33.5,53.599998474121094,11532.71,17532.71,17532.71,null,null,null,null,null,null,null,null,null,null,null,null,null,null,null,null,null,null,null,null,null,null,null,null,null,null,null,null,null,null,null,null,null,null,null,null,null,null,null,null,null,null,null,null,null,null,null,null,null,null,null,null,null,null,null,null,null,null,null,null,null,null,null,null,null,null,null,null,null,null,null,null,null,null,41,41,"60-0095",36561.237117919918]
["28-0025","Magotteaux Incorporated","Non-EGU",195.8,null,58.5,null,118.2,null,22.4,null,null,null,0,null,0,null,394.9,0,33.5,53.599998474121094,13229.15,19229.150000000001,19229.150000000001,null,null,null,null,null,null,null,null,null,null,null,null,null,null,null,null,null,null,null,null,null,null,null,null,null,null,null,null,null,null,null,null,null,null,null,null,null,null,null,null,null,null,null,null,null,null,null,null,null,null,null,null,null,null,null,null,null,null,null,null,null,null,null,null,null,null,null,null,null,null,null,null,null,null,42,42,"89-0077",36378.184961700434]
["28-0076","Adient US LLC","Non-EGU",113.9,null,0,null,285.89999999999998,null,0,null,null,null,0,null,0,null,399.79999999999995,0,33.5,53.599998474121094,13393.3,19393.3,19393.3,null,null,null,null,null,null,null,null,null,null,null,null,null,null,null,null,null,null,null,null,null,null,null,null,null,null,null,null,null,null,null,null,null,null,null,null,null,null,null,null,null,null,null,null,null,null,null,null,null,null,null,null,null,null,null,null,null,null,null,null,null,null,null,null,null,null,null,null,null,null,null,null,null,null,43,43,"35-0006",35559.914891926572]
["28-0091","SaarGummi Tennessee, LLC","Non-EGU",22.2,null,0,null,91.5,null,0,null,null,null,0,null,0,null,113.7,0,33.5,53.599998474121094,3808.9500000000003,9808.9500000000007,9808.9500000000007,null,null,null,null,null,null,null,null,null,null,null,null,null,null,null,null,null,null,null,null,null,null,null,null,null,null,null,null,null,null,null,null,null,null,null,null,null,null,null,null,null,null,null,null,null,null,null,null,null,null,null,null,null,null,null,null,null,null,null,null,null,null,null,null,null,null,null,null,null,null,null,null,null,null,44,44,"83-0129",35515.901009368899]
["30-0001","Imerys Fused Minerals Greeneville, Inc. ","Non-EGU",244.65,null,0.15,null,1.23,null,41.4,null,null,null,0,null,0,null,287.43,0,33.5,53.599998474121094,9628.9050000000007,15628.905000000001,15628.905000000001,null,null,null,null,null,null,null,null,null,null,null,null,null,null,null,null,null,null,null,null,null,null,null,null,null,null,null,null,null,null,null,null,null,null,null,null,null,null,null,null,null,null,null,null,null,null,null,null,null,null,null,null,null,null,null,null,null,null,null,null,null,null,null,null,null,null,null,null,null,null,null,null,null,null,45,45,"57-0189",34499.820021514897]
["30-0132","Plus Mark, Inc.","Non-EGU",null,0.187,null,1.7000000000000001E-2,null,185.489,null,1.5209999999999999,null,null,null,null,null,null,0,187.214,33.5,53.599998474121094,10034.670114334107,16034.670114334107,16034.670114334107,null,null,null,null,null,null,null,null,null,null,null,null,null,null,null,null,null,null,null,null,null,null,null,null,null,null,null,null,null,null,null,null,null,null,null,null,null,null,null,null,null,null,null,null,null,null,null,null,null,null,null,null,null,null,null,null,null,null,null,null,null,null,null,null,null,null,null,null,null,null,null,null,null,null,46,46,"57-0035",34475.192944297785]
["30-0136","Donaldson Company, Inc.","Non-EGU",18.600000000000001,null,0,null,70.5,null,0,null,null,null,29.6,null,0,null,118.69999999999999,0,33.5,53.599998474121094,3976.45,9976.4500000000007,9976.4500000000007,null,null,null,null,null,null,null,null,null,null,null,null,null,null,null,null,null,null,null,null,null,null,null,null,null,null,null,null,null,null,null,null,null,null,null,null,null,null,null,null,null,null,null,null,null,null,null,null,null,null,null,null,null,null,null,null,null,null,null,null,null,null,null,null,null,null,null,null,null,null,null,null,null,null,47,47,"54-0167",34083.614657440194]
["30-0165","Delfasco, LLC ","Non-EGU",19.7,null,0,null,99.9,null,0,null,null,null,0,null,0,null,119.60000000000001,0,33.5,53.599998474121094,4006.6000000000004,10006.6,10006.6,null,null,null,null,null,null,null,null,null,null,null,null,null,null,null,null,null,null,null,null,null,null,null,null,null,null,null,null,null,null,null,null,null,null,null,null,null,null,null,null,null,null,null,null,null,null,null,null,null,null,null,null,null,null,null,null,null,null,null,null,null,null,null,null,null,null,null,null,null,null,null,null,null,null,48,48,"63-0135",33698.537670364385]
["30-0166","SumiRiko Tennessee, Inc.","Non-EGU",null,39.119999999999997,null,2.1399999999999999E-2,null,106.72,null,3.04,null,null,null,null,null,null,0,148.9014,33.5,53.599998474121094,7981.1148127944944,13981.114812794494,13981.114812794494,null,null,null,null,null,null,null,null,null,null,null,null,null,null,null,null,null,null,null,null,null,null,null,null,null,null,null,null,null,null,null,null,null,null,null,null,null,null,null,null,null,null,null,null,null,null,null,null,null,null,null,null,null,null,null,null,null,null,null,null,null,null,null,null,null,null,null,null,null,null,null,null,null,null,49,49,"92-0108",33176.05118560791]
["30-0190","Sea Ray Boats","Non-EGU",48.4,null,0,null,129,null,0,null,null,null,0,null,0,null,177.4,0,33.5,53.599998474121094,5942.9000000000005,11942.900000000001,11942.900000000001,null,null,null,null,null,null,null,null,null,null,null,null,null,null,null,null,null,null,null,null,null,null,null,null,null,null,null,null,null,null,null,null,null,null,null,null,null,null,null,null,null,null,null,null,null,null,null,null,null,null,null,null,null,null,null,null,null,null,null,null,null,null,null,null,null,null,null,null,null,null,null,null,null,null,50,50,"54-0009",33127.356433639521]
["32-0196","Sonoco Flexible Packaging, Inc.","Non-EGU",null,null,null,null,null,33.649000000000001,null,null,null,null,null,null,null,null,0,33.649000000000001,33.5,53.599998474121094,1803.5863486557007,7803.5863486557009,9000,null,null,null,null,null,null,null,null,null,null,null,null,null,null,null,null,null,null,null,null,null,null,null,null,null,null,null,null,null,null,null,null,null,null,null,null,null,null,null,null,null,null,null,null,null,null,null,null,null,null,null,null,null,null,null,null,null,null,null,null,null,null,null,null,null,null,null,null,null,null,null,null,null,null,51,51,"62-0090",31435.085146331789]
["32-0275","Trelleborg Coated Systems US, Inc. dba Morristown Facility","Non-EGU",null,1.47,null,0.1,null,14.4,null,1.86,null,null,null,null,null,null,0,17.830000000000002,33.5,53.599998474121094,955.68797279357921,6955.6879727935793,9000,null,null,null,null,null,null,null,null,null,null,null,null,null,null,null,null,null,null,null,null,null,null,null,null,null,null,null,null,null,null,null,null,null,null,null,null,null,null,null,null,null,null,null,null,null,null,null,null,null,null,null,null,null,null,null,null,null,null,null,null,null,null,null,null,null,null,null,null,null,null,null,null,null,null,52,52,"01-0020",31099.776585995864]
["34-0014","Powell Valley Electric Cooperative, Inc.","Non-EGU",null,6.9000000000000006E-2,null,0.14000000000000001,null,0.1217,null,8.5039999999999996,null,null,null,null,null,null,0,8.8346999999999998,33.5,53.599998474121094,473.53990651931764,6473.5399065193178,9000,null,null,null,null,null,null,null,null,null,null,null,null,null,null,null,null,null,null,null,null,null,null,null,null,null,null,null,null,null,null,null,null,null,null,null,null,null,null,null,null,null,null,null,null,null,null,null,null,null,null,null,null,null,null,null,null,null,null,null,null,null,null,null,null,null,null,null,null,null,null,null,null,null,null,53,53,"95-0093",31057.009559020997]
["35-0001","Kilgore Flares Company, LLC","Non-EGU",55.2,null,0.1,null,82.2,null,2,null,null,null,0.7,null,0,null,140.19999999999999,0,33.5,53.599998474121094,4696.7,10696.7,10696.7,null,null,null,null,null,null,null,null,null,null,null,null,null,null,null,null,null,null,null,null,null,null,null,null,null,null,null,null,null,null,null,null,null,null,null,null,null,null,null,null,null,null,null,null,null,null,null,null,null,null,null,null,null,null,null,null,null,null,null,null,null,null,null,null,null,null,null,null,null,null,null,null,null,null,54,54,"36-0074",30939.986162948608]
["35-0004","Thyssen Elevator Systems, Inc.","Non-EGU",84.5,null,0,null,398.2,null,1.64,null,null,null,0,null,0,null,484.34,0,33.5,53.599998474121094,16225.39,22225.39,22225.39,null,null,null,null,null,null,null,null,null,null,null,null,null,null,null,null,null,null,null,null,null,null,null,null,null,null,null,null,null,null,null,null,null,null,null,null,null,null,null,null,null,null,null,null,null,null,null,null,null,null,null,null,null,null,null,null,null,null,null,null,null,null,null,null,null,null,null,null,null,null,null,null,null,null,55,55,"35-0004",30221.842587051389]
["35-0006","Tennessee Gas Pipeline Company, LLC - Compressor Station 71","Non-EGU",null,4.3,null,0.06,null,10.54,null,354.49,null,1.66E-2,null,null,null,null,0,369.40659999999997,33.5,53.599998474121094,19800.19319633026,25800.19319633026,25800.19319633026,null,null,null,null,null,null,null,null,null,null,null,null,null,null,null,null,null,null,null,null,null,null,null,null,null,null,null,null,null,null,null,null,null,null,null,null,null,null,null,null,null,null,null,null,null,null,null,null,null,null,null,null,null,null,null,null,null,null,null,null,null,null,null,null,null,null,null,null,null,null,null,null,null,null,56,56,"40-0024",29063.363432464601]
["36-0002","Packaging Corporation of America","Non-EGU",463.8,null,1800,null,794.1,null,1665.5,null,null,null,184.6,null,199.2,null,5107.2,0,33.5,53.599998474121094,171091.19999999998,177091.19999999998,177091.19999999998,null,null,null,null,null,null,null,null,null,null,null,null,null,null,null,null,null,null,null,null,null,null,null,null,null,null,null,null,null,null,null,null,null,null,null,null,null,null,null,null,null,null,null,null,null,null,null,null,null,null,null,null,null,null,null,null,null,null,null,null,null,null,null,null,null,null,null,null,null,null,null,null,null,null,57,57,"43-0021",27390.276482086181]
["36-0061","Tennessee Gas Pipeline Company,  LLC - Compressor Station 856","Non-EGU",null,0,null,0,null,0,null,0,null,null,null,null,null,null,0,0,33.5,53.599998474121094,0,6000,9000,null,null,null,null,null,null,null,null,null,null,null,null,null,null,null,null,null,null,null,null,null,null,null,null,null,null,null,null,null,null,null,null,null,null,null,null,null,null,null,null,null,null,null,null,null,null,null,null,null,null,null,null,null,null,null,null,null,null,null,null,null,null,null,null,null,null,null,null,null,null,null,null,null,null,58,58,"62-0089",27133.281113433841]
["36-0074","The Praxis Companies, LLC dba American Whirlpool","Non-EGU",12.7,null,0,null,486,null,0,null,null,null,0,null,0,null,498.7,0,33.5,53.599998474121094,16706.45,22706.45,22706.45,null,null,null,null,null,null,null,null,null,null,null,null,null,null,null,null,null,null,null,null,null,null,null,null,null,null,null,null,null,null,null,null,null,null,null,null,null,null,null,null,null,null,null,null,null,null,null,null,null,null,null,null,null,null,null,null,null,null,null,null,null,null,null,null,null,null,null,null,null,null,null,null,null,null,59,59,"72-0049",27069.244487312317]
["37-0001","Holliston Holdings, LLC","Non-EGU",null,0.84299999999999997,null,8.1000000000000003E-2,null,27.832999999999998,null,18.46,null,88.129000000000005,null,null,null,null,0,135.346,33.5,53.599998474121094,7254.5453934783936,13254.545393478395,13254.545393478395,null,null,null,null,null,null,null,null,null,null,null,null,null,null,null,null,null,null,null,null,null,null,null,null,null,null,null,null,null,null,null,null,null,null,null,null,null,null,null,null,null,null,null,null,null,null,null,null,null,null,null,null,null,null,null,null,null,null,null,null,null,null,null,null,null,null,null,null,null,null,null,null,null,null,60,60,"66-0123",27062.210893096926]
["37-0007","Tennessee Valley Authority - John Sevier Combined Cycle Plant","EGU",null,80,null,11,null,52.9,null,176,null,null,null,null,null,null,0,319.89999999999998,46.900001525878906,75.040000915527344,24005.296292877196,30005.296292877196,30005.296292877196,null,null,null,null,null,null,null,null,null,null,null,null,null,null,null,null,null,null,null,null,null,null,null,null,null,null,null,null,null,null,null,null,null,null,null,null,null,null,null,null,null,null,null,null,null,null,null,null,null,null,null,null,null,null,null,null,null,null,null,null,null,null,null,null,null,null,null,null,null,null,null,null,null,null,61,61,"63-0123",26902.178898468017]
["37-0026","AGC Flat Glass North America, Inc. - Greenland Plant","Non-EGU",213.59,null,582.26,null,117.72,null,2477.2600000000002,null,null,null,24.75,null,0,null,3415.5800000000004,0,33.5,53.599998474121094,114421.93000000001,120421.93000000001,120421.93000000001,null,null,null,null,null,null,null,null,null,null,null,null,null,null,null,null,null,null,null,null,null,null,null,null,null,null,null,null,null,null,null,null,null,null,null,null,null,null,null,null,null,null,null,null,null,null,null,null,null,null,null,null,null,null,null,null,null,null,null,null,null,null,null,null,null,null,null,null,null,null,null,null,null,null,62,62,"81-0030",26731.144704208371]
["37-0028","BAE SYSTEMS Ordnance Systems Inc. Holston Army Ammunition Plant","Non-EGU",null,49.68,null,1767.63,null,223.18,null,356.85,null,null,null,7.44,null,null,0,2404.7800000000002,33.5,53.599998474121094,128896.20433059693,134896.20433059693,134896.20433059693,null,null,null,null,null,null,null,null,null,null,null,null,null,null,null,null,null,null,null,null,null,null,null,null,null,null,null,null,null,null,null,null,null,null,null,null,null,null,null,null,null,null,null,null,null,null,null,null,null,null,null,null,null,null,null,null,null,null,null,null,null,null,null,null,null,null,null,null,null,null,null,null,null,null,63,63,"38-0068",26714.676433563232]
["37-0067","Hutchinson Body Sealing System","Non-EGU",41,5.3999999999999999E-2,0,0,217,42.3,0,0,null,null,24.9,16.5,0,null,282.89999999999998,58.853999999999999,33.5,53.599998474121094,12631.724310195923,18631.724310195925,18631.724310195925,null,null,null,null,null,null,null,null,null,null,null,null,null,null,null,null,null,null,null,null,null,null,null,null,null,null,null,null,null,null,null,null,null,null,null,null,null,null,null,null,null,null,null,null,null,null,null,null,null,null,null,null,null,null,null,null,null,null,null,null,null,null,null,null,null,null,null,null,null,null,null,null,null,null,64,64,"54-0132",26467.091913070679]
["37-0076","Mundet Tennessee Incorporated","Non-EGU",15.6,null,1,null,199,null,7,null,null,null,0,null,0,null,222.6,0,33.5,53.599998474121094,7457.0999999999995,13457.099999999999,13457.099999999999,null,null,null,null,null,null,null,null,null,null,null,null,null,null,null,null,null,null,null,null,null,null,null,null,null,null,null,null,null,null,null,null,null,null,null,null,null,null,null,null,null,null,null,null,null,null,null,null,null,null,null,null,null,null,null,null,null,null,null,null,null,null,null,null,null,null,null,null,null,null,null,null,null,null,65,65,"28-0076",25993.997328948972]
["37-0080","BFI Waste Systems of Tennessee dba Carter Valley Landfill","Non-EGU",null,14.62,null,0.04,null,6.62,null,0.66,null,null,null,null,null,21.4,0,43.339999999999996,33.5,53.599998474121094,2323.0239338684082,8323.0239338684078,9000,null,null,null,null,null,null,null,null,null,null,null,null,null,null,null,null,null,null,null,null,null,null,null,null,null,null,null,null,null,null,null,null,null,null,null,null,null,null,null,null,null,null,null,null,null,null,null,null,null,null,null,null,null,null,null,null,null,null,null,null,null,null,null,null,null,null,null,null,null,null,null,null,null,null,66,66,"28-0025",25748.94833717346]
["38-0039","Teknor Apex Tennessee Company","Non-EGU",72.010000000000005,4.76,null,0.18,216.3,38.69,null,15.33,null,null,null,null,null,null,288.31,58.959999999999994,33.5,53.599998474121094,12818.640910034181,18818.640910034181,18818.640910034181,null,null,null,null,null,null,null,null,null,null,null,null,null,null,null,null,null,null,null,null,null,null,null,null,null,null,null,null,null,null,null,null,null,null,null,null,null,null,null,null,null,null,null,null,null,null,null,null,null,null,null,null,null,null,null,null,null,null,null,null,null,null,null,null,null,null,null,null,null,null,null,null,null,null,67,67,"22-0072",25623.303776779176]
["38-0053","ANR Pipeline Company dba Brownsville Compressor Station","Non-EGU",null,5.09,null,0.3,null,8.3000000000000007,null,110.8,null,0.01,null,null,null,null,0,124.5,33.5,53.599998474121094,6673.1998100280762,12673.199810028076,12673.199810028076,null,null,null,null,null,null,null,null,null,null,null,null,null,null,null,null,null,null,null,null,null,null,null,null,null,null,null,null,null,null,null,null,null,null,null,null,null,null,null,null,null,null,null,null,null,null,null,null,null,null,null,null,null,null,null,null,null,null,null,null,null,null,null,null,null,null,null,null,null,null,null,null,null,null,68,68,"38-0039",25136.361618156436]
["38-0068","Tennessee Valley Authority - Brownsville Combustion Turbine Plant","EGU",null,10.9,null,2.1,null,16.3,249,null,null,null,null,null,null,null,249,29.3,46.900001525878906,75.040000915527344,13876.7724067688,19876.7724067688,19876.7724067688,null,null,null,null,null,null,null,null,null,null,null,null,null,null,null,null,null,null,null,null,null,null,null,null,null,null,null,null,null,null,null,null,null,null,null,null,null,null,null,null,null,null,null,null,null,null,null,null,null,null,null,null,null,null,null,null,null,null,null,null,null,null,null,null,null,null,null,null,null,null,null,null,null,null,69,69,"16-0067",25002.588662818907]
["38-0069","Tennessee Valley Authority (TVA) - Lagoon Creek Combustion Turbine Plant (LCT)","EGU",null,58.1,null,9.1999999999999993,null,31.6,null,282.89999999999998,null,null,null,null,null,null,0,381.79999999999995,46.900001525878906,75.040000915527344,28650.272349548337,34650.272349548337,34650.272349548337,null,null,null,null,null,null,null,null,null,null,null,null,null,null,null,null,null,null,null,null,null,null,null,null,null,null,null,null,null,null,null,null,null,null,null,null,null,null,null,null,null,null,null,null,null,null,null,null,null,null,null,null,null,null,null,null,null,null,null,null,null,null,null,null,null,null,null,null,null,null,null,null,null,null,70,70,"37-0067",24857.325407592773]
["39-0072","Leroy-Somer Americas","Non-EGU",80.8,null,13.1,null,155,null,63.5,null,null,null,0,null,0,null,312.39999999999998,0,33.5,53.599998474121094,10465.4,16465.400000000001,16465.400000000001,null,null,null,null,null,null,null,null,null,null,null,null,null,null,null,null,null,null,null,null,null,null,null,null,null,null,null,null,null,null,null,null,null,null,null,null,null,null,null,null,null,null,null,null,null,null,null,null,null,null,null,null,null,null,null,null,null,null,null,null,null,null,null,null,null,null,null,null,null,null,null,null,null,null,71,71,"53-0098",24734.509243011475]
["40-0024","ANR Pipeline Company dba Cottage Grove Compressor Station","Non-EGU",null,9.75,null,0.08,null,24.21,null,254.14,null,0.04,null,null,null,null,0,288.22000000000003,33.5,53.599998474121094,15448.591560211184,21448.591560211185,21448.591560211185,null,null,null,null,null,null,null,null,null,null,null,null,null,null,null,null,null,null,null,null,null,null,null,null,null,null,null,null,null,null,null,null,null,null,null,null,null,null,null,null,null,null,null,null,null,null,null,null,null,null,null,null,null,null,null,null,null,null,null,null,null,null,null,null,null,null,null,null,null,null,null,null,null,null,72,72,"13-0083",24630.255618438721]
["40-0033","Institutional Casework, Inc.","Non-EGU",27.61,null,0,null,128.1,null,0,null,null,null,0,null,0,null,155.70999999999998,0,33.5,53.599998474121094,5216.2849999999989,11216.285,11216.285,null,null,null,null,null,null,null,null,null,null,null,null,null,null,null,null,null,null,null,null,null,null,null,null,null,null,null,null,null,null,null,null,null,null,null,null,null,null,null,null,null,null,null,null,null,null,null,null,null,null,null,null,null,null,null,null,null,null,null,null,null,null,null,null,null,null,null,null,null,null,null,null,null,null,73,73,"23-0120",24175.633789978023]
["40-0077","Tank Lining Of Paris, Inc.","Non-EGU",34.6,null,0,null,189.6,null,2.63,null,null,null,0,null,0,null,226.82999999999998,0,33.5,53.599998474121094,7598.8049999999994,13598.805,13598.805,null,null,null,null,null,null,null,null,null,null,null,null,null,null,null,null,null,null,null,null,null,null,null,null,null,null,null,null,null,null,null,null,null,null,null,null,null,null,null,null,null,null,null,null,null,null,null,null,null,null,null,null,null,null,null,null,null,null,null,null,null,null,null,null,null,null,null,null,null,null,null,null,null,null,74,74,"58-0011",23962.591197128295]
["40-0083","Allegion, PLC, c/o Schlage Lock Company, LLC dba Republic Doors and Frames","Non-EGU",27.41,null,0,null,203.1,null,0,null,null,null,0,null,0,null,230.51,0,33.5,53.599998474121094,7722.085,13722.084999999999,13722.084999999999,null,null,null,null,null,null,null,null,null,null,null,null,null,null,null,null,null,null,null,null,null,null,null,null,null,null,null,null,null,null,null,null,null,null,null,null,null,null,null,null,null,null,null,null,null,null,null,null,null,null,null,null,null,null,null,null,null,null,null,null,null,null,null,null,null,null,null,null,null,null,null,null,null,null,75,75,"27-0100",23216.442022171021]
["40-0102","PML Inc.","Non-EGU",8.1199999999999992,0.04,null,3.0000000000000001E-3,null,16.559999999999999,null,0.5,null,null,null,null,null,null,8.1199999999999992,17.102999999999998,33.5,53.599998474121094,1188.7407739028929,7188.7407739028931,9000,null,null,null,null,null,null,null,null,null,null,null,null,null,null,null,null,null,null,null,null,null,null,null,null,null,null,null,null,null,null,null,null,null,null,null,null,null,null,null,null,null,null,null,null,null,null,null,null,null,null,null,null,null,null,null,null,null,null,null,null,null,null,null,null,null,null,null,null,null,null,null,null,null,null,76,76,"67-0054",23017.902328834531]
["40-0107","Dana Sealing Products, LLC","Non-EGU",null,2E-3,null,2E-3,null,28,null,0.03,null,1.1000000000000001,null,null,null,null,0,29.134000000000004,33.5,53.599998474121094,1561.5823555450443,7561.5823555450443,9000,null,null,null,null,null,null,null,null,null,null,null,null,null,null,null,null,null,null,null,null,null,null,null,null,null,null,null,null,null,null,null,null,null,null,null,null,null,null,null,null,null,null,null,null,null,null,null,null,null,null,null,null,null,null,null,null,null,null,null,null,null,null,null,null,null,null,null,null,null,null,null,null,null,null,77,77,"62-0107",22948.235289001466]
["41-0002","Tennessee Gas Pipeline Company, LLC - Compressor Station 860","Non-EGU",null,27.83,null,0.33,null,69.12,null,1507.5,null,0.11,null,null,null,null,0,1604.8899999999999,33.5,53.599998474121094,86022.101551132189,92022.101551132189,92022.101551132189,null,null,null,null,null,null,null,null,null,null,null,null,null,null,null,null,null,null,null,null,null,null,null,null,null,null,null,null,null,null,null,null,null,null,null,null,null,null,null,null,null,null,null,null,null,null,null,null,null,null,null,null,null,null,null,null,null,null,null,null,null,null,null,null,null,null,null,null,null,null,null,null,null,null,78,78,"83-0014",22496.29491256714]
["43-0003","Albemarle U S Inc","Non-EGU",8.51,null,0.01,null,98.6,null,3.53,null,null,null,0,null,0,null,110.64999999999999,0,33.5,53.599998474121094,3706.7749999999996,9706.7749999999996,9706.7749999999996,null,null,null,null,null,null,null,null,null,null,null,null,null,null,null,null,null,null,null,null,null,null,null,null,null,null,null,null,null,null,null,null,null,null,null,null,null,null,null,null,null,null,null,null,null,null,null,null,null,null,null,null,null,null,null,null,null,null,null,null,null,null,null,null,null,null,null,null,null,null,null,null,null,null,79,79,"14-0022",22333.265451812746]
["43-0007","The Chemours Company FC, LLC ","Non-EGU",440.9,7.34,39.06,30.17,4.2300000000000004,74.430000000000007,4.49,72.66,49.19,1518.14,null,null,null,null,537.87,1702.7400000000002,33.5,53.599998474121094,109285.50640182497,115285.50640182497,115285.50640182497,null,null,null,null,null,null,null,null,null,null,null,null,null,null,null,null,null,null,null,null,null,null,null,null,null,null,null,null,null,null,null,null,null,null,null,null,null,null,null,null,null,null,null,null,null,null,null,null,null,null,null,null,null,null,null,null,null,null,null,null,null,null,null,null,null,null,null,null,null,null,null,null,null,null,80,80,"06-0215",21803.159469604492]
["43-0010","Hood Container Corporation","Non-EGU",379.73,null,576.4,null,501.35,null,863.9,null,null,null,50.8,null,1.5,null,2373.6800000000003,0,33.5,53.599998474121094,79518.280000000013,85518.280000000013,85518.280000000013,null,null,null,null,null,null,null,null,null,null,null,null,null,null,null,null,null,null,null,null,null,null,null,null,null,null,null,null,null,null,null,null,null,null,null,null,null,null,null,null,null,null,null,null,null,null,null,null,null,null,null,null,null,null,null,null,null,null,null,null,null,null,null,null,null,null,null,null,null,null,null,null,null,null,81,81,"39-0072",21623.123475646971]
["43-0011","Tennessee Valley Authority - Johnsonville Combustion Turbine Plant","EGU",null,21,null,3,null,20,null,245,null,8.6E-3,null,null,null,null,0,289.0086,46.900001525878906,75.040000915527344,21687.205608595275,27687.205608595275,27687.205608595275,null,null,null,null,null,null,null,null,null,null,null,null,null,null,null,null,null,null,null,null,null,null,null,null,null,null,null,null,null,null,null,null,null,null,null,null,null,null,null,null,null,null,null,null,null,null,null,null,null,null,null,null,null,null,null,null,null,null,null,null,null,null,null,null,null,null,null,null,null,null,null,null,null,null,82,82,"63-0339",21525.103878936767]
["43-0021","Prince Specialty Products LLC","Non-EGU",69.22,null,160.27000000000001,null,5.82,null,192.41,null,null,null,0,null,0,null,427.72,0,33.5,53.599998474121094,14328.62,20328.620000000003,20328.620000000003,null,null,null,null,null,null,null,null,null,null,null,null,null,null,null,null,null,null,null,null,null,null,null,null,null,null,null,null,null,null,null,null,null,null,null,null,null,null,null,null,null,null,null,null,null,null,null,null,null,null,null,null,null,null,null,null,null,null,null,null,null,null,null,null,null,null,null,null,null,null,null,null,null,null,83,83,"60-0200",21353.069484710693]
["45-0085","Ball Metalpack, LLC","Non-EGU",9.9499999999999993,null,0.13,null,249,null,18.690000000000001,null,null,null,0,null,0,null,277.77,0,33.5,53.599998474121094,9305.2950000000001,15305.295,15305.295,null,null,null,null,null,null,null,null,null,null,null,null,null,null,null,null,null,null,null,null,null,null,null,null,null,null,null,null,null,null,null,null,null,null,null,null,null,null,null,null,null,null,null,null,null,null,null,null,null,null,null,null,null,null,null,null,null,null,null,null,null,null,null,null,null,null,null,null,null,null,null,null,null,null,84,84,"52-0002",20987.9964969635]
["45-0101","Overman USA","Non-EGU",44,null,0,null,233,null,0,null,null,null,0,null,0,null,277,0,33.5,53.599998474121094,9279.5,15279.5,15279.5,null,null,null,null,null,null,null,null,null,null,null,null,null,null,null,null,null,null,null,null,null,null,null,null,null,null,null,null,null,null,null,null,null,null,null,null,null,null,null,null,null,null,null,null,null,null,null,null,null,null,null,null,null,null,null,null,null,null,null,null,null,null,null,null,null,null,null,null,null,null,null,null,null,null,85,85,"30-0132",20980.863651535034]
["47-0018","University of Tennessee","Non-EGU",null,5.21,null,1.27,null,9.67,null,75.06,null,null,null,null,null,null,0,91.210000000000008,33.5,53.599998474121094,4888.8558608245858,10888.855860824586,10888.855860824586,null,null,null,null,null,null,null,null,null,null,null,null,null,null,null,null,null,null,null,null,null,null,null,null,null,null,null,null,null,null,null,null,null,null,null,null,null,null,null,null,null,null,null,null,null,null,null,null,null,null,null,null,null,null,null,null,null,null,null,null,null,null,null,null,null,null,null,null,null,null,null,null,null,null,86,86,"05-0199",20512.901512908935]
["49-0068","Marvin Windows of Tennessee, Inc.","Non-EGU",77.459999999999994,null,0,null,194.47,null,0,null,null,null,0,null,0,null,271.93,0,33.5,53.599998474121094,9109.6550000000007,15109.655000000001,15109.655000000001,null,null,null,null,null,null,null,null,null,null,null,null,null,null,null,null,null,null,null,null,null,null,null,null,null,null,null,null,null,null,null,null,null,null,null,null,null,null,null,null,null,null,null,null,null,null,null,null,null,null,null,null,null,null,null,null,null,null,null,null,null,null,null,null,null,null,null,null,null,null,null,null,null,null,87,87,"73-0125",20478.894714050293]
["50-0003","GT Refractory Solutions LLC","Non-EGU",215,null,522,null,47,null,27,null,null,null,0,null,0,null,811,0,33.5,53.599998474121094,27168.5,33168.5,33168.5,null,null,null,null,null,null,null,null,null,null,null,null,null,null,null,null,null,null,null,null,null,null,null,null,null,null,null,null,null,null,null,null,null,null,null,null,null,null,null,null,null,null,null,null,null,null,null,null,null,null,null,null,null,null,null,null,null,null,null,null,null,null,null,null,null,null,null,null,null,null,null,null,null,null,88,88,"53-0090",20416.882316131589]
["50-0054","Graphic Packaging International, LLC","Non-EGU",104.44,null,null,null,null,21.73,null,null,null,null,null,null,null,null,104.44,21.73,33.5,53.599998474121094,4663.4679668426506,10663.467966842651,10663.467966842651,null,null,null,null,null,null,null,null,null,null,null,null,null,null,null,null,null,null,null,null,null,null,null,null,null,null,null,null,null,null,null,null,null,null,null,null,null,null,null,null,null,null,null,null,null,null,null,null,null,null,null,null,null,null,null,null,null,null,null,null,null,null,null,null,null,null,null,null,null,null,null,null,null,null,89,89,"30-0001",20374.373817558291]
["51-0031","Oliver Fiberglass Products","Non-EGU",null,6,null,null,null,43.13,null,null,null,null,null,null,null,null,0,49.13,33.5,53.599998474121094,2633.3679250335695,8633.3679250335699,9000,null,null,null,null,null,null,null,null,null,null,null,null,null,null,null,null,null,null,null,null,null,null,null,null,null,null,null,null,null,null,null,null,null,null,null,null,null,null,null,null,null,null,null,null,null,null,null,null,null,null,null,null,null,null,null,null,null,null,null,null,null,null,null,null,null,null,null,null,null,null,null,null,null,null,90,90,"57-0254",19913.877016296385]
["52-0002","Goodman Company, L.P.","Non-EGU",51.9,null,0,null,231.1,null,16.7,null,null,null,0,null,0,null,299.7,0,33.5,53.599998474121094,10039.949999999999,16039.949999999999,16039.949999999999,null,null,null,null,null,null,null,null,null,null,null,null,null,null,null,null,null,null,null,null,null,null,null,null,null,null,null,null,null,null,null,null,null,null,null,null,null,null,null,null,null,null,null,null,null,null,null,null,null,null,null,null,null,null,null,null,null,null,null,null,null,null,null,null,null,null,null,null,null,null,null,null,null,null,91,91,"45-0085",19891.277233772278]
["52-0085","Latham Pool Products, Inc. dba Viking Pools - TN","Non-EGU",null,8.7189999999999994,null,null,null,43.73,null,null,null,null,null,null,null,null,0,52.448999999999998,33.5,53.599998474121094,2811.2663199691769,8811.2663199691779,9000,null,null,null,null,null,null,null,null,null,null,null,null,null,null,null,null,null,null,null,null,null,null,null,null,null,null,null,null,null,null,null,null,null,null,null,null,null,null,null,null,null,null,null,null,null,null,null,null,null,null,null,null,null,null,null,null,null,null,null,null,null,null,null,null,null,null,null,null,null,null,null,null,null,null,92,92,"45-0101",19852.769535064697]
["53-0003","Viskase Companies Inc","Non-EGU",11.46,null,60.61,null,1168.48,null,41.44,null,null,null,0,null,285,null,1566.99,0,33.5,53.599998474121094,52494.165000000001,58494.165000000001,58494.165000000001,null,null,null,null,null,null,null,null,null,null,null,null,null,null,null,null,null,null,null,null,null,null,null,null,null,null,null,null,null,null,null,null,null,null,null,null,null,null,null,null,null,null,null,null,null,null,null,null,null,null,null,null,null,null,null,null,null,null,null,null,null,null,null,null,null,null,null,null,null,null,null,null,null,null,93,93,"16-0113",19602.719543457031]
["53-0081","Tate & Lyle Ingredients Americas LLC","Non-EGU",267.3,null,247,null,413.4,null,642.79999999999995,null,null,null,0.5,null,0,null,1571,0,33.5,53.599998474121094,52628.5,58628.5,58628.5,null,null,null,null,null,null,null,null,null,null,null,null,null,null,null,null,null,null,null,null,null,null,null,null,null,null,null,null,null,null,null,null,null,null,null,null,null,null,null,null,null,null,null,null,null,null,null,null,null,null,null,null,null,null,null,null,null,null,null,null,null,null,null,null,null,null,null,null,null,null,null,null,null,null,94,94,"49-0068",19599.218843574527]
["53-0090","Hubbell Lenoir City, Inc.","Non-EGU",63.75,null,0,null,224.53,null,0,null,null,null,0,null,0,null,288.27999999999997,0,33.5,53.599998474121094,9657.3799999999992,15657.38,15657.38,null,null,null,null,null,null,null,null,null,null,null,null,null,null,null,null,null,null,null,null,null,null,null,null,null,null,null,null,null,null,null,null,null,null,null,null,null,null,null,null,null,null,null,null,null,null,null,null,null,null,null,null,null,null,null,null,null,null,null,null,null,null,null,null,null,null,null,null,null,null,null,null,null,null,95,95,"62-0125",19584.215844078062]
["53-0093","Kimberly-Clark Corporation, Loudon Mill","Non-EGU",242.25,1.99,181.64,0.23,207.1,2.11,93.31,38.299999999999997,null,null,null,null,null,null,724.3,42.629999999999995,33.5,53.599998474121094,26549.017934951782,32549.017934951782,32549.017934951782,null,null,null,null,null,null,null,null,null,null,null,null,null,null,null,null,null,null,null,null,null,null,null,null,null,null,null,null,null,null,null,null,null,null,null,null,null,null,null,null,null,null,null,null,null,null,null,null,null,null,null,null,null,null,null,null,null,null,null,null,null,null,null,null,null,null,null,null,null,null,null,null,null,null,96,96,"23-0182",18919.582966384889]
["53-0098","Malibu Boats, LLC","Non-EGU",69,null,null,null,null,191,null,null,null,null,null,null,null,null,69,191,33.5,53.599998474121094,12549.099708557129,18549.099708557129,18549.099708557129,null,null,null,null,null,null,null,null,null,null,null,null,null,null,null,null,null,null,null,null,null,null,null,null,null,null,null,null,null,null,null,null,null,null,null,null,null,null,null,null,null,null,null,null,null,null,null,null,null,null,null,null,null,null,null,null,null,null,null,null,null,null,null,null,null,null,null,null,null,null,null,null,null,null,97,97,"11-0039",18482.495581054689]
["53-0110","Santek Waste Services, Inc. dba Loudon County (Matlock Bend) Landfill","Non-EGU",null,null,null,null,null,11.44,null,null,null,null,null,null,null,5.09,0,16.53,33.5,53.599998474121094,886.00797477722176,6886.0079747772215,9000,null,null,null,null,null,null,null,null,null,null,null,null,null,null,null,null,null,null,null,null,null,null,null,null,null,null,null,null,null,null,null,null,null,null,null,null,null,null,null,null,null,null,null,null,null,null,null,null,null,null,null,null,null,null,null,null,null,null,null,null,null,null,null,null,null,null,null,null,null,null,null,null,null,null,98,98,"22-0177",18147.035490417478]
["54-0009","Evonik Corporation","Non-EGU",310.60000000000002,63.76,9.1999999999999993,1.59,6.2,0.92,83.2,17,null,null,null,null,null,null,409.2,83.27,33.5,53.599998474121094,18171.471872940063,24171.471872940063,24171.471872940063,null,null,null,null,null,null,null,null,null,null,null,null,null,null,null,null,null,null,null,null,null,null,null,null,null,null,null,null,null,null,null,null,null,null,null,null,null,null,null,null,null,null,null,null,null,null,null,null,null,null,null,null,null,null,null,null,null,null,null,null,null,null,null,null,null,null,null,null,null,null,null,null,null,null,99,99,"74-0102",18002.399597167969]
["54-0012","Resolute FP US Inc.","Non-EGU",681,173.4,1042,6.63,912,24.37,1172,181.61,245.2,null,254.4,null,64.5,null,4371.0999999999995,386.01,33.5,53.599998474121094,167121.98541099546,173121.98541099546,173121.98541099546,null,null,null,null,null,null,null,null,null,null,null,null,null,null,null,null,null,null,null,null,null,null,null,null,null,null,null,null,null,null,null,null,null,null,null,null,null,null,null,null,null,null,null,null,null,null,null,null,null,null,null,null,null,null,null,null,null,null,null,null,null,null,null,null,null,null,null,null,null,null,null,null,null,null,100,100,"30-0166",17915.089528147888]
["54-0132","Johns Manville, Inc.","Non-EGU",128.30000000000001,null,102.11,null,13.2,null,161,null,null,null,4.6500000000000004,null,0,null,409.26,0,33.5,53.599998474121094,13710.21,19710.21,19710.21,null,null,null,null,null,null,null,null,null,null,null,null,null,null,null,null,null,null,null,null,null,null,null,null,null,null,null,null,null,null,null,null,null,null,null,null,null,null,null,null,null,null,null,null,null,null,null,null,null,null,null,null,null,null,null,null,null,null,null,null,null,null,null,null,null,null,null,null,null,null,null,null,null,null,101,101,"57-0286",17782.355604553224]
["54-0167","Johns Manville Corporation","Non-EGU",132.19999999999999,null,8.8000000000000007,null,288.10000000000002,null,132.46,null,null,null,0,null,0,null,561.56000000000006,0,33.5,53.599998474121094,18812.260000000002,24812.260000000002,24812.260000000002,null,null,null,null,null,null,null,null,null,null,null,null,null,null,null,null,null,null,null,null,null,null,null,null,null,null,null,null,null,null,null,null,null,null,null,null,null,null,null,null,null,null,null,null,null,null,null,null,null,null,null,null,null,null,null,null,null,null,null,null,null,null,null,null,null,null,null,null,null,null,null,null,null,null,102,102,"63-0377",17641.827509269715]
["54-0174","Waupaca Foundry, Inc. Plant 6","Non-EGU",297.24,null,96.34,null,369,null,200.36,null,null,null,1.4,null,0,null,964.34,0,33.5,53.599998474121094,32305.39,38305.39,38305.39,null,null,null,null,null,null,null,null,null,null,null,null,null,null,null,null,null,null,null,null,null,null,null,null,null,null,null,null,null,null,null,null,null,null,null,null,null,null,null,null,null,null,null,null,null,null,null,null,null,null,null,null,null,null,null,null,null,null,null,null,null,null,null,null,null,null,null,null,null,null,null,null,null,null,103,103,"82-0153",17533.805912895201]
["54-0176","Dynasty Spas, Inc.","Non-EGU",null,0.04,null,null,null,23.79,null,null,null,null,null,null,null,null,0,23.83,33.5,53.599998474121094,1277.2879636383057,7277.2879636383059,9000,null,null,null,null,null,null,null,null,null,null,null,null,null,null,null,null,null,null,null,null,null,null,null,null,null,null,null,null,null,null,null,null,null,null,null,null,null,null,null,null,null,null,null,null,null,null,null,null,null,null,null,null,null,null,null,null,null,null,null,null,null,null,null,null,null,null,null,null,null,null,null,null,null,null,104,104,"40-0083",17527.804713096619]
["54-0188","Meadow Branch Landfill - Environmental Trust Company","Non-EGU",null,71.290000000000006,null,0.01,null,4.8,null,0.16,null,2.59,null,null,null,null,0,78.850000000000009,33.5,53.599998474121094,4226.359879684449,10226.359879684449,10226.359879684449,null,null,null,null,null,null,null,null,null,null,null,null,null,null,null,null,null,null,null,null,null,null,null,null,null,null,null,null,null,null,null,null,null,null,null,null,null,null,null,null,null,null,null,null,null,null,null,null,null,null,null,null,null,null,null,null,null,null,null,null,null,null,null,null,null,null,null,null,null,null,null,null,null,null,105,105,"76-0071",17437.258120193481]
["56-0004","Columbia Gulf Transmission Co. Hartsville Compressor Station","Non-EGU",null,1.29,null,0.13,null,2.15,null,28.82,null,0.15,null,null,null,null,0,32.54,33.5,53.599998474121094,1744.1439503479003,7744.1439503479005,9000,null,null,null,null,null,null,null,null,null,null,null,null,null,null,null,null,null,null,null,null,null,null,null,null,null,null,null,null,null,null,null,null,null,null,null,null,null,null,null,null,null,null,null,null,null,null,null,null,null,null,null,null,null,null,null,null,null,null,null,null,null,null,null,null,null,null,null,null,null,null,null,null,null,null,106,106,"40-0077",17343.767919273378]
["57-0020","Armstrong Flooring, Inc.","Non-EGU",null,3.01,null,0.06,null,7.26,null,2.8,null,null,null,null,null,null,0,13.129999999999999,33.5,53.599998474121094,703.76797996520986,6703.7679799652096,9000,null,null,null,null,null,null,null,null,null,null,null,null,null,null,null,null,null,null,null,null,null,null,null,null,null,null,null,null,null,null,null,null,null,null,null,null,null,null,null,null,null,null,null,null,null,null,null,null,null,null,null,null,null,null,null,null,null,null,null,null,null,null,null,null,null,null,null,null,null,null,null,null,null,null,107,107,"59-0133",17252.249622344971]
["57-0024","Owens Corning Composite Materials, LLC","Non-EGU",4.5999999999999996,106.62,0.13,106.56,0.49,125.67,13.51,84.62,null,9.44,null,null,null,null,18.73,432.91,33.5,53.599998474121094,23831.430339431765,29831.430339431765,29831.430339431765,null,null,null,null,null,null,null,null,null,null,null,null,null,null,null,null,null,null,null,null,null,null,null,null,null,null,null,null,null,null,null,null,null,null,null,null,null,null,null,null,null,null,null,null,null,null,null,null,null,null,null,null,null,null,null,null,null,null,null,null,null,null,null,null,null,null,null,null,null,null,null,null,null,null,108,108,"06-0014",17214.742123603821]
["57-0035","Pringles Manufacturing Company","Non-EGU",181.43,null,6.82,null,169.8,null,211.34,null,null,null,0,null,0,null,569.39,0,33.5,53.599998474121094,19074.564999999999,25074.564999999999,25074.564999999999,null,null,null,null,null,null,null,null,null,null,null,null,null,null,null,null,null,null,null,null,null,null,null,null,null,null,null,null,null,null,null,null,null,null,null,null,null,null,null,null,null,null,null,null,null,null,null,null,null,null,null,null,null,null,null,null,null,null,null,null,null,null,null,null,null,null,null,null,null,null,null,null,null,null,109,109,"71-0020",17159.231025466921]
["57-0189","Gerdau Ameristeel US Inc.","Non-EGU",8.3000000000000007,60.52,0.4,19.13,1.1000000000000001,91,31,159.85,null,null,null,0.16,null,null,40.799999999999997,330.66,33.5,53.599998474121094,19090.175495452881,25090.175495452881,25090.175495452881,null,null,null,null,null,null,null,null,null,null,null,null,null,null,null,null,null,null,null,null,null,null,null,null,null,null,null,null,null,null,null,null,null,null,null,null,null,null,null,null,null,null,null,null,null,null,null,null,null,null,null,null,null,null,null,null,null,null,null,null,null,null,null,null,null,null,null,null,null,null,null,null,null,null,110,110,"37-0076",17132.225626373292]
["57-0221","Foam Fabricators, Inc.","Non-EGU",null,0.17,null,0.01,null,98.4,null,2.17,null,null,null,null,null,null,0,100.75000000000001,33.5,53.599998474121094,5400.1998462677011,11400.1998462677,11400.1998462677,null,null,null,null,null,null,null,null,null,null,null,null,null,null,null,null,null,null,null,null,null,null,null,null,null,null,null,null,null,null,null,null,null,null,null,null,null,null,null,null,null,null,null,null,null,null,null,null,null,null,null,null,null,null,null,null,null,null,null,null,null,null,null,null,null,null,null,null,null,null,null,null,null,null,111,111,"18-0090",17124.780033302308]
["57-0254","Sonoco Products Company","Non-EGU",null,null,null,null,null,173.88,null,null,null,null,null,null,null,null,0,173.88,33.5,53.599998474121094,9319.9677346801764,15319.967734680176,15319.967734680176,null,null,null,null,null,null,null,null,null,null,null,null,null,null,null,null,null,null,null,null,null,null,null,null,null,null,null,null,null,null,null,null,null,null,null,null,null,null,null,null,null,null,null,null,null,null,null,null,null,null,null,null,null,null,null,null,null,null,null,null,null,null,null,null,null,null,null,null,null,null,null,null,null,null,112,112,"22-0112",17045.160136642458]
["57-0259","Madison County Development, LLC dba Jackson Madison County Landfill","Non-EGU",null,11.29,null,20.68,null,3.0700000000000003,null,9.7800000000000011,null,null,null,null,null,null,0,44.82,33.5,53.599998474121094,2402.3519316101074,8402.3519316101083,9000,null,null,null,null,null,null,null,null,null,null,null,null,null,null,null,null,null,null,null,null,null,null,null,null,null,null,null,null,null,null,null,null,null,null,null,null,null,null,null,null,null,null,null,null,null,null,null,null,null,null,null,null,null,null,null,null,null,null,null,null,null,null,null,null,null,null,null,null,null,null,null,null,null,null,113,113,"37-0001",16830.386465652467]
["57-0286","Missouri Smelting Technology, Inc.","Non-EGU",72.599999999999994,null,1.5,null,45.3,null,66.400000000000006,null,null,null,49.8,null,0,null,235.60000000000002,0,33.5,53.599998474121094,7892.6,13892.6,13892.6,null,null,null,null,null,null,null,null,null,null,null,null,null,null,null,null,null,null,null,null,null,null,null,null,null,null,null,null,null,null,null,null,null,null,null,null,null,null,null,null,null,null,null,null,null,null,null,null,null,null,null,null,null,null,null,null,null,null,null,null,null,null,null,null,null,null,null,null,null,null,null,null,null,null,114,114,"94-0072",16673.591364974978]
["58-0011","Lodge Manufacturing Company","Non-EGU",150.97999999999999,null,0.6,null,204,null,1.2,null,null,null,2.4,null,0,null,359.17999999999995,0,33.5,53.599998474121094,12032.529999999999,18032.53,18032.53,null,null,null,null,null,null,null,null,null,null,null,null,null,null,null,null,null,null,null,null,null,null,null,null,null,null,null,null,null,null,null,null,null,null,null,null,null,null,null,null,null,null,null,null,null,null,null,null,null,null,null,null,null,null,null,null,null,null,null,null,null,null,null,null,null,null,null,null,null,null,null,null,null,null,115,115,"26-0086",16522.629558563232]
["59-0059","East Tennessee Natural Gas, LLC dba Lewisburg Compressor Station 3206","Non-EGU",1,null,1.93,null,20.5,null,73.900000000000006,null,null,null,0,null,0,null,97.330000000000013,0,33.5,53.599998474121094,3260.5550000000003,9260.5550000000003,9260.5550000000003,null,null,null,null,null,null,null,null,null,null,null,null,null,null,null,null,null,null,null,null,null,null,null,null,null,null,null,null,null,null,null,null,null,null,null,null,null,null,null,null,null,null,null,null,null,null,null,null,null,null,null,null,null,null,null,null,null,null,null,null,null,null,null,null,null,null,null,null,null,null,null,null,null,null,116,116,"15-0009",16388.576951332092]
["59-0061","Calsonic Kansei North America, Inc.","Non-EGU",null,0.221,null,null,null,23.766999999999999,null,null,null,null,null,null,null,null,0,23.988,33.5,53.599998474121094,1285.7567633972167,7285.7567633972167,9000,null,null,null,null,null,null,null,null,null,null,null,null,null,null,null,null,null,null,null,null,null,null,null,null,null,null,null,null,null,null,null,null,null,null,null,null,null,null,null,null,null,null,null,null,null,null,null,null,null,null,null,null,null,null,null,null,null,null,null,null,null,null,null,null,null,null,null,null,null,null,null,null,null,null,117,117,"38-0053",15962.489582061768]
["59-0066","Trison Coatings Inc","Non-EGU",11.3,null,null,null,null,0.69,null,null,null,null,null,null,null,null,11.3,0.69,33.5,53.599998474121094,415.53399894714357,6415.5339989471431,9000,null,null,null,null,null,null,null,null,null,null,null,null,null,null,null,null,null,null,null,null,null,null,null,null,null,null,null,null,null,null,null,null,null,null,null,null,null,null,null,null,null,null,null,null,null,null,null,null,null,null,null,null,null,null,null,null,null,null,null,null,null,null,null,null,null,null,null,null,null,null,null,null,null,null,118,118,"01-0114",15847.307312660218]
["59-0086","Cedar Ridge Landfill, Inc.","Non-EGU",null,1.1100000000000001,null,1.32,null,5.96,null,2.61,null,null,null,null,null,null,0,11,33.5,53.599998474121094,589.59998321533203,6589.599983215332,9000,null,null,null,null,null,null,null,null,null,null,null,null,null,null,null,null,null,null,null,null,null,null,null,null,null,null,null,null,null,null,null,null,null,null,null,null,null,null,null,null,null,null,null,null,null,null,null,null,null,null,null,null,null,null,null,null,null,null,null,null,null,null,null,null,null,null,null,null,null,null,null,null,null,null,119,119,"72-0116",15324.730208816529]
["59-0133","Comfort Research, LLC","Non-EGU",0,null,0,null,225,null,0,null,null,null,0,null,0,null,225,0,33.5,53.599998474121094,7537.5,13537.5,13537.5,null,null,null,null,null,null,null,null,null,null,null,null,null,null,null,null,null,null,null,null,null,null,null,null,null,null,null,null,null,null,null,null,null,null,null,null,null,null,null,null,null,null,null,null,null,null,null,null,null,null,null,null,null,null,null,null,null,null,null,null,null,null,null,null,null,null,null,null,null,null,null,null,null,null,120,120,"30-0190",14871.773702239991]
["60-0011","Mersen USA GSTN Corporation","Non-EGU",696.5,null,125.2,null,114.8,null,56,null,null,null,0,null,10,null,1002.5,0,33.5,53.599998474121094,33583.75,39583.75,39583.75,null,null,null,null,null,null,null,null,null,null,null,null,null,null,null,null,null,null,null,null,null,null,null,null,null,null,null,null,null,null,null,null,null,null,null,null,null,null,null,null,null,null,null,null,null,null,null,null,null,null,null,null,null,null,null,null,null,null,null,null,null,null,null,null,null,null,null,null,null,null,null,null,null,null,121,121,"01-0170",14854.212628555299]
["60-0095","Columbia Gulf Transmission Company Hamps","Non-EGU",null,6.05,null,0.21,null,12.39,null,357.71,null,5.56,null,null,null,null,0,381.91999999999996,33.5,53.599998474121094,20470.911417236326,26470.911417236326,26470.911417236326,null,null,null,null,null,null,null,null,null,null,null,null,null,null,null,null,null,null,null,null,null,null,null,null,null,null,null,null,null,null,null,null,null,null,null,null,null,null,null,null,null,null,null,null,null,null,null,null,null,null,null,null,null,null,null,null,null,null,null,null,null,null,null,null,null,null,null,null,null,null,null,null,null,null,122,122,"92-0101",14808.261004371643]
["60-0132","General Motors LLC Spring Hill Manufacturing","Non-EGU",null,21.55,null,0.2,null,441.3,null,33.29,null,null,null,null,null,null,0,496.34000000000003,33.5,53.599998474121094,26603.823242645267,32603.823242645267,32603.823242645267,null,null,null,null,null,null,null,null,null,null,null,null,null,null,null,null,null,null,null,null,null,null,null,null,null,null,null,null,null,null,null,null,null,null,null,null,null,null,null,null,null,null,null,null,null,null,null,null,null,null,null,null,null,null,null,null,null,null,null,null,null,null,null,null,null,null,null,null,null,null,null,null,null,null,123,123,"90-0405",14531.705713653564]
["60-0161","Swarco Industries","Non-EGU",0,null,0,null,169,null,0,null,null,null,0,null,0,null,169,0,33.5,53.599998474121094,5661.5,11661.5,11661.5,null,null,null,null,null,null,null,null,null,null,null,null,null,null,null,null,null,null,null,null,null,null,null,null,null,null,null,null,null,null,null,null,null,null,null,null,null,null,null,null,null,null,null,null,null,null,null,null,null,null,null,null,null,null,null,null,null,null,null,null,null,null,null,null,null,null,null,null,null,null,null,null,null,null,124,124,"03-0045",14521.329442520142]
["60-0184","Sonoco Protective Solutions, Inc.","Non-EGU",null,0.89,null,0.09,null,13.88,null,7.19,null,null,null,null,null,null,0,22.05,33.5,53.599998474121094,1181.8799663543703,7181.8799663543705,9000,null,null,null,null,null,null,null,null,null,null,null,null,null,null,null,null,null,null,null,null,null,null,null,null,null,null,null,null,null,null,null,null,null,null,null,null,null,null,null,null,null,null,null,null,null,null,null,null,null,null,null,null,null,null,null,null,null,null,null,null,null,null,null,null,null,null,null,null,null,null,null,null,null,null,125,125,"60-0161",14451.689716339111]
["60-0200","Sekisui Plastics USA Inc ","Non-EGU",0,null,0,null,307,null,0,null,null,null,0,null,0,null,307,0,33.5,53.599998474121094,10284.5,16284.5,16284.5,null,null,null,null,null,null,null,null,null,null,null,null,null,null,null,null,null,null,null,null,null,null,null,null,null,null,null,null,null,null,null,null,null,null,null,null,null,null,null,null,null,null,null,null,null,null,null,null,null,null,null,null,null,null,null,null,null,null,null,null,null,null,null,null,null,null,null,null,null,null,null,null,null,null,126,126,"63-0278",14168.633125839231]
["62-0089","Sea Ray Inc Tellico Facility","Non-EGU",null,113,null,null,null,null,null,null,null,8.5,null,142.6,null,null,0,264.10000000000002,33.5,53.599998474121094,14155.759597015382,20155.759597015382,20155.759597015382,null,null,null,null,null,null,null,null,null,null,null,null,null,null,null,null,null,null,null,null,null,null,null,null,null,null,null,null,null,null,null,null,null,null,null,null,null,null,null,null,null,null,null,null,null,null,null,null,null,null,null,null,null,null,null,null,null,null,null,null,null,null,null,null,null,null,null,null,null,null,null,null,null,null,127,127,"84-0067",14134.832858734131]
["62-0090","Havco Wood Products, LLC","Non-EGU",247,null,1,null,97,null,156.1,null,null,null,7.5,null,0,null,508.6,0,33.5,53.599998474121094,17038.100000000002,23038.100000000002,23038.100000000002,null,null,null,null,null,null,null,null,null,null,null,null,null,null,null,null,null,null,null,null,null,null,null,null,null,null,null,null,null,null,null,null,null,null,null,null,null,null,null,null,null,null,null,null,null,null,null,null,null,null,null,null,null,null,null,null,null,null,null,null,null,null,null,null,null,null,null,null,null,null,null,null,null,null,128,128,"90-0039",14082.819860916137]
["62-0096","Yamaha Jet Boat Manufacturing USA, Inc.","Non-EGU",null,29.1,null,null,null,259.2,null,null,null,8.6999999999999993,null,179.1,null,null,0,476.1,33.5,53.599998474121094,25518.959273529053,31518.959273529053,31518.959273529053,null,null,null,null,null,null,null,null,null,null,null,null,null,null,null,null,null,null,null,null,null,null,null,null,null,null,null,null,null,null,null,null,null,null,null,null,null,null,null,null,null,null,null,null,null,null,null,null,null,null,null,null,null,null,null,null,null,null,null,null,null,null,null,null,null,null,null,null,null,null,null,null,null,null,129,129,"57-0221",14062.01466178894]
["62-0102","Bryant Boats, LLC","Non-EGU",36,null,0,null,100,null,0,null,null,null,0,null,0,null,136,0,33.5,53.599998474121094,4556,10556,10556,null,null,null,null,null,null,null,null,null,null,null,null,null,null,null,null,null,null,null,null,null,null,null,null,null,null,null,null,null,null,null,null,null,null,null,null,null,null,null,null,null,null,null,null,null,null,null,null,null,null,null,null,null,null,null,null,null,null,null,null,null,null,null,null,null,null,null,null,null,null,null,null,null,null,130,130,"40-0033",13787.056838645934]
["62-0107","MasterCraft Boat Company, Inc.","Non-EGU",null,26.3,null,null,null,185.5,null,null,null,null,null,null,null,null,0,211.8,33.5,53.599998474121094,11352.479676818848,17352.479676818846,17352.479676818846,null,null,null,null,null,null,null,null,null,null,null,null,null,null,null,null,null,null,null,null,null,null,null,null,null,null,null,null,null,null,null,null,null,null,null,null,null,null,null,null,null,null,null,null,null,null,null,null,null,null,null,null,null,null,null,null,null,null,null,null,null,null,null,null,null,null,null,null,null,null,null,null,null,null,131,131,"05-0183",13623.524144134521]
["62-0125","Mastermelt America, LLC","Non-EGU",101.12,null,99.9,null,61.3,null,8.99,null,null,null,0.32,null,0,null,271.63,0,33.5,53.599998474121094,9099.6049999999996,15099.605,15099.605,null,null,null,null,null,null,null,null,null,null,null,null,null,null,null,null,null,null,null,null,null,null,null,null,null,null,null,null,null,null,null,null,null,null,null,null,null,null,null,null,null,null,null,null,null,null,null,null,null,null,null,null,null,null,null,null,null,null,null,null,null,null,null,null,null,null,null,null,null,null,null,null,null,null,132,132,"90-0232",13599.019244956969]
["62-0166","MacLean Power, LLC dba MacLean Highline","Non-EGU",6,null,0,null,0.3,null,0,null,null,null,98.8,null,0,null,105.1,0,33.5,53.599998474121094,3520.85,9520.85,9520.85,null,null,null,null,null,null,null,null,null,null,null,null,null,null,null,null,null,null,null,null,null,null,null,null,null,null,null,null,null,null,null,null,null,null,null,null,null,null,null,null,null,null,null,null,null,null,null,null,null,null,null,null,null,null,null,null,null,null,null,null,null,null,null,null,null,null,null,null,null,null,null,null,null,null,133,133,"71-0148",13444.260287704468]
["63-0092","Nyrstar Clarksville Inc.","Non-EGU",null,73.5,null,306.3,null,0.16,null,10.6,null,0.05,null,null,null,2.65,0,393.26000000000005,33.5,53.599998474121094,21078.735399932862,27078.735399932862,27078.735399932862,null,null,null,null,null,null,null,null,null,null,null,null,null,null,null,null,null,null,null,null,null,null,null,null,null,null,null,null,null,null,null,null,null,null,null,null,null,null,null,null,null,null,null,null,null,null,null,null,null,null,null,null,null,null,null,null,null,null,null,null,null,null,null,null,null,null,null,null,null,null,null,null,null,null,134,134,"26-0079",13377.474952392578]
["63-0097","HQ, 101st Airborne Division and Fort Campbell","Non-EGU",null,0.61099999999999999,null,0.16700000000000001,null,0.26200000000000001,null,5.84,null,null,null,null,null,1.89,0,8.77,33.5,53.599998474121094,470.07198661804199,6470.0719866180416,9000,null,null,null,null,null,null,null,null,null,null,null,null,null,null,null,null,null,null,null,null,null,null,null,null,null,null,null,null,null,null,null,null,null,null,null,null,null,null,null,null,null,null,null,null,null,null,null,null,null,null,null,null,null,null,null,null,null,null,null,null,null,null,null,null,null,null,null,null,null,null,null,null,null,null,135,135,"47-0018",13298.623893814089]
["63-0123","Precision Printing and Packaging, Inc. dba Multi-Color Corporation","Non-EGU",9.4,null,17.98,null,366.59,null,23.99,null,null,null,0,null,0,null,417.96,0,33.5,53.599998474121094,14001.66,20001.66,20001.66,null,null,null,null,null,null,null,null,null,null,null,null,null,null,null,null,null,null,null,null,null,null,null,null,null,null,null,null,null,null,null,null,null,null,null,null,null,null,null,null,null,null,null,null,null,null,null,null,null,null,null,null,null,null,null,null,null,null,null,null,null,null,null,null,null,null,null,null,null,null,null,null,null,null,136,136,"06-0085",13151.429759979248]
["63-0129","Bi-County Solid Waste Management System","Non-EGU",null,null,null,null,null,6.8,null,null,null,null,null,null,null,null,0,6.8,33.5,53.599998474121094,364.4799896240234,6364.4799896240238,9000,null,null,null,null,null,null,null,null,null,null,null,null,null,null,null,null,null,null,null,null,null,null,null,null,null,null,null,null,null,null,null,null,null,null,null,null,null,null,null,null,null,null,null,null,null,null,null,null,null,null,null,null,null,null,null,null,null,null,null,null,null,null,null,null,null,null,null,null,null,null,null,null,null,null,137,137,"66-0101",13119.379101333618]
["63-0135","Florim USA, Inc.","Non-EGU",205.5,null,153.97999999999999,null,97.5,null,89.5,null,null,null,7.38,null,0,null,553.86,0,33.5,53.599998474121094,18554.310000000001,24554.31,24554.31,null,null,null,null,null,null,null,null,null,null,null,null,null,null,null,null,null,null,null,null,null,null,null,null,null,null,null,null,null,null,null,null,null,null,null,null,null,null,null,null,null,null,null,null,null,null,null,null,null,null,null,null,null,null,null,null,null,null,null,null,null,null,null,null,null,null,null,null,null,null,null,null,null,null,138,138,"35-0001",13011.401764678954]
["63-0278","Bi-County Gas Producers, LLC","Non-EGU",42.3,null,0.08,null,40.32,null,80.64,null,null,null,0,null,0,null,163.33999999999997,0,33.5,53.599998474121094,5471.8899999999994,11471.89,11471.89,null,null,null,null,null,null,null,null,null,null,null,null,null,null,null,null,null,null,null,null,null,null,null,null,null,null,null,null,null,null,null,null,null,null,null,null,null,null,null,null,null,null,null,null,null,null,null,null,null,null,null,null,null,null,null,null,null,null,null,null,null,null,null,null,null,null,null,null,null,null,null,null,null,null,139,139,"50-0054",12961.878751754761]
["63-0320","Hankook Tire Manufacturing Tennessee, LP dba Hankook Tire Tennessee Plant","Non-EGU",92.63,null,34.28,null,648.47,null,34.26,null,null,null,0,null,0,null,809.64,0,33.5,53.599998474121094,27122.94,33122.94,33122.94,null,null,null,null,null,null,null,null,null,null,null,null,null,null,null,null,null,null,null,null,null,null,null,null,null,null,null,null,null,null,null,null,null,null,null,null,null,null,null,null,null,null,null,null,null,null,null,null,null,null,null,null,null,null,null,null,null,null,null,null,null,null,null,null,null,null,null,null,null,null,null,null,null,null,140,140,"15-0005",12821.863871040343]
["63-0339","Foxman LLC dba Foxman â€“ Clarksville Data Center","Non-EGU",30.99,null,2.95,null,27.5,null,249,null,null,null,0,null,0,null,310.44,0,33.5,53.599998474121094,10399.74,16399.739999999998,16399.739999999998,null,null,null,null,null,null,null,null,null,null,null,null,null,null,null,null,null,null,null,null,null,null,null,null,null,null,null,null,null,null,null,null,null,null,null,null,null,null,null,null,null,null,null,null,null,null,null,null,null,null,null,null,null,null,null,null,null,null,null,null,null,null,null,null,null,null,null,null,null,null,null,null,null,null,141,141,"62-0102",12801.359771728516]
["63-0377","LG Electronics USA, Inc.","Non-EGU",17.309999999999999,null,0.14000000000000001,null,208.9,null,6.44,null,null,null,0,null,0,null,232.79,0,33.5,53.599998474121094,7798.4650000000001,13798.465,13798.465,null,null,null,null,null,null,null,null,null,null,null,null,null,null,null,null,null,null,null,null,null,null,null,null,null,null,null,null,null,null,null,null,null,null,null,null,null,null,null,null,null,null,null,null,null,null,null,null,null,null,null,null,null,null,null,null,null,null,null,null,null,null,null,null,null,null,null,null,null,null,null,null,null,null,142,142,"91-0075",12461.291783142089]
["64-0001","Jack Daniel Distillery, Lem Motlow Proprietor, Inc.","Non-EGU",63.165999999999997,4.7560000000000002,2.04,2.6779999999999999,8.6,883.72,40.94,68.978999999999999,null,null,null,null,null,null,114.746,960.13300000000004,33.5,53.599998474121094,55307.118334953309,61307.118334953309,61307.118334953309,null,null,null,null,null,null,null,null,null,null,null,null,null,null,null,null,null,null,null,null,null,null,null,null,null,null,null,null,null,null,null,null,null,null,null,null,null,null,null,null,null,null,null,null,null,null,null,null,null,null,null,null,null,null,null,null,null,null,null,null,null,null,null,null,null,null,null,null,null,null,null,null,null,null,143,143,"65-0049",12322.263987808226]
["64-0013","Jack Daniel Distillery, Lem Motlow Proprietor","Non-EGU",7.04,null,226,null,4000,null,76.3,null,null,null,0,null,0,null,4309.34,0,33.5,53.599998474121094,144362.89000000001,150362.89000000001,150362.89000000001,null,null,null,null,null,null,null,null,null,null,null,null,null,null,null,null,null,null,null,null,null,null,null,null,null,null,null,null,null,null,null,null,null,null,null,null,null,null,null,null,null,null,null,null,null,null,null,null,null,null,null,null,null,null,null,null,null,null,null,null,null,null,null,null,null,null,null,null,null,null,null,null,null,null,144,144,"54-0188",12309.576735305787]
["65-0044","Tennessee Coatings, Inc dba Ellison Custom Coatings","Non-EGU",37.93,null,0,null,50,null,0,null,null,null,0,null,0,null,87.93,0,33.5,53.599998474121094,2945.6550000000002,8945.6550000000007,9000,null,null,null,null,null,null,null,null,null,null,null,null,null,null,null,null,null,null,null,null,null,null,null,null,null,null,null,null,null,null,null,null,null,null,null,null,null,null,null,null,null,null,null,null,null,null,null,null,null,null,null,null,null,null,null,null,null,null,null,null,null,null,null,null,null,null,null,null,null,null,null,null,null,null,145,145,"16-0010",12285.810796302794]
["65-0049","Heraeus Metal Processing, LLC","Non-EGU",60.92,null,19.38,null,15.26,null,30.86,null,null,null,0,null,0,null,126.42,0,33.5,53.599998474121094,4235.07,10235.07,10235.07,null,null,null,null,null,null,null,null,null,null,null,null,null,null,null,null,null,null,null,null,null,null,null,null,null,null,null,null,null,null,null,null,null,null,null,null,null,null,null,null,null,null,null,null,null,null,null,null,null,null,null,null,null,null,null,null,null,null,null,null,null,null,null,null,null,null,null,null,null,null,null,null,null,null,146,146,"73-0112",12261.339775085449]
["66-0101","Texas Gas Transmission, LLC dba Kenton Compressor Station","Non-EGU",null,0.06,null,0.01,null,3,null,85.9,null,null,null,null,null,null,0,88.97,33.5,53.599998474121094,4768.7918642425539,10768.791864242554,10768.791864242554,null,null,null,null,null,null,null,null,null,null,null,null,null,null,null,null,null,null,null,null,null,null,null,null,null,null,null,null,null,null,null,null,null,null,null,null,null,null,null,null,null,null,null,null,null,null,null,null,null,null,null,null,null,null,null,null,null,null,null,null,null,null,null,null,null,null,null,null,null,null,null,null,null,null,147,147,"78-0086",12081.215795898439]
["66-0113","Northwest Tennessee Disposal Corporation dba Northwest Tennessee Landfill","Non-EGU",null,13.35,null,19.64,null,5.0600000000000005,null,9.34,null,null,null,null,null,null,0,47.39,33.5,53.599998474121094,2540.1039276885986,8540.1039276885986,9000,null,null,null,null,null,null,null,null,null,null,null,null,null,null,null,null,null,null,null,null,null,null,null,null,null,null,null,null,null,null,null,null,null,null,null,null,null,null,null,null,null,null,null,null,null,null,null,null,null,null,null,null,null,null,null,null,null,null,null,null,null,null,null,null,null,null,null,null,null,null,null,null,null,null,148,148,"21-0031",12011.902347793579]
["66-0123","Green Plains Obion LLC","Non-EGU",53.46,null,97.19,null,118.56,null,151.94999999999999,null,null,null,0,null,0,null,421.16,0,33.5,53.599998474121094,14108.86,20108.86,20108.86,null,null,null,null,null,null,null,null,null,null,null,null,null,null,null,null,null,null,null,null,null,null,null,null,null,null,null,null,null,null,null,null,null,null,null,null,null,null,null,null,null,null,null,null,null,null,null,null,null,null,null,null,null,null,null,null,null,null,null,null,null,null,null,null,null,null,null,null,null,null,null,null,null,null,149,149,"30-0165",11981.195799255373]
["66-0185","ECM of Ridgely, LLC","Non-EGU",0,null,0.49,null,4.5999999999999996,null,0,null,null,null,4.41,null,0,null,9.5,0,33.5,53.599998474121094,318.25,6318.25,9000,null,null,null,null,null,null,null,null,null,null,null,null,null,null,null,null,null,null,null,null,null,null,null,null,null,null,null,null,null,null,null,null,null,null,null,null,null,null,null,null,null,null,null,null,null,null,null,null,null,null,null,null,null,null,null,null,null,null,null,null,null,null,null,null,null,null,null,null,null,null,null,null,null,null,150,150,"30-0136",11936.18680076599]
["67-0054","ABC - Inoac Exterior Systems LLC","Non-EGU",81.900000000000006,null,2.19,null,245.2,null,11,null,null,null,0,null,0,null,340.28999999999996,0,33.5,53.599998474121094,11399.714999999998,17399.714999999997,17399.714999999997,null,null,null,null,null,null,null,null,null,null,null,null,null,null,null,null,null,null,null,null,null,null,null,null,null,null,null,null,null,null,null,null,null,null,null,null,null,null,null,null,null,null,null,null,null,null,null,null,null,null,null,null,null,null,null,null,null,null,null,null,null,null,null,null,null,null,null,null,null,null,null,null,null,null,151,151,"92-0052",11696.623561019896]
["68-0001","Tennessee Gas Pipeline Company LLC - Compressor Station 79","Non-EGU",null,3.6999999999999998E-2,null,3.2000000000000002E-3,null,0.28999999999999998,null,3.12,null,6.9999999999999999E-6,null,null,null,null,0,3.4502070000000002,33.5,53.599998474121094,184.93108993540193,6184.9310899354023,9000,null,null,null,null,null,null,null,null,null,null,null,null,null,null,null,null,null,null,null,null,null,null,null,null,null,null,null,null,null,null,null,null,null,null,null,null,null,null,null,null,null,null,null,null,null,null,null,null,null,null,null,null,null,null,null,null,null,null,null,null,null,null,null,null,null,null,null,null,null,null,null,null,null,null,152,152,"28-0091",11686.136809158324]
["68-0034","East Tennessee Natural Gas, LLC - Lobelville Compressor Station 3201","Non-EGU",1.1499999999999999,null,9.35,null,2.75,null,70.66,null,null,null,0,null,0,null,83.91,0,33.5,53.599998474121094,2810.9849999999997,8810.9850000000006,9000,null,null,null,null,null,null,null,null,null,null,null,null,null,null,null,null,null,null,null,null,null,null,null,null,null,null,null,null,null,null,null,null,null,null,null,null,null,null,null,null,null,null,null,null,null,null,null,null,null,null,null,null,null,null,null,null,null,null,null,null,null,null,null,null,null,null,null,null,null,null,null,null,null,null,153,153,"43-0003",11533.606314277647]
["71-0020","Cummins Filtration","Non-EGU",13.71,null,4.38,null,159.19999999999999,null,45.85,null,null,null,0,null,0,null,223.14,0,33.5,53.599998474121094,7475.19,13475.189999999999,13475.189999999999,null,null,null,null,null,null,null,null,null,null,null,null,null,null,null,null,null,null,null,null,null,null,null,null,null,null,null,null,null,null,null,null,null,null,null,null,null,null,null,null,null,null,null,null,null,null,null,null,null,null,null,null,null,null,null,null,null,null,null,null,null,null,null,null,null,null,null,null,null,null,null,null,null,null,154,154,"73-0137",11335.066620941161]
["71-0035","Tennessee Technological University","Non-EGU",null,0.9,null,0.4,null,0.5,null,6.4,null,null,null,null,null,null,0,8.2000000000000011,33.5,53.599998474121094,439.519987487793,6439.5199874877926,9000,null,null,null,null,null,null,null,null,null,null,null,null,null,null,null,null,null,null,null,null,null,null,null,null,null,null,null,null,null,null,null,null,null,null,null,null,null,null,null,null,null,null,null,null,null,null,null,null,null,null,null,null,null,null,null,null,null,null,null,null,null,null,null,null,null,null,null,null,null,null,null,null,null,null,155,155,"16-0123",11285.320778274538]
["71-0148","East Tennessee Natural Gas, LLC - Monterey Compressor Station 3107","Non-EGU",null,null,null,null,null,4.2300000000000004,null,88.8,null,null,null,null,null,null,0,93.03,33.5,53.599998474121094,4986.4078580474852,10986.407858047485,10986.407858047485,null,null,null,null,null,null,null,null,null,null,null,null,null,null,null,null,null,null,null,null,null,null,null,null,null,null,null,null,null,null,null,null,null,null,null,null,null,null,null,null,null,null,null,null,null,null,null,null,null,null,null,null,null,null,null,null,null,null,null,null,null,null,null,null,null,null,null,null,null,null,null,null,null,null,156,156,"85-0027",11276.518578643798]
["72-0049","La-Z-Boy Tennessee","Non-EGU",233,null,8.9,null,22.8,38.061,95.7,null,null,null,null,null,null,null,360.4,38.061,33.5,53.599998474121094,14113.469541923523,20113.469541923521,20113.469541923521,null,null,null,null,null,null,null,null,null,null,null,null,null,null,null,null,null,null,null,null,null,null,null,null,null,null,null,null,null,null,null,null,null,null,null,null,null,null,null,null,null,null,null,null,null,null,null,null,null,null,null,null,null,null,null,null,null,null,null,null,null,null,null,null,null,null,null,null,null,null,null,null,null,null,157,157,"62-0166",11256.050823593139]
["72-0107","Huber Engineered Woods, LLC","Non-EGU",244.8,null,30.7,null,191.27,null,201,null,null,null,9,null,0,null,676.77,0,33.5,53.599998474121094,22671.794999999998,28671.794999999998,28671.794999999998,null,null,null,null,null,null,null,null,null,null,null,null,null,null,null,null,null,null,null,null,null,null,null,null,null,null,null,null,null,null,null,null,null,null,null,null,null,null,null,null,null,null,null,null,null,null,null,null,null,null,null,null,null,null,null,null,null,null,null,null,null,null,null,null,null,null,null,null,null,null,null,null,null,null,158,158,"82-0052",11036.506930961608]
["72-0109","Santek Waste Services, LLC dba Rhea County Landfill","Non-EGU",null,null,null,null,null,15.05,null,null,null,null,null,null,null,13.39,0,28.44,33.5,53.599998474121094,1524.383956604004,7524.3839566040042,9000,null,null,null,null,null,null,null,null,null,null,null,null,null,null,null,null,null,null,null,null,null,null,null,null,null,null,null,null,null,null,null,null,null,null,null,null,null,null,null,null,null,null,null,null,null,null,null,null,null,null,null,null,null,null,null,null,null,null,null,null,null,null,null,null,null,null,null,null,null,null,null,null,null,null,159,159,"59-0059",10867.473136634828]
["72-0116","General Shale Brick - Plant 42","Non-EGU",null,6.18,null,67.62,null,1.91,null,40.67,null,null,null,0.15,null,null,0,116.53000000000002,33.5,53.599998474121094,6246.0078221893318,12246.007822189331,12246.007822189331,null,null,null,null,null,null,null,null,null,null,null,null,null,null,null,null,null,null,null,null,null,null,null,null,null,null,null,null,null,null,null,null,null,null,null,null,null,null,null,null,null,null,null,null,null,null,null,null,null,null,null,null,null,null,null,null,null,null,null,null,null,null,null,null,null,null,null,null,null,null,null,null,null,null,160,160,"26-0131",10491.522411575317]
["73-0013","Tennessee Valley Authority (TVA) - Kingston Fossil Plant","EGU",null,182,null,1327,null,51.5,null,1158,null,23.8,null,null,null,null,0,2742.3,46.900001525878906,75.040000915527344,205782.19451065065,211782.19451065065,211782.19451065065,null,null,null,null,null,null,null,null,null,null,null,null,null,null,null,null,null,null,null,null,null,null,null,null,null,null,null,null,null,null,null,null,null,null,null,null,null,null,null,null,null,null,null,null,null,null,null,null,null,null,null,null,null,null,null,null,null,null,null,null,null,null,null,null,null,null,null,null,null,null,null,null,null,null,161,161,"65-0044",10397.379152412414]
["73-0107","American Zinc Recycling Corp","Non-EGU",195.08,null,76.89,null,163.66999999999999,null,190.63,null,null,null,0,null,0,null,626.27,0,33.5,53.599998474121094,20980.044999999998,26980.044999999998,26980.044999999998,null,null,null,null,null,null,null,null,null,null,null,null,null,null,null,null,null,null,null,null,null,null,null,null,null,null,null,null,null,null,null,null,null,null,null,null,null,null,null,null,null,null,null,null,null,null,null,null,null,null,null,null,null,null,null,null,null,null,null,null,null,null,null,null,null,null,null,null,null,null,null,null,null,null,162,162,"52-0085",10196.96880393219]
["73-0112","US Department of Energy, Oak Ridge National Laboratory (Office of Science)","Non-EGU",90,1,null,null,null,1,null,20,null,null,null,null,null,null,90,22,33.5,53.599998474121094,4194.1999664306641,10194.199966430664,10194.199966430664,null,null,null,null,null,null,null,null,null,null,null,null,null,null,null,null,null,null,null,null,null,null,null,null,null,null,null,null,null,null,null,null,null,null,null,null,null,null,null,null,null,null,null,null,null,null,null,null,null,null,null,null,null,null,null,null,null,null,null,null,null,null,null,null,null,null,null,null,null,null,null,null,null,null,163,163,"68-0034",10196.33895915985]
["73-0125","Teijin Carbon America, Inc.","Non-EGU",44.7,null,5.42,null,118.9,null,107.3,null,null,null,13.2,null,0,null,289.52,0,33.5,53.599998474121094,9698.92,15698.92,15698.92,null,null,null,null,null,null,null,null,null,null,null,null,null,null,null,null,null,null,null,null,null,null,null,null,null,null,null,null,null,null,null,null,null,null,null,null,null,null,null,null,null,null,null,null,null,null,null,null,null,null,null,null,null,null,null,null,null,null,null,null,null,null,null,null,null,null,null,null,null,null,null,null,null,null,164,164,"80-0009",10098.624228057861]
["73-0137","Diversified Scientific Services, Inc","Non-EGU",18.02,null,21.9,null,15,null,39,null,null,null,12.76,null,0,null,106.68,0,33.5,53.599998474121094,3573.78,9573.7800000000007,9573.7800000000007,null,null,null,null,null,null,null,null,null,null,null,null,null,null,null,null,null,null,null,null,null,null,null,null,null,null,null,null,null,null,null,null,null,null,null,null,null,null,null,null,null,null,null,null,null,null,null,null,null,null,null,null,null,null,null,null,null,null,null,null,null,null,null,null,null,null,null,null,null,null,null,null,null,null,165,165,"93-0067",10056.310963859558]
["73-0182","Isotek Systems, LLC dba US DOE, Oak Ridge National Laboratory - Building 2026","Non-EGU",45.08,null,0,null,0.1,null,1.42,null,null,null,0,null,0,null,46.6,0,33.5,53.599998474121094,1561.1000000000001,7561.1,9000,null,null,null,null,null,null,null,null,null,null,null,null,null,null,null,null,null,null,null,null,null,null,null,null,null,null,null,null,null,null,null,null,null,null,null,null,null,null,null,null,null,null,null,null,null,null,null,null,null,null,null,null,null,null,null,null,null,null,null,null,null,null,null,null,null,null,null,null,null,null,null,null,null,null,166,166,"78-0028",10008.301365470887]
["74-0102","Drew Foam Companies Inc.","Non-EGU",0,null,0,null,240,null,0,null,null,null,0,null,0,null,240,0,33.5,53.599998474121094,8040,14040,14040,null,null,null,null,null,null,null,null,null,null,null,null,null,null,null,null,null,null,null,null,null,null,null,null,null,null,null,null,null,null,null,null,null,null,null,null,null,null,null,null,null,null,null,null,null,null,null,null,null,null,null,null,null,null,null,null,null,null,null,null,null,null,null,null,null,null,null,null,null,null,null,null,null,null,167,167,"51-0031",9931.3824350738523]
["75-0057","Bridgestone Americas Tire Operations, LLC - LaVergne","Non-EGU",60.56,null,0.7,null,467.6,null,112.89,null,null,null,0,null,0,null,641.75,0,33.5,53.599998474121094,21498.625,27498.625,27498.625,null,null,null,null,null,null,null,null,null,null,null,null,null,null,null,null,null,null,null,null,null,null,null,null,null,null,null,null,null,null,null,null,null,null,null,null,null,null,null,null,null,null,null,null,null,null,null,null,null,null,null,null,null,null,null,null,null,null,null,null,null,null,null,null,null,null,null,null,null,null,null,null,null,null,168,168,"82-0007",9804.150640411377]
["75-0155","Nissan North America, Inc. - Smyrna","Non-EGU",96.3,5.73,null,null,6.1,1663.56,null,45.81,null,null,null,null,null,null,102.39999999999999,1715.1,33.5,53.599998474121094,95359.757382965079,101359.75738296508,101359.75738296508,null,null,null,null,null,null,null,null,null,null,null,null,null,null,null,null,null,null,null,null,null,null,null,null,null,null,null,null,null,null,null,null,null,null,null,null,null,null,null,null,null,null,null,null,null,null,null,null,null,null,null,null,null,null,null,null,null,null,null,null,null,null,null,null,null,null,null,null,null,null,null,null,null,null,169,169,"66-0113",9792.1476409149182]
["75-0381","BFI Waste Systems of Tennessee, LLC dba Middle Point Landfill","Non-EGU",null,0.06,null,null,null,0.84,null,null,null,0.48,null,null,null,null,0,1.38,33.5,53.599998474121094,73.967997894287109,6073.9679978942868,9000,null,null,null,null,null,null,null,null,null,null,null,null,null,null,null,null,null,null,null,null,null,null,null,null,null,null,null,null,null,null,null,null,null,null,null,null,null,null,null,null,null,null,null,null,null,null,null,null,null,null,null,null,null,null,null,null,null,null,null,null,null,null,null,null,null,null,null,null,null,null,null,null,null,null,170,170,"57-0259",9586.4962495422369]
["76-0071","Volunteer Regional Landfill Scott Solid","Non-EGU",null,132.19,null,0.56000000000000005,null,4.67,null,2.87,null,null,null,2.64,null,null,0,142.92999999999998,33.5,53.599998474121094,7661.0477819061271,13661.047781906127,13661.047781906127,null,null,null,null,null,null,null,null,null,null,null,null,null,null,null,null,null,null,null,null,null,null,null,null,null,null,null,null,null,null,null,null,null,null,null,null,null,null,null,null,null,null,null,null,null,null,null,null,null,null,null,null,null,null,null,null,null,null,null,null,null,null,null,null,null,null,null,null,null,null,null,null,null,null,171,171,"24-0080",9575.714879989624]
["78-0028","Johnson Matthey, Inc.","Non-EGU",71.56,null,1.43,null,0.79,null,6.37,null,null,null,0,null,0,null,80.15000000000002,0,33.5,53.599998474121094,2685.0250000000005,8685.0250000000015,9000,null,null,null,null,null,null,null,null,null,null,null,null,null,null,null,null,null,null,null,null,null,null,null,null,null,null,null,null,null,null,null,null,null,null,null,null,null,null,null,null,null,null,null,null,null,null,null,null,null,null,null,null,null,null,null,null,null,null,null,null,null,null,null,null,null,null,null,null,null,null,null,null,null,null,172,172,"37-0080",9468.0666545104978]
["78-0086","East Tennessee Natural Gas, LLC - Boyd's Creek Compressor Station (Station 3302)","Non-EGU",3.4,null,2.6,null,6.9,null,108.7,null,null,null,0,null,0,null,121.60000000000001,0,33.5,53.599998474121094,4073.6000000000004,10073.6,10073.6,null,null,null,null,null,null,null,null,null,null,null,null,null,null,null,null,null,null,null,null,null,null,null,null,null,null,null,null,null,null,null,null,null,null,null,null,null,null,null,null,null,null,null,null,null,null,null,null,null,null,null,null,null,null,null,null,null,null,null,null,null,null,null,null,null,null,null,null,null,null,null,null,null,null,173,173,"94-0100",9466.4662545776373]
["80-0009","Bon L Manufacturing Company","Non-EGU",null,15.97,null,0.16,null,13.59,null,18.53,null,null,null,2.97,null,null,0,51.22,33.5,53.599998474121094,2745.3919218444826,8745.3919218444826,9000,null,null,null,null,null,null,null,null,null,null,null,null,null,null,null,null,null,null,null,null,null,null,null,null,null,null,null,null,null,null,null,null,null,null,null,null,null,null,null,null,null,null,null,null,null,null,null,null,null,null,null,null,null,null,null,null,null,null,null,null,null,null,null,null,null,null,null,null,null,null,null,null,null,null,174,174,"05-0011",9000]
["81-0011","Tennessee Valley Authority - Cumberland Fossil Plant","EGU",null,541,4000,null,null,135,null,4000,null,218,null,null,null,null,4000,4894,46.900001525878906,75.040000915527344,554845.77058410645,560845.77058410645,560845.77058410645,null,null,null,null,null,null,null,null,null,null,null,null,null,null,null,null,null,null,null,null,null,null,null,null,null,null,null,null,null,null,null,null,null,null,null,null,null,null,null,null,null,null,null,null,null,null,null,null,null,null,null,null,null,null,null,null,null,null,null,null,null,null,null,null,null,null,null,null,null,null,null,null,null,null,175,175,"06-0205",9000]
["81-0030","Georgia-Pacific Gypsum LLC","Non-EGU",145.76,null,1.4,null,155.13999999999999,null,112.24,null,null,null,0,null,0,null,414.53999999999996,0,33.5,53.599998474121094,13887.089999999998,19887.089999999997,19887.089999999997,null,null,null,null,null,null,null,null,null,null,null,null,null,null,null,null,null,null,null,null,null,null,null,null,null,null,null,null,null,null,null,null,null,null,null,null,null,null,null,null,null,null,null,null,null,null,null,null,null,null,null,null,null,null,null,null,null,null,null,null,null,null,null,null,null,null,null,null,null,null,null,null,null,null,176,176,"15-0020",9000]
["82-0003","Eastman Chemical Company","Non-EGU",452,169,4000,null,4000,null,4000,null,390,1,797,107,null,null,13639,277,33.5,53.599998474121094,471753.69957733154,477753.69957733154,477753.69957733154,null,null,null,null,null,null,null,null,null,null,null,null,null,null,null,null,null,null,null,null,null,null,null,null,null,null,null,null,null,null,null,null,null,null,null,null,null,null,null,null,null,null,null,null,null,null,null,null,null,null,null,null,null,null,null,null,null,null,null,null,null,null,null,null,null,null,null,null,null,null,null,null,null,null,177,177,"20-0052",9000]
["82-0007","Seaman Corporation","Non-EGU",null,0.22,null,0.02,null,44.09,null,2.94,null,0.27,null,null,null,null,0,47.540000000000006,33.5,53.599998474121094,2548.1439274597169,8548.1439274597178,9000,null,null,null,null,null,null,null,null,null,null,null,null,null,null,null,null,null,null,null,null,null,null,null,null,null,null,null,null,null,null,null,null,null,null,null,null,null,null,null,null,null,null,null,null,null,null,null,null,null,null,null,null,null,null,null,null,null,null,null,null,null,null,null,null,null,null,null,null,null,null,null,null,null,null,178,178,"22-0055",9000]
["82-0022","Domtar Paper Company, LLC - Kingsport Mill","Non-EGU",154.61000000000001,16.89,27.26,31.39,71.75,35.700000000000003,706.47,188.57,null,null,1.44,0.02,9.84,4.1500000000000004,971.37000000000012,276.71999999999997,33.5,53.599998474121094,47373.08657775879,53373.08657775879,53373.08657775879,null,null,null,null,null,null,null,null,null,null,null,null,null,null,null,null,null,null,null,null,null,null,null,null,null,null,null,null,null,null,null,null,null,null,null,null,null,null,null,null,null,null,null,null,null,null,null,null,null,null,null,null,null,null,null,null,null,null,null,null,null,null,null,null,null,null,null,null,null,null,null,null,null,null,179,179,"23-0092",9000]
["82-0052","Gregory Pharmaceutical Holdings, LLC dba UPM Pharmaceuticals","Non-EGU",40.869999999999997,null,5.05,null,17.13,null,14.98,null,null,null,22.68,null,0,null,100.71000000000001,0,33.5,53.599998474121094,3373.7850000000003,9373.7849999999999,9373.7849999999999,null,null,null,null,null,null,null,null,null,null,null,null,null,null,null,null,null,null,null,null,null,null,null,null,null,null,null,null,null,null,null,null,null,null,null,null,null,null,null,null,null,null,null,null,null,null,null,null,null,null,null,null,null,null,null,null,null,null,null,null,null,null,null,null,null,null,null,null,null,null,null,null,null,null,180,180,"32-0196",9000]
["82-0110","East Tennessee Natural Gas Station 3308","Non-EGU",null,1.29,null,0.12,null,0.47,null,22.95,null,null,null,null,null,null,0,24.83,33.5,53.599998474121094,1330.8879621124267,7330.887962112427,9000,null,null,null,null,null,null,null,null,null,null,null,null,null,null,null,null,null,null,null,null,null,null,null,null,null,null,null,null,null,null,null,null,null,null,null,null,null,null,null,null,null,null,null,null,null,null,null,null,null,null,null,null,null,null,null,null,null,null,null,null,null,null,null,null,null,null,null,null,null,null,null,null,null,null,181,181,"32-0275",9000]
["82-0153","Microporous, LLC","Non-EGU",49,null,1.28,null,1.97,null,18.38,null,null,null,160,null,0,null,230.63,0,33.5,53.599998474121094,7726.1049999999996,13726.105,13726.105,null,null,null,null,null,null,null,null,null,null,null,null,null,null,null,null,null,null,null,null,null,null,null,null,null,null,null,null,null,null,null,null,null,null,null,null,null,null,null,null,null,null,null,null,null,null,null,null,null,null,null,null,null,null,null,null,null,null,null,null,null,null,null,null,null,null,null,null,null,null,null,null,null,null,182,182,"34-0014",9000]
["82-0481","EcoSafe Systems, LLC dba Eco-Safe Landfill ","Non-EGU",null,4.47,null,5.08,null,9.3800000000000008,null,11.62,null,null,null,null,null,null,0,30.549999999999997,33.5,53.599998474121094,1637.4799533843993,7637.4799533843998,9000,null,null,null,null,null,null,null,null,null,null,null,null,null,null,null,null,null,null,null,null,null,null,null,null,null,null,null,null,null,null,null,null,null,null,null,null,null,null,null,null,null,null,null,null,null,null,null,null,null,null,null,null,null,null,null,null,null,null,null,null,null,null,null,null,null,null,null,null,null,null,null,null,null,null,183,183,"36-0061",9000]
["82-0510","Primester","Non-EGU",7.1,null,1.1000000000000001,null,43.15,null,0,null,null,null,0,null,0,null,51.349999999999994,0,33.5,53.599998474121094,1720.2249999999999,7720.2250000000004,9000,null,null,null,null,null,null,null,null,null,null,null,null,null,null,null,null,null,null,null,null,null,null,null,null,null,null,null,null,null,null,null,null,null,null,null,null,null,null,null,null,null,null,null,null,null,null,null,null,null,null,null,null,null,null,null,null,null,null,null,null,null,null,null,null,null,null,null,null,null,null,null,null,null,null,184,184,"40-0102",9000]
["83-0008","Tennessee Gas Pipeline Company, LLC - Compressor Station 87","Non-EGU",null,27.04,null,0.48,null,95.37,null,1083.077,null,0.11,null,null,null,null,0,1206.077,33.5,53.599998474121094,64645.72535967255,70645.72535967255,70645.72535967255,null,null,null,null,null,null,null,null,null,null,null,null,null,null,null,null,null,null,null,null,null,null,null,null,null,null,null,null,null,null,null,null,null,null,null,null,null,null,null,null,null,null,null,null,null,null,null,null,null,null,null,null,null,null,null,null,null,null,null,null,null,null,null,null,null,null,null,null,null,null,null,null,null,null,185,185,"40-0107",9000]
["83-0014","Midwestern Gas Transmission Company dba MGT - Portland Compressor Station (2101)","Non-EGU",8.1999999999999993,null,2.78,null,null,7.34,null,191.95,null,null,null,null,null,null,10.979999999999999,199.29,33.5,53.599998474121094,11049.773695907592,17049.773695907592,17049.773695907592,null,null,null,null,null,null,null,null,null,null,null,null,null,null,null,null,null,null,null,null,null,null,null,null,null,null,null,null,null,null,null,null,null,null,null,null,null,null,null,null,null,null,null,null,null,null,null,null,null,null,null,null,null,null,null,null,null,null,null,null,null,null,null,null,null,null,null,null,null,null,null,null,null,null,186,186,"53-0110",9000]
["83-0025","Tennessee Valley Authority - Gallatin Fossil Plant","EGU",null,183,null,1828,null,99,null,1304,null,10.9,null,null,15.1,null,15.1,3424.9,46.900001525878906,75.040000915527344,257712.68915863038,263712.68915863038,263712.68915863038,null,null,null,null,null,null,null,null,null,null,null,null,null,null,null,null,null,null,null,null,null,null,null,null,null,null,null,null,null,null,null,null,null,null,null,null,null,null,null,null,null,null,null,null,null,null,null,null,null,null,null,null,null,null,null,null,null,null,null,null,null,null,null,null,null,null,null,null,null,null,null,null,null,null,187,187,"54-0176",9000]
["83-0129","Hoeganaes Corporation","Non-EGU",155.5,null,106.9,null,46.8,null,272.5,null,null,null,8.5,null,0,null,590.20000000000005,0,33.5,53.599998474121094,19771.7,25771.7,25771.7,null,null,null,null,null,null,null,null,null,null,null,null,null,null,null,null,null,null,null,null,null,null,null,null,null,null,null,null,null,null,null,null,null,null,null,null,null,null,null,null,null,null,null,null,null,null,null,null,null,null,null,null,null,null,null,null,null,null,null,null,null,null,null,null,null,null,null,null,null,null,null,null,null,null,188,188,"56-0004",9000]
["84-0067","Texas Gas Transmission, LLC","Non-EGU",null,28.65,null,0.01,null,2,null,71,null,null,null,null,null,null,0,101.66,33.5,53.599998474121094,5448.9758448791499,11448.975844879151,11448.975844879151,null,null,null,null,null,null,null,null,null,null,null,null,null,null,null,null,null,null,null,null,null,null,null,null,null,null,null,null,null,null,null,null,null,null,null,null,null,null,null,null,null,null,null,null,null,null,null,null,null,null,null,null,null,null,null,null,null,null,null,null,null,null,null,null,null,null,null,null,null,null,null,null,null,null,189,189,"57-0020",9000]
["85-0027","East Tennessee Natural Gas, LLC dba Dixon Springs Compressor Station (Station 3104)","Non-EGU",null,null,null,null,null,1.32,null,64.62,null,null,null,null,null,null,0,65.94,33.5,53.599998474121094,3534.3838993835448,9534.3838993835452,9534.3838993835452,null,null,null,null,null,null,null,null,null,null,null,null,null,null,null,null,null,null,null,null,null,null,null,null,null,null,null,null,null,null,null,null,null,null,null,null,null,null,null,null,null,null,null,null,null,null,null,null,null,null,null,null,null,null,null,null,null,null,null,null,null,null,null,null,null,null,null,null,null,null,null,null,null,null,190,190,"59-0061",9000]
["87-0028","Carmeuse Lime & Stone, O-N Minerals (Luttrell) Company","Non-EGU",137.30000000000001,null,746.8,null,2,null,452.6,null,null,null,0,null,0,null,1338.6999999999998,0,33.5,53.599998474121094,44846.45,50846.45,50846.45,null,null,null,null,null,null,null,null,null,null,null,null,null,null,null,null,null,null,null,null,null,null,null,null,null,null,null,null,null,null,null,null,null,null,null,null,null,null,null,null,null,null,null,null,null,null,null,null,null,null,null,null,null,null,null,null,null,null,null,null,null,null,null,null,null,null,null,null,null,null,null,null,null,null,191,191,"59-0066",9000]
["89-0077","Bridgestone Americas Tire Operations, LLC dba Warren Plant","Non-EGU",160.80000000000001,1.63,null,0.13,402,1.18,null,21.4,null,3.56,null,null,null,null,562.79999999999995,27.899999999999995,33.5,53.599998474121094,20349.239957427977,26349.239957427977,26349.239957427977,null,null,null,null,null,null,null,null,null,null,null,null,null,null,null,null,null,null,null,null,null,null,null,null,null,null,null,null,null,null,null,null,null,null,null,null,null,null,null,null,null,null,null,null,null,null,null,null,null,null,null,null,null,null,null,null,null,null,null,null,null,null,null,null,null,null,null,null,null,null,null,null,null,null,192,192,"59-0086",9000]
["90-0039","Mountain Home Energy Center","Non-EGU",null,8.36,null,0.3,null,37.64,null,54.71,null,null,null,null,null,null,0,101.00999999999999,33.5,53.599998474121094,5414.135845870971,11414.135845870971,11414.135845870971,null,null,null,null,null,null,null,null,null,null,null,null,null,null,null,null,null,null,null,null,null,null,null,null,null,null,null,null,null,null,null,null,null,null,null,null,null,null,null,null,null,null,null,null,null,null,null,null,null,null,null,null,null,null,null,null,null,null,null,null,null,null,null,null,null,null,null,null,null,null,null,null,null,null,193,193,"60-0184",9000]
["90-0232","Cantech Industries, Inc.","Non-EGU",4.95,null,0,null,147,null,0,null,null,null,0,null,0,null,151.94999999999999,0,33.5,53.599998474121094,5090.3249999999998,11090.325000000001,11090.325000000001,null,null,null,null,null,null,null,null,null,null,null,null,null,null,null,null,null,null,null,null,null,null,null,null,null,null,null,null,null,null,null,null,null,null,null,null,null,null,null,null,null,null,null,null,null,null,null,null,null,null,null,null,null,null,null,null,null,null,null,null,null,null,null,null,null,null,null,null,null,null,null,null,null,null,194,194,"63-0097",9000]
["90-0246","Iris Glen Environmental Center","Non-EGU",null,null,null,null,14.01,null,null,null,null,null,null,null,null,null,14.01,0,33.5,53.599998474121094,469.33499999999998,6469.335,9000,null,null,null,null,null,null,null,null,null,null,null,null,null,null,null,null,null,null,null,null,null,null,null,null,null,null,null,null,null,null,null,null,null,null,null,null,null,null,null,null,null,null,null,null,null,null,null,null,null,null,null,null,null,null,null,null,null,null,null,null,null,null,null,null,null,null,null,null,null,null,null,null,null,null,195,195,"63-0129",9000]
["90-0405","LPI, Inc.","Non-EGU",71.099999999999994,null,0,null,99.5,null,0,null,null,null,0,null,0,null,170.6,0,33.5,53.599998474121094,5715.0999999999995,11715.099999999999,11715.099999999999,null,null,null,null,null,null,null,null,null,null,null,null,null,null,null,null,null,null,null,null,null,null,null,null,null,null,null,null,null,null,null,null,null,null,null,null,null,null,null,null,null,null,null,null,null,null,null,null,null,null,null,null,null,null,null,null,null,null,null,null,null,null,null,null,null,null,null,null,null,null,null,null,null,null,196,196,"66-0185",9000]
["91-0001","Tennessee Gas Pipeline Company, LLC - Compressor Station 555","Non-EGU",null,6.6239999999999997,null,0.17,null,62.77,null,335.14,null,2.1000000000000001E-2,null,null,null,null,0,404.72500000000002,33.5,53.599998474121094,21693.25938243866,27693.25938243866,27693.25938243866,null,null,null,null,null,null,null,null,null,null,null,null,null,null,null,null,null,null,null,null,null,null,null,null,null,null,null,null,null,null,null,null,null,null,null,null,null,null,null,null,null,null,null,null,null,null,null,null,null,null,null,null,null,null,null,null,null,null,null,null,null,null,null,null,null,null,null,null,null,null,null,null,null,null,197,197,"68-0001",9000]
["91-0075","Praxis Companies, LLC","Non-EGU",68,null,0,null,61.2,null,0,null,null,null,0,null,0,null,129.19999999999999,0,33.5,53.599998474121094,4328.2,10328.200000000001,10328.200000000001,null,null,null,null,null,null,null,null,null,null,null,null,null,null,null,null,null,null,null,null,null,null,null,null,null,null,null,null,null,null,null,null,null,null,null,null,null,null,null,null,null,null,null,null,null,null,null,null,null,null,null,null,null,null,null,null,null,null,null,null,null,null,null,null,null,null,null,null,null,null,null,null,null,null,198,198,"71-0035",9000]
["92-0020","Kentucky-Tennessee Clay Company","Non-EGU",null,3.7040999999999999,null,0.03,null,0.56999999999999995,null,6.3419999999999996,null,null,null,null,null,null,0,10.646100000000001,33.5,53.599998474121094,570.63094375534058,6570.6309437553409,9000,null,null,null,null,null,null,null,null,null,null,null,null,null,null,null,null,null,null,null,null,null,null,null,null,null,null,null,null,null,null,null,null,null,null,null,null,null,null,null,null,null,null,null,null,null,null,null,null,null,null,null,null,null,null,null,null,null,null,null,null,null,null,null,null,null,null,null,null,null,null,null,null,null,null,199,199,"72-0109",9000]
["92-0052","Meridian Brick LLC - Gleason Plant","Non-EGU",null,24.62,null,16.829999999999998,null,0.6,null,8.7899999999999991,null,20.350000000000001,null,null,null,null,0,71.19,33.5,53.599998474121094,3815.7838913726805,9815.783891372681,9815.783891372681,null,null,null,null,null,null,null,null,null,null,null,null,null,null,null,null,null,null,null,null,null,null,null,null,null,null,null,null,null,null,null,null,null,null,null,null,null,null,null,null,null,null,null,null,null,null,null,null,null,null,null,null,null,null,null,null,null,null,null,null,null,null,null,null,null,null,null,null,null,null,null,null,null,null,200,200,"73-0182",9000]
["92-0101","MTD Consumer Group Inc","Non-EGU",64.89,null,0.19,null,87.86,null,23.19,null,null,null,0,null,0,null,176.13,0,33.5,53.599998474121094,5900.3549999999996,11900.355,11900.355,null,null,null,null,null,null,null,null,null,null,null,null,null,null,null,null,null,null,null,null,null,null,null,null,null,null,null,null,null,null,null,null,null,null,null,null,null,null,null,null,null,null,null,null,null,null,null,null,null,null,null,null,null,null,null,null,null,null,null,null,null,null,null,null,null,null,null,null,null,null,null,null,null,null,201,201,"75-0381",9000]
["92-0108","Tennessee Valley Authority - Gleason Combustion Turbine Plant","EGU",null,15.8,null,1.8,null,9,null,216,null,null,null,null,null,null,0,242.6,46.900001525878906,75.040000915527344,18204.704222106931,24204.704222106931,24204.704222106931,null,null,null,null,null,null,null,null,null,null,null,null,null,null,null,null,null,null,null,null,null,null,null,null,null,null,null,null,null,null,null,null,null,null,null,null,null,null,null,null,null,null,null,null,null,null,null,null,null,null,null,null,null,null,null,null,null,null,null,null,null,null,null,null,null,null,null,null,null,null,null,null,null,null,202,202,"82-0110",9000]
["93-0067","Norcom Of Tennessee, Inc.","Non-EGU",45.11,null,0,null,36,null,0,null,null,null,0,null,0,null,81.11,0,33.5,53.599998474121094,2717.1849999999999,8717.1849999999995,9000,null,null,null,null,null,null,null,null,null,null,null,null,null,null,null,null,null,null,null,null,null,null,null,null,null,null,null,null,null,null,null,null,null,null,null,null,null,null,null,null,null,null,null,null,null,null,null,null,null,null,null,null,null,null,null,null,null,null,null,null,null,null,null,null,null,null,null,null,null,null,null,null,null,null,203,203,"82-0481",9000]
["94-0072","Essex Group, Inc.","Non-EGU",28.78,null,1.6,null,null,65.540000000000006,null,48.86,null,null,null,null,null,null,30.380000000000003,114.4,33.5,53.599998474121094,7149.5698254394538,13149.569825439454,13149.569825439454,null,null,null,null,null,null,null,null,null,null,null,null,null,null,null,null,null,null,null,null,null,null,null,null,null,null,null,null,null,null,null,null,null,null,null,null,null,null,null,null,null,null,null,null,null,null,null,null,null,null,null,null,null,null,null,null,null,null,null,null,null,null,null,null,null,null,null,null,null,null,null,null,null,null,204,204,"82-0510",9000]
["94-0100","Fibertek, Inc.","Non-EGU",null,null,null,null,null,31.42,null,null,null,null,null,11.9,null,null,0,43.32,33.5,53.599998474121094,2321.9519338989257,8321.9519338989267,9000,null,null,null,null,null,null,null,null,null,null,null,null,null,null,null,null,null,null,null,null,null,null,null,null,null,null,null,null,null,null,null,null,null,null,null,null,null,null,null,null,null,null,null,null,null,null,null,null,null,null,null,null,null,null,null,null,null,null,null,null,null,null,null,null,null,null,null,null,null,null,null,null,null,null,205,205,"90-0246",9000]
["95-0093","Texas Eastern Transmission, LP dba Gladeville Compressor Station","Non-EGU",6.04,null,0,null,0,null,495,null,null,null,0,null,0,null,501.04,0,33.5,53.599998474121094,16784.84,22784.84,22784.84,null,null,null,null,null,null,null,null,null,null,null,null,null,null,null,null,null,null,null,null,null,null,null,null,null,null,null,null,null,null,null,null,null,null,null,null,null,null,null,null,null,null,null,null,null,null,null,null,null,null,null,null,null,null,null,null,null,null,null,null,null,null,null,null,null,null,null,null,null,null,null,null,null,null,206,206,"92-0020",9000]
[null,null,null,null,null,null,null,null,null,null,null,null,null,null,null,null,null,null,null,null,null,null,null,{"$f":"ROUND(SUM(X2:X207),2)","v":6045128.5199999996},null,null,null,null,null,null,null,null,null,null,null,null,null,null,null,null,null,null,null,null,null,null,null,null,null,null,null,null,null,null,null,null,null,null,null,null,null,null,null,null,null,null,null,null,null,null,null,null,null,null,null,null,null,null,null,null,null,null,null,null,null,null,null,null,null,null,null,null,null,null,null,null,null,null,null,null,null,{"$f":"ROUND(SUM(CX2:CX207),2)","v":8358836.5599999996}]

{"sheet":"APConly","index":1,"n_rows":15,"n_cols":3,"rows_kept":15,"cut":false,"hidden":true,"merged":[]}
["Title V Funding required (Program expenses)",8045164]
["Initial Reserve (default value)",467994]
["Final Reserve (default value)",780230]
["Minimum Fee (default value)",9000]
["Base Fee (default value)",6000]
["lastrow (emissions data in spreadsheet)",207]
[]
[]
[]
[]
[]
["Delayed Fee Collections Information"]
["Use Delayed Fee Collection in T5 Fee tool",0,"Value of  0 = NOT Used & ANY Other Value = Used"]
["Percent of Current FY Fees collected Next FY ",0,"Percentage of Fees delayed to next FY for collection"]
["Previous FY Fees collected in Current FY",0,"Value of Previous FY Fees collection delayed to current FY"]

{"sheet":"SearchResults","index":2,"n_rows":1,"n_cols":9,"rows_kept":1,"cut":false,"hidden":true,"merged":[]}
[" baseFee"," minFee"," NEGU_ALW"," EGU_ALW"," NEGU_ACT"," EGU_ACT"," increment"," curRevenue","error"]

{"sheet":"Output","index":3,"n_rows":235,"n_cols":152,"rows_kept":235,"cut":false,"hidden":false,"merged":[]}
[]
[]
[]
[]
[]
[]
[]
[]
[]
[]
[]
[]
[]
[]
[]
[]
[]
[]
[]
[]
[]
[]
[]
[]
[]
[]
[]
[]
[]
[]
[]
[]
[]
[]
[]
[]
[]
[]
[]
[]
[]
[]
[]
[]
[]
[]
[]
[]
[]
[]
[]
[]
[]
[]
[]
[]
[]
[]
[]
[]
[]
[]
[]
[]
[]
[]
[]
[]
[]
[]
[]
[]
[]
[]
[]
[]
[]
[]
[]
[]
[]
[]
[]
[]
[]
[]
[]
[]
[]
[]
[]
[]
[]
[]
[]
[]
[]
[]
[]
[]
[]
[]
[]
[]
[]
[]
[]
[]
[]
[]
[]
[]
[]
[]
[]
[]
[]
[]
[]
[]
[]
[]
[]
[]
[]
[]
[]
[]
[]
[]
[]
[]
[]
[]
[]
[]
[]
[]
[]
[]
[]
[]
[]
[]
[]
[]
[]
[]
[]
[]
[]
[]
[]
[]
[]
[]
[]
[]
[]
[]
[]
[]
[]
[]
[]
[]
[]
[]
[]
[]
[]
[]
[]
[]
[]
[]
[]
[]
[]
[]
[]
[]
[]
[]
[]
[]
[]
[]
[]
[]
[]
[]
[]
[]
[]
[]
[]
[]
[]
[]
[]
[]
[]
[]
[]
[]
[]
[]
[]
[]
[]
[]
[]
[]
[]
[]
[]
[]
[]
[]
[]
["Maximum of Fees",{"$f":"MAX(B1:B206)","v":0},{"$f":"MAX(C1:C206)","v":0},0,0,0,0,0,0,0,0,0,0,0,0,0,0,0,0,0,0,0,0,0,0,0,0,0,0,0,0,0,0,0,0,0,0,0,0,0,0,0,0,0,0,0,0,0,0,0,0,0,0,0,0,0,0,0,0,0,0,0,0,0,0,0,{"$f":"MAX(BO1:BO206)","v":0},0,0,0,0,0,0,0,0,0,0,0,0,0,0,0,0,0,0,0,0,0,0,0,0,0,0,0,0,0,0,0,0,0,0,0,0,0,0,0,0,0,0,0,0,0,0,0,0,0,0,0,0,0,0,0,0,0,0,0,0,0,0,0,{"$f":"MAX(EA1:EA206)","v":0},0,0,0,0,0,0,0,0,0,0,0,0,0,0,0,0,0,0,0,0,0]
["delta-Max",null,{"$f":"C222-B222","v":0},{"$f":"D222-C222","v":0},0,0,0,0,0,0,0,0,0,0,0,0,0,0,0,0,0,0,0,0,0,0,0,0,0,0,0,0,0,0,0,0,0,0,0,0,0,0,0,0,0,0,0,0,0,0,0,0,0,0,0,0,0,0,0,0,0,0,0,0,0,0,0,{"$f":"BP222-BO222","v":0},0,0,0,0,0,0,0,0,0,0,0,0,0,0,0,0,0,0,0,0,0,0,0,0,0,0,0,0,0,0,0,0,0,0,0,0,0,0,0,0,0,0,0,0,0,0,0,0,0,0,0,0,0,0,0,0,0,0,0,0,0,0,0,{"$f":"EB222-EA222","v":0},0,0,0,0,0,0,0,0,0,0,0,0,0,0,0,0,0,0,0,0]
["Mean",{"$f":"AVERAGE(B1:B206)","v":{"$error":"#DIV/0!"}},{"$f":"AVERAGE(C1:C206)","v":{"$error":"#DIV/0!"}},{"$error":"#DIV/0!"},{"$error":"#DIV/0!"},{"$error":"#DIV/0!"},{"$error":"#DIV/0!"},{"$error":"#DIV/0!"},{"$error":"#DIV/0!"},{"$error":"#DIV/0!"},{"$error":"#DIV/0!"},{"$error":"#DIV/0!"},{"$error":"#DIV/0!"},{"$error":"#DIV/0!"},{"$error":"#DIV/0!"},{"$error":"#DIV/0!"},{"$error":"#DIV/0!"},{"$error":"#DIV/0!"},{"$error":"#DIV/0!"},{"$error":"#DIV/0!"},{"$error":"#DIV/0!"},{"$error":"#DIV/0!"},{"$error":"#DIV/0!"},{"$error":"#DIV/0!"},{"$error":"#DIV/0!"},{"$error":"#DIV/0!"},{"$error":"#DIV/0!"},{"$error":"#DIV/0!"},{"$error":"#DIV/0!"},{"$error":"#DIV/0!"},{"$error":"#DIV/0!"},{"$error":"#DIV/0!"},{"$error":"#DIV/0!"},{"$error":"#DIV/0!"},{"$error":"#DIV/0!"},{"$error":"#DIV/0!"},{"$error":"#DIV/0!"},{"$error":"#DIV/0!"},{"$error":"#DIV/0!"},{"$error":"#DIV/0!"},{"$error":"#DIV/0!"},{"$error":"#DIV/0!"},{"$error":"#DIV/0!"},{"$error":"#DIV/0!"},{"$error":"#DIV/0!"},{"$error":"#DIV/0!"},{"$error":"#DIV/0!"},{"$error":"#DIV/0!"},{"$error":"#DIV/0!"},{"$error":"#DIV/0!"},{"$error":"#DIV/0!"},{"$error":"#DIV/0!"},{"$error":"#DIV/0!"},{"$error":"#DIV/0!"},{"$error":"#DIV/0!"},{"$error":"#DIV/0!"},{"$error":"#DIV/0!"},{"$error":"#DIV/0!"},{"$error":"#DIV/0!"},{"$error":"#DIV/0!"},{"$error":"#DIV/0!"},{"$error":"#DIV/0!"},{"$error":"#DIV/0!"},{"$error":"#DIV/0!"},{"$error":"#DIV/0!"},{"$error":"#DIV/0!"},{"$f":"AVERAGE(BO1:BO206)","v":{"$error":"#DIV/0!"}},{"$error":"#DIV/0!"},{"$error":"#DIV/0!"},{"$error":"#DIV/0!"},{"$error":"#DIV/0!"},{"$error":"#DIV/0!"},{"$error":"#DIV/0!"},{"$error":"#DIV/0!"},{"$error":"#DIV/0!"},{"$error":"#DIV/0!"},{"$error":"#DIV/0!"},{"$error":"#DIV/0!"},{"$error":"#DIV/0!"},{"$error":"#DIV/0!"},{"$error":"#DIV/0!"},{"$error":"#DIV/0!"},{"$error":"#DIV/0!"},{"$error":"#DIV/0!"},{"$error":"#DIV/0!"},{"$error":"#DIV/0!"},{"$error":"#DIV/0!"},{"$error":"#DIV/0!"},{"$error":"#DIV/0!"},{"$error":"#DIV/0!"},{"$error":"#DIV/0!"},{"$error":"#DIV/0!"},{"$error":"#DIV/0!"},{"$error":"#DIV/0!"},{"$error":"#DIV/0!"},{"$error":"#DIV/0!"},{"$error":"#DIV/0!"},{"$error":"#DIV/0!"},{"$error":"#DIV/0!"},{"$error":"#DIV/0!"},{"$error":"#DIV/0!"},{"$error":"#DIV/0!"},{"$error":"#DIV/0!"},{"$error":"#DIV/0!"},{"$error":"#DIV/0!"},{"$error":"#DIV/0!"},{"$error":"#DIV/0!"},{"$error":"#DIV/0!"},{"$error":"#DIV/0!"},{"$error":"#DIV/0!"},{"$error":"#DIV/0!"},{"$error":"#DIV/0!"},{"$error":"#DIV/0!"},{"$error":"#DIV/0!"},{"$error":"#DIV/0!"},{"$error":"#DIV/0!"},{"$error":"#DIV/0!"},{"$error":"#DIV/0!"},{"$error":"#DIV/0!"},{"$error":"#DIV/0!"},{"$error":"#DIV/0!"},{"$error":"#DIV/0!"},{"$error":"#DIV/0!"},{"$error":"#DIV/0!"},{"$error":"#DIV/0!"},{"$error":"#DIV/0!"},{"$error":"#DIV/0!"},{"$error":"#DIV/0!"},{"$error":"#DIV/0!"},{"$error":"#DIV/0!"},{"$f":"AVERAGE(EA1:EA206)","v":{"$error":"#DIV/0!"}},{"$error":"#DIV/0!"},{"$error":"#DIV/0!"},{"$error":"#DIV/0!"},{"$error":"#DIV/0!"},{"$error":"#DIV/0!"},{"$error":"#DIV/0!"},{"$error":"#DIV/0!"},{"$error":"#DIV/0!"},{"$error":"#DIV/0!"},{"$error":"#DIV/0!"},{"$error":"#DIV/0!"},{"$error":"#DIV/0!"},{"$error":"#DIV/0!"},{"$error":"#DIV/0!"},{"$error":"#DIV/0!"},{"$error":"#DIV/0!"},{"$error":"#DIV/0!"},{"$error":"#DIV/0!"},{"$error":"#DIV/0!"},{"$error":"#DIV/0!"},{"$error":"#DIV/0!"}]
["delta-Mean",null,{"$f":"C224-B224","v":{"$error":"#DIV/0!"}},{"$f":"D224-C224","v":{"$error":"#DIV/0!"}},{"$f":"E224-D224","v":{"$error":"#DIV/0!"}},{"$f":"F224-E224","v":{"$error":"#DIV/0!"}},{"$f":"G224-F224","v":{"$error":"#DIV/0!"}},{"$f":"H224-G224","v":{"$error":"#DIV/0!"}},{"$f":"I224-H224","v":{"$error":"#DIV/0!"}},{"$f":"J224-I224","v":{"$error":"#DIV/0!"}},{"$f":"K224-J224","v":{"$error":"#DIV/0!"}},{"$f":"L224-K224","v":{"$error":"#DIV/0!"}},{"$f":"M224-L224","v":{"$error":"#DIV/0!"}},{"$f":"N224-M224","v":{"$error":"#DIV/0!"}},{"$f":"O224-N224","v":{"$error":"#DIV/0!"}},{"$f":"P224-O224","v":{"$error":"#DIV/0!"}},{"$f":"Q224-P224","v":{"$error":"#DIV/0!"}},{"$f":"R224-Q224","v":{"$error":"#DIV/0!"}},{"$f":"S224-R224","v":{"$error":"#DIV/0!"}},{"$f":"T224-S224","v":{"$error":"#DIV/0!"}},{"$f":"U224-T224","v":{"$error":"#DIV/0!"}},{"$f":"V224-U224","v":{"$error":"#DIV/0!"}},{"$f":"W224-V224","v":{"$error":"#DIV/0!"}},{"$f":"X224-W224","v":{"$error":"#DIV/0!"}},{"$f":"Y224-X224","v":{"$error":"#DIV/0!"}},{"$f":"Z224-Y224","v":{"$error":"#DIV/0!"}},{"$f":"AA224-Z224","v":{"$error":"#DIV/0!"}},{"$f":"AB224-AA224","v":{"$error":"#DIV/0!"}},{"$f":"AC224-AB224","v":{"$error":"#DIV/0!"}},{"$f":"AD224-AC224","v":{"$error":"#DIV/0!"}},{"$f":"AE224-AD224","v":{"$error":"#DIV/0!"}},{"$f":"AF224-AE224","v":{"$error":"#DIV/0!"}},{"$f":"AG224-AF224","v":{"$error":"#DIV/0!"}},{"$f":"AH224-AG224","v":{"$error":"#DIV/0!"}},{"$f":"AI224-AH224","v":{"$error":"#DIV/0!"}},{"$f":"AJ224-AI224","v":{"$error":"#DIV/0!"}},{"$f":"AK224-AJ224","v":{"$error":"#DIV/0!"}},{"$f":"AL224-AK224","v":{"$error":"#DIV/0!"}},{"$f":"AM224-AL224","v":{"$error":"#DIV/0!"}},{"$f":"AN224-AM224","v":{"$error":"#DIV/0!"}},{"$f":"AO224-AN224","v":{"$error":"#DIV/0!"}},{"$f":"AP224-AO224","v":{"$error":"#DIV/0!"}},{"$f":"AQ224-AP224","v":{"$error":"#DIV/0!"}},{"$f":"AR224-AQ224","v":{"$error":"#DIV/0!"}},{"$f":"AS224-AR224","v":{"$error":"#DIV/0!"}},{"$f":"AT224-AS224","v":{"$error":"#DIV/0!"}},{"$f":"AU224-AT224","v":{"$error":"#DIV/0!"}},{"$f":"AV224-AU224","v":{"$error":"#DIV/0!"}},{"$f":"AW224-AV224","v":{"$error":"#DIV/0!"}},{"$f":"AX224-AW224","v":{"$error":"#DIV/0!"}},{"$f":"AY224-AX224","v":{"$error":"#DIV/0!"}},{"$f":"AZ224-AY224","v":{"$error":"#DIV/0!"}},{"$f":"BA224-AZ224","v":{"$error":"#DIV/0!"}},{"$f":"BB224-BA224","v":{"$error":"#DIV/0!"}},{"$f":"BC224-BB224","v":{"$error":"#DIV/0!"}},{"$f":"BD224-BC224","v":{"$error":"#DIV/0!"}},{"$f":"BE224-BD224","v":{"$error":"#DIV/0!"}},{"$f":"BF224-BE224","v":{"$error":"#DIV/0!"}},{"$f":"BG224-BF224","v":{"$error":"#DIV/0!"}},{"$f":"BH224-BG224","v":{"$error":"#DIV/0!"}},{"$f":"BI224-BH224","v":{"$error":"#DIV/0!"}},{"$f":"BJ224-BI224","v":{"$error":"#DIV/0!"}},{"$f":"BK224-BJ224","v":{"$error":"#DIV/0!"}},{"$f":"BL224-BK224","v":{"$error":"#DIV/0!"}},{"$f":"BM224-BL224","v":{"$error":"#DIV/0!"}},{"$f":"BN224-BM224","v":{"$error":"#DIV/0!"}},{"$f":"BO224-BN224","v":{"$error":"#DIV/0!"}},{"$f":"BP224-BO224","v":{"$error":"#DIV/0!"}},{"$f":"BQ224-BP224","v":{"$error":"#DIV/0!"}},{"$f":"BR224-BQ224","v":{"$error":"#DIV/0!"}},{"$f":"BS224-BR224","v":{"$error":"#DIV/0!"}},{"$f":"BT224-BS224","v":{"$error":"#DIV/0!"}},{"$f":"BU224-BT224","v":{"$error":"#DIV/0!"}},{"$f":"BV224-BU224","v":{"$error":"#DIV/0!"}},{"$f":"BW224-BV224","v":{"$error":"#DIV/0!"}},{"$f":"BX224-BW224","v":{"$error":"#DIV/0!"}},{"$f":"BY224-BX224","v":{"$error":"#DIV/0!"}},{"$f":"BZ224-BY224","v":{"$error":"#DIV/0!"}},{"$f":"CA224-BZ224","v":{"$error":"#DIV/0!"}},{"$f":"CB224-CA224","v":{"$error":"#DIV/0!"}},{"$f":"CC224-CB224","v":{"$error":"#DIV/0!"}},{"$f":"CD224-CC224","v":{"$error":"#DIV/0!"}},{"$f":"CE224-CD224","v":{"$error":"#DIV/0!"}},{"$f":"CF224-CE224","v":{"$error":"#DIV/0!"}},{"$f":"CG224-CF224","v":{"$error":"#DIV/0!"}},{"$f":"CH224-CG224","v":{"$error":"#DIV/0!"}},{"$f":"CI224-CH224","v":{"$error":"#DIV/0!"}},{"$f":"CJ224-CI224","v":{"$error":"#DIV/0!"}},{"$f":"CK224-CJ224","v":{"$error":"#DIV/0!"}},{"$f":"CL224-CK224","v":{"$error":"#DIV/0!"}},{"$f":"CM224-CL224","v":{"$error":"#DIV/0!"}},{"$f":"CN224-CM224","v":{"$error":"#DIV/0!"}},{"$f":"CO224-CN224","v":{"$error":"#DIV/0!"}},{"$f":"CP224-CO224","v":{"$error":"#DIV/0!"}},{"$f":"CQ224-CP224","v":{"$error":"#DIV/0!"}},{"$f":"CR224-CQ224","v":{"$error":"#DIV/0!"}},{"$f":"CS224-CR224","v":{"$error":"#DIV/0!"}},{"$f":"CT224-CS224","v":{"$error":"#DIV/0!"}},{"$f":"CU224-CT224","v":{"$error":"#DIV/0!"}},{"$f":"CV224-CU224","v":{"$error":"#DIV/0!"}},{"$f":"CW224-CV224","v":{"$error":"#DIV/0!"}},{"$f":"CX224-CW224","v":{"$error":"#DIV/0!"}},{"$f":"CY224-CX224","v":{"$error":"#DIV/0!"}},{"$f":"CZ224-CY224","v":{"$error":"#DIV/0!"}},{"$f":"DA224-CZ224","v":{"$error":"#DIV/0!"}},{"$f":"DB224-DA224","v":{"$error":"#DIV/0!"}},{"$f":"DC224-DB224","v":{"$error":"#DIV/0!"}},{"$f":"DD224-DC224","v":{"$error":"#DIV/0!"}},{"$f":"DE224-DD224","v":{"$error":"#DIV/0!"}},{"$f":"DF224-DE224","v":{"$error":"#DIV/0!"}},{"$f":"DG224-DF224","v":{"$error":"#DIV/0!"}},{"$f":"DH224-DG224","v":{"$error":"#DIV/0!"}},{"$f":"DI224-DH224","v":{"$error":"#DIV/0!"}},{"$f":"DJ224-DI224","v":{"$error":"#DIV/0!"}},{"$f":"DK224-DJ224","v":{"$error":"#DIV/0!"}},{"$f":"DL224-DK224","v":{"$error":"#DIV/0!"}},{"$f":"DM224-DL224","v":{"$error":"#DIV/0!"}},{"$f":"DN224-DM224","v":{"$error":"#DIV/0!"}},{"$f":"DO224-DN224","v":{"$error":"#DIV/0!"}},{"$f":"DP224-DO224","v":{"$error":"#DIV/0!"}},{"$f":"DQ224-DP224","v":{"$error":"#DIV/0!"}},{"$f":"DR224-DQ224","v":{"$error":"#DIV/0!"}},{"$f":"DS224-DR224","v":{"$error":"#DIV/0!"}},{"$f":"DT224-DS224","v":{"$error":"#DIV/0!"}},{"$f":"DU224-DT224","v":{"$error":"#DIV/0!"}},{"$f":"DV224-DU224","v":{"$error":"#DIV/0!"}},{"$f":"DW224-DV224","v":{"$error":"#DIV/0!"}},{"$f":"DX224-DW224","v":{"$error":"#DIV/0!"}},{"$f":"DY224-DX224","v":{"$error":"#DIV/0!"}},{"$f":"DZ224-DY224","v":{"$error":"#DIV/0!"}},{"$f":"EA224-DZ224","v":{"$error":"#DIV/0!"}},{"$f":"EB224-EA224","v":{"$error":"#DIV/0!"}},{"$f":"EC224-EB224","v":{"$error":"#DIV/0!"}},{"$f":"ED224-EC224","v":{"$error":"#DIV/0!"}},{"$f":"EE224-ED224","v":{"$error":"#DIV/0!"}},{"$f":"EF224-EE224","v":{"$error":"#DIV/0!"}},{"$f":"EG224-EF224","v":{"$error":"#DIV/0!"}},{"$f":"EH224-EG224","v":{"$error":"#DIV/0!"}},{"$f":"EI224-EH224","v":{"$error":"#DIV/0!"}},{"$f":"EJ224-EI224","v":{"$error":"#DIV/0!"}},{"$f":"EK224-EJ224","v":{"$error":"#DIV/0!"}},{"$f":"EL224-EK224","v":{"$error":"#DIV/0!"}},{"$f":"EM224-EL224","v":{"$error":"#DIV/0!"}},{"$f":"EN224-EM224","v":{"$error":"#DIV/0!"}},{"$f":"EO224-EN224","v":{"$error":"#DIV/0!"}},{"$f":"EP224-EO224","v":{"$error":"#DIV/0!"}},{"$f":"EQ224-EP224","v":{"$error":"#DIV/0!"}},{"$f":"ER224-EQ224","v":{"$error":"#DIV/0!"}},{"$f":"ES224-ER224","v":{"$error":"#DIV/0!"}},{"$f":"ET224-ES224","v":{"$error":"#DIV/0!"}},{"$f":"EU224-ET224","v":{"$error":"#DIV/0!"}},{"$f":"EV224-EU224","v":{"$error":"#DIV/0!"}}]
["Median",{"$f":"MEDIAN(B1:B206)","v":{"$error":"#NUM!"}},{"$f":"MEDIAN(C1:C206)","v":{"$error":"#NUM!"}},{"$error":"#NUM!"},{"$error":"#NUM!"},{"$error":"#NUM!"},{"$error":"#NUM!"},{"$error":"#NUM!"},{"$error":"#NUM!"},{"$error":"#NUM!"},{"$error":"#NUM!"},{"$error":"#NUM!"},{"$error":"#NUM!"},{"$error":"#NUM!"},{"$error":"#NUM!"},{"$error":"#NUM!"},{"$error":"#NUM!"},{"$error":"#NUM!"},{"$error":"#NUM!"},{"$error":"#NUM!"},{"$error":"#NUM!"},{"$error":"#NUM!"},{"$error":"#NUM!"},{"$error":"#NUM!"},{"$error":"#NUM!"},{"$error":"#NUM!"},{"$error":"#NUM!"},{"$error":"#NUM!"},{"$error":"#NUM!"},{"$error":"#NUM!"},{"$error":"#NUM!"},{"$error":"#NUM!"},{"$error":"#NUM!"},{"$error":"#NUM!"},{"$error":"#NUM!"},{"$error":"#NUM!"},{"$error":"#NUM!"},{"$error":"#NUM!"},{"$error":"#NUM!"},{"$error":"#NUM!"},{"$error":"#NUM!"},{"$error":"#NUM!"},{"$error":"#NUM!"},{"$error":"#NUM!"},{"$error":"#NUM!"},{"$error":"#NUM!"},{"$error":"#NUM!"},{"$error":"#NUM!"},{"$error":"#NUM!"},{"$error":"#NUM!"},{"$error":"#NUM!"},{"$error":"#NUM!"},{"$error":"#NUM!"},{"$error":"#NUM!"},{"$error":"#NUM!"},{"$error":"#NUM!"},{"$error":"#NUM!"},{"$error":"#NUM!"},{"$error":"#NUM!"},{"$error":"#NUM!"},{"$error":"#NUM!"},{"$error":"#NUM!"},{"$error":"#NUM!"},{"$error":"#NUM!"},{"$error":"#NUM!"},{"$error":"#NUM!"},{"$f":"MEDIAN(BO1:BO206)","v":{"$error":"#NUM!"}},{"$error":"#NUM!"},{"$error":"#NUM!"},{"$error":"#NUM!"},{"$error":"#NUM!"},{"$error":"#NUM!"},{"$error":"#NUM!"},{"$error":"#NUM!"},{"$error":"#NUM!"},{"$error":"#NUM!"},{"$error":"#NUM!"},{"$error":"#NUM!"},{"$error":"#NUM!"},{"$error":"#NUM!"},{"$error":"#NUM!"},{"$error":"#NUM!"},{"$error":"#NUM!"},{"$error":"#NUM!"},{"$error":"#NUM!"},{"$error":"#NUM!"},{"$error":"#NUM!"},{"$error":"#NUM!"},{"$error":"#NUM!"},{"$error":"#NUM!"},{"$error":"#NUM!"},{"$error":"#NUM!"},{"$error":"#NUM!"},{"$error":"#NUM!"},{"$error":"#NUM!"},{"$error":"#NUM!"},{"$error":"#NUM!"},{"$error":"#NUM!"},{"$error":"#NUM!"},{"$error":"#NUM!"},{"$error":"#NUM!"},{"$error":"#NUM!"},{"$error":"#NUM!"},{"$error":"#NUM!"},{"$error":"#NUM!"},{"$error":"#NUM!"},{"$error":"#NUM!"},{"$error":"#NUM!"},{"$error":"#NUM!"},{"$error":"#NUM!"},{"$error":"#NUM!"},{"$error":"#NUM!"},{"$error":"#NUM!"},{"$error":"#NUM!"},{"$error":"#NUM!"},{"$error":"#NUM!"},{"$error":"#NUM!"},{"$error":"#NUM!"},{"$error":"#NUM!"},{"$error":"#NUM!"},{"$error":"#NUM!"},{"$error":"#NUM!"},{"$error":"#NUM!"},{"$error":"#NUM!"},{"$error":"#NUM!"},{"$error":"#NUM!"},{"$error":"#NUM!"},{"$error":"#NUM!"},{"$error":"#NUM!"},{"$error":"#NUM!"},{"$f":"MEDIAN(EA1:EA206)","v":{"$error":"#NUM!"}},{"$error":"#NUM!"},{"$error":"#NUM!"},{"$error":"#NUM!"},{"$error":"#NUM!"},{"$error":"#NUM!"},{"$error":"#NUM!"},{"$error":"#NUM!"},{"$error":"#NUM!"},{"$error":"#NUM!"},{"$error":"#NUM!"},{"$error":"#NUM!"},{"$error":"#NUM!"},{"$error":"#NUM!"},{"$error":"#NUM!"},{"$error":"#NUM!"},{"$error":"#NUM!"},{"$error":"#NUM!"},{"$error":"#NUM!"},{"$error":"#NUM!"},{"$error":"#NUM!"},{"$error":"#NUM!"}]
["delta-Median",null,{"$f":"C226-B226","v":{"$error":"#NUM!"}},{"$f":"D226-C226","v":{"$error":"#NUM!"}},{"$f":"E226-D226","v":{"$error":"#NUM!"}},{"$f":"F226-E226","v":{"$error":"#NUM!"}},{"$f":"G226-F226","v":{"$error":"#NUM!"}},{"$f":"H226-G226","v":{"$error":"#NUM!"}},{"$f":"I226-H226","v":{"$error":"#NUM!"}},{"$f":"J226-I226","v":{"$error":"#NUM!"}},{"$f":"K226-J226","v":{"$error":"#NUM!"}},{"$f":"L226-K226","v":{"$error":"#NUM!"}},{"$f":"M226-L226","v":{"$error":"#NUM!"}},{"$f":"N226-M226","v":{"$error":"#NUM!"}},{"$f":"O226-N226","v":{"$error":"#NUM!"}},{"$f":"P226-O226","v":{"$error":"#NUM!"}},{"$f":"Q226-P226","v":{"$error":"#NUM!"}},{"$f":"R226-Q226","v":{"$error":"#NUM!"}},{"$f":"S226-R226","v":{"$error":"#NUM!"}},{"$f":"T226-S226","v":{"$error":"#NUM!"}},{"$f":"U226-T226","v":{"$error":"#NUM!"}},{"$f":"V226-U226","v":{"$error":"#NUM!"}},{"$f":"W226-V226","v":{"$error":"#NUM!"}},{"$f":"X226-W226","v":{"$error":"#NUM!"}},{"$f":"Y226-X226","v":{"$error":"#NUM!"}},{"$f":"Z226-Y226","v":{"$error":"#NUM!"}},{"$f":"AA226-Z226","v":{"$error":"#NUM!"}},{"$f":"AB226-AA226","v":{"$error":"#NUM!"}},{"$f":"AC226-AB226","v":{"$error":"#NUM!"}},{"$f":"AD226-AC226","v":{"$error":"#NUM!"}},{"$f":"AE226-AD226","v":{"$error":"#NUM!"}},{"$f":"AF226-AE226","v":{"$error":"#NUM!"}},{"$f":"AG226-AF226","v":{"$error":"#NUM!"}},{"$f":"AH226-AG226","v":{"$error":"#NUM!"}},{"$f":"AI226-AH226","v":{"$error":"#NUM!"}},{"$f":"AJ226-AI226","v":{"$error":"#NUM!"}},{"$f":"AK226-AJ226","v":{"$error":"#NUM!"}},{"$f":"AL226-AK226","v":{"$error":"#NUM!"}},{"$f":"AM226-AL226","v":{"$error":"#NUM!"}},{"$f":"AN226-AM226","v":{"$error":"#NUM!"}},{"$f":"AO226-AN226","v":{"$error":"#NUM!"}},{"$f":"AP226-AO226","v":{"$error":"#NUM!"}},{"$f":"AQ226-AP226","v":{"$error":"#NUM!"}},{"$f":"AR226-AQ226","v":{"$error":"#NUM!"}},{"$f":"AS226-AR226","v":{"$error":"#NUM!"}},{"$f":"AT226-AS226","v":{"$error":"#NUM!"}},{"$f":"AU226-AT226","v":{"$error":"#NUM!"}},{"$f":"AV226-AU226","v":{"$error":"#NUM!"}},{"$f":"AW226-AV226","v":{"$error":"#NUM!"}},{"$f":"AX226-AW226","v":{"$error":"#NUM!"}},{"$f":"AY226-AX226","v":{"$error":"#NUM!"}},{"$f":"AZ226-AY226","v":{"$error":"#NUM!"}},{"$f":"BA226-AZ226","v":{"$error":"#NUM!"}},{"$f":"BB226-BA226","v":{"$error":"#NUM!"}},{"$f":"BC226-BB226","v":{"$error":"#NUM!"}},{"$f":"BD226-BC226","v":{"$error":"#NUM!"}},{"$f":"BE226-BD226","v":{"$error":"#NUM!"}},{"$f":"BF226-BE226","v":{"$error":"#NUM!"}},{"$f":"BG226-BF226","v":{"$error":"#NUM!"}},{"$f":"BH226-BG226","v":{"$error":"#NUM!"}},{"$f":"BI226-BH226","v":{"$error":"#NUM!"}},{"$f":"BJ226-BI226","v":{"$error":"#NUM!"}},{"$f":"BK226-BJ226","v":{"$error":"#NUM!"}},{"$f":"BL226-BK226","v":{"$error":"#NUM!"}},{"$f":"BM226-BL226","v":{"$error":"#NUM!"}},{"$f":"BN226-BM226","v":{"$error":"#NUM!"}},{"$f":"BO226-BN226","v":{"$error":"#NUM!"}},{"$f":"BP226-BO226","v":{"$error":"#NUM!"}},{"$f":"BQ226-BP226","v":{"$error":"#NUM!"}},{"$f":"BR226-BQ226","v":{"$error":"#NUM!"}},{"$f":"BS226-BR226","v":{"$error":"#NUM!"}},{"$f":"BT226-BS226","v":{"$error":"#NUM!"}},{"$f":"BU226-BT226","v":{"$error":"#NUM!"}},{"$f":"BV226-BU226","v":{"$error":"#NUM!"}},{"$f":"BW226-BV226","v":{"$error":"#NUM!"}},{"$f":"BX226-BW226","v":{"$error":"#NUM!"}},{"$f":"BY226-BX226","v":{"$error":"#NUM!"}},{"$f":"BZ226-BY226","v":{"$error":"#NUM!"}},{"$f":"CA226-BZ226","v":{"$error":"#NUM!"}},{"$f":"CB226-CA226","v":{"$error":"#NUM!"}},{"$f":"CC226-CB226","v":{"$error":"#NUM!"}},{"$f":"CD226-CC226","v":{"$error":"#NUM!"}},{"$f":"CE226-CD226","v":{"$error":"#NUM!"}},{"$f":"CF226-CE226","v":{"$error":"#NUM!"}},{"$f":"CG226-CF226","v":{"$error":"#NUM!"}},{"$f":"CH226-CG226","v":{"$error":"#NUM!"}},{"$f":"CI226-CH226","v":{"$error":"#NUM!"}},{"$f":"CJ226-CI226","v":{"$error":"#NUM!"}},{"$f":"CK226-CJ226","v":{"$error":"#NUM!"}},{"$f":"CL226-CK226","v":{"$error":"#NUM!"}},{"$f":"CM226-CL226","v":{"$error":"#NUM!"}},{"$f":"CN226-CM226","v":{"$error":"#NUM!"}},{"$f":"CO226-CN226","v":{"$error":"#NUM!"}},{"$f":"CP226-CO226","v":{"$error":"#NUM!"}},{"$f":"CQ226-CP226","v":{"$error":"#NUM!"}},{"$f":"CR226-CQ226","v":{"$error":"#NUM!"}},{"$f":"CS226-CR226","v":{"$error":"#NUM!"}},{"$f":"CT226-CS226","v":{"$error":"#NUM!"}},{"$f":"CU226-CT226","v":{"$error":"#NUM!"}},{"$f":"CV226-CU226","v":{"$error":"#NUM!"}},{"$f":"CW226-CV226","v":{"$error":"#NUM!"}},{"$f":"CX226-CW226","v":{"$error":"#NUM!"}},{"$f":"CY226-CX226","v":{"$error":"#NUM!"}},{"$f":"CZ226-CY226","v":{"$error":"#NUM!"}},{"$f":"DA226-CZ226","v":{"$error":"#NUM!"}},{"$f":"DB226-DA226","v":{"$error":"#NUM!"}},{"$f":"DC226-DB226","v":{"$error":"#NUM!"}},{"$f":"DD226-DC226","v":{"$error":"#NUM!"}},{"$f":"DE226-DD226","v":{"$error":"#NUM!"}},{"$f":"DF226-DE226","v":{"$error":"#NUM!"}},{"$f":"DG226-DF226","v":{"$error":"#NUM!"}},{"$f":"DH226-DG226","v":{"$error":"#NUM!"}},{"$f":"DI226-DH226","v":{"$error":"#NUM!"}},{"$f":"DJ226-DI226","v":{"$error":"#NUM!"}},{"$f":"DK226-DJ226","v":{"$error":"#NUM!"}},{"$f":"DL226-DK226","v":{"$error":"#NUM!"}},{"$f":"DM226-DL226","v":{"$error":"#NUM!"}},{"$f":"DN226-DM226","v":{"$error":"#NUM!"}},{"$f":"DO226-DN226","v":{"$error":"#NUM!"}},{"$f":"DP226-DO226","v":{"$error":"#NUM!"}},{"$f":"DQ226-DP226","v":{"$error":"#NUM!"}},{"$f":"DR226-DQ226","v":{"$error":"#NUM!"}},{"$f":"DS226-DR226","v":{"$error":"#NUM!"}},{"$f":"DT226-DS226","v":{"$error":"#NUM!"}},{"$f":"DU226-DT226","v":{"$error":"#NUM!"}},{"$f":"DV226-DU226","v":{"$error":"#NUM!"}},{"$f":"DW226-DV226","v":{"$error":"#NUM!"}},{"$f":"DX226-DW226","v":{"$error":"#NUM!"}},{"$f":"DY226-DX226","v":{"$error":"#NUM!"}},{"$f":"DZ226-DY226","v":{"$error":"#NUM!"}},{"$f":"EA226-DZ226","v":{"$error":"#NUM!"}},{"$f":"EB226-EA226","v":{"$error":"#NUM!"}},{"$f":"EC226-EB226","v":{"$error":"#NUM!"}},{"$f":"ED226-EC226","v":{"$error":"#NUM!"}},{"$f":"EE226-ED226","v":{"$error":"#NUM!"}},{"$f":"EF226-EE226","v":{"$error":"#NUM!"}},{"$f":"EG226-EF226","v":{"$error":"#NUM!"}},{"$f":"EH226-EG226","v":{"$error":"#NUM!"}},{"$f":"EI226-EH226","v":{"$error":"#NUM!"}},{"$f":"EJ226-EI226","v":{"$error":"#NUM!"}},{"$f":"EK226-EJ226","v":{"$error":"#NUM!"}},{"$f":"EL226-EK226","v":{"$error":"#NUM!"}},{"$f":"EM226-EL226","v":{"$error":"#NUM!"}},{"$f":"EN226-EM226","v":{"$error":"#NUM!"}},{"$f":"EO226-EN226","v":{"$error":"#NUM!"}},{"$f":"EP226-EO226","v":{"$error":"#NUM!"}},{"$f":"EQ226-EP226","v":{"$error":"#NUM!"}},{"$f":"ER226-EQ226","v":{"$error":"#NUM!"}},{"$f":"ES226-ER226","v":{"$error":"#NUM!"}},{"$f":"ET226-ES226","v":{"$error":"#NUM!"}},{"$f":"EU226-ET226","v":{"$error":"#NUM!"}},{"$f":"EV226-EU226","v":{"$error":"#NUM!"}}]
["Mode",{"$f":"MODE(B1:B206)","v":{"$error":"#N/A"}},{"$f":"MODE(C1:C206)","v":{"$error":"#N/A"}},{"$error":"#N/A"},{"$error":"#N/A"},{"$error":"#N/A"},{"$error":"#N/A"},{"$error":"#N/A"},{"$error":"#N/A"},{"$error":"#N/A"},{"$error":"#N/A"},{"$error":"#N/A"},{"$error":"#N/A"},{"$error":"#N/A"},{"$error":"#N/A"},{"$error":"#N/A"},{"$error":"#N/A"},{"$error":"#N/A"},{"$error":"#N/A"},{"$error":"#N/A"},{"$error":"#N/A"},{"$error":"#N/A"},{"$error":"#N/A"},{"$error":"#N/A"},{"$error":"#N/A"},{"$error":"#N/A"},{"$error":"#N/A"},{"$error":"#N/A"},{"$error":"#N/A"},{"$error":"#N/A"},{"$error":"#N/A"},{"$error":"#N/A"},{"$error":"#N/A"},{"$error":"#N/A"},{"$error":"#N/A"},{"$error":"#N/A"},{"$error":"#N/A"},{"$error":"#N/A"},{"$error":"#N/A"},{"$error":"#N/A"},{"$error":"#N/A"},{"$error":"#N/A"},{"$error":"#N/A"},{"$error":"#N/A"},{"$error":"#N/A"},{"$error":"#N/A"},{"$error":"#N/A"},{"$error":"#N/A"},{"$error":"#N/A"},{"$error":"#N/A"},{"$error":"#N/A"},{"$error":"#N/A"},{"$error":"#N/A"},{"$error":"#N/A"},{"$error":"#N/A"},{"$error":"#N/A"},{"$error":"#N/A"},{"$error":"#N/A"},{"$error":"#N/A"},{"$error":"#N/A"},{"$error":"#N/A"},{"$error":"#N/A"},{"$error":"#N/A"},{"$error":"#N/A"},{"$error":"#N/A"},{"$error":"#N/A"},{"$f":"MODE(BO1:BO206)","v":{"$error":"#N/A"}},{"$error":"#N/A"},{"$error":"#N/A"},{"$error":"#N/A"},{"$error":"#N/A"},{"$error":"#N/A"},{"$error":"#N/A"},{"$error":"#N/A"},{"$error":"#N/A"},{"$error":"#N/A"},{"$error":"#N/A"},{"$error":"#N/A"},{"$error":"#N/A"},{"$error":"#N/A"},{"$error":"#N/A"},{"$error":"#N/A"},{"$error":"#N/A"},{"$error":"#N/A"},{"$error":"#N/A"},{"$error":"#N/A"},{"$error":"#N/A"},{"$error":"#N/A"},{"$error":"#N/A"},{"$error":"#N/A"},{"$error":"#N/A"},{"$error":"#N/A"},{"$error":"#N/A"},{"$error":"#N/A"},{"$error":"#N/A"},{"$error":"#N/A"},{"$error":"#N/A"},{"$error":"#N/A"},{"$error":"#N/A"},{"$error":"#N/A"},{"$error":"#N/A"},{"$error":"#N/A"},{"$error":"#N/A"},{"$error":"#N/A"},{"$error":"#N/A"},{"$error":"#N/A"},{"$error":"#N/A"},{"$error":"#N/A"},{"$error":"#N/A"},{"$error":"#N/A"},{"$error":"#N/A"},{"$error":"#N/A"},{"$error":"#N/A"},{"$error":"#N/A"},{"$error":"#N/A"},{"$error":"#N/A"},{"$error":"#N/A"},{"$error":"#N/A"},{"$error":"#N/A"},{"$error":"#N/A"},{"$error":"#N/A"},{"$error":"#N/A"},{"$error":"#N/A"},{"$error":"#N/A"},{"$error":"#N/A"},{"$error":"#N/A"},{"$error":"#N/A"},{"$error":"#N/A"},{"$error":"#N/A"},{"$error":"#N/A"},{"$f":"MODE(EA1:EA206)","v":{"$error":"#N/A"}},{"$error":"#N/A"},{"$error":"#N/A"},{"$error":"#N/A"},{"$error":"#N/A"},{"$error":"#N/A"},{"$error":"#N/A"},{"$error":"#N/A"},{"$error":"#N/A"},{"$error":"#N/A"},{"$error":"#N/A"},{"$error":"#N/A"},{"$error":"#N/A"},{"$error":"#N/A"},{"$error":"#N/A"},{"$error":"#N/A"},{"$error":"#N/A"},{"$error":"#N/A"},{"$error":"#N/A"},{"$error":"#N/A"},{"$error":"#N/A"},{"$error":"#N/A"}]
["Minimum",{"$f":"MIN(B1:B206)","v":0},{"$f":"MIN(C1:C206)","v":0},0,0,0,0,0,0,0,0,0,0,0,0,0,0,0,0,0,0,0,0,0,0,0,0,0,0,0,0,0,0,0,0,0,0,0,0,0,0,0,0,0,0,0,0,0,0,0,0,0,0,0,0,0,0,0,0,0,0,0,0,0,0,0,{"$f":"MIN(BO1:BO206)","v":0},0,0,0,0,0,0,0,0,0,0,0,0,0,0,0,0,0,0,0,0,0,0,0,0,0,0,0,0,0,0,0,0,0,0,0,0,0,0,0,0,0,0,0,0,0,0,0,0,0,0,0,0,0,0,0,0,0,0,0,0,0,0,0,{"$f":"MIN(EA1:EA206)","v":0},0,0,0,0,0,0,0,0,0,0,0,0,0,0,0,0,0,0,0,0,0]
["# @ Minimum",{"$f":"COUNTIF(B1:B206,\"<=\"&B229)","v":0},{"$f":"COUNTIF(C1:C206,\"<=\"&C229)","v":0},0,0,0,0,0,0,0,0,0,0,0,0,0,0,0,0,0,0,0,0,0,0,0,0,0,0,0,0,0,0,0,0,0,0,0,0,0,0,0,0,0,0,0,0,0,0,0,0,0,0,0,0,0,0,0,0,0,0,0,0,0,0,0,{"$f":"COUNTIF(BO1:BO206,\"<=\"&BO229)","v":0},0,0,0,0,0,0,0,0,0,0,0,0,0,0,0,0,0,0,0,0,0,0,0,0,0,0,0,0,0,0,0,0,0,0,0,0,0,0,0,0,0,0,0,0,0,0,0,0,0,0,0,0,0,0,0,0,0,0,0,0,0,0,0,{"$f":"COUNTIF(EA1:EA206,\"<=\"&EA229)","v":0},0,0,0,0,0,0,0,0,0,0,0,0,0,0,0,0,0,0,0,0,0]
["% of Total",{"$f":"B230/206","v":0},{"$f":"C230/206","v":0},0,0,0,0,0,0,0,0,0,0,0,0,0,0,0,0,0,0,0,0,0,0,0,0,0,0,0,0,0,0,0,0,0,0,0,0,0,0,0,0,0,0,0,0,0,0,0,0,0,0,0,0,0,0,0,0,0,0,0,0,0,0,0,{"$f":"BO230/206","v":0},0,0,0,0,0,0,0,0,0,0,0,0,0,0,0,0,0,0,0,0,0,0,0,0,0,0,0,0,0,0,0,0,0,0,0,0,0,0,0,0,0,0,0,0,0,0,0,0,0,0,0,0,0,0,0,0,0,0,0,0,0,0,0,{"$f":"EA230/206","v":0},0,0,0,0,0,0,0,0,0,0,0,0,0,0,0,0,0,0,0,0,0]
["# > Mean",{"$f":"COUNTIF(B1:B206,\">\"&B224)","v":0},{"$f":"COUNTIF(C1:C206,\">\"&C224)","v":0},0,0,0,0,0,0,0,0,0,0,0,0,0,0,0,0,0,0,0,0,0,0,0,0,0,0,0,0,0,0,0,0,0,0,0,0,0,0,0,0,0,0,0,0,0,0,0,0,0,0,0,0,0,0,0,0,0,0,0,0,0,0,0,{"$f":"COUNTIF(BO1:BO206,\">\"&BO224)","v":0},0,0,0,0,0,0,0,0,0,0,0,0,0,0,0,0,0,0,0,0,0,0,0,0,0,0,0,0,0,0,0,0,0,0,0,0,0,0,0,0,0,0,0,0,0,0,0,0,0,0,0,0,0,0,0,0,0,0,0,0,0,0,0,{"$f":"COUNTIF(EA1:EA206,\">\"&EA224)","v":0},0,0,0,0,0,0,0,0,0,0,0,0,0,0,0,0,0,0,0,0,0]
["% of Total",{"$f":"B232/206","v":0},{"$f":"C232/206","v":0},0,0,0,0,0,0,0,0,0,0,0,0,0,0,0,0,0,0,0,0,0,0,0,0,0,0,0,0,0,0,0,0,0,0,0,0,0,0,0,0,0,0,0,0,0,0,0,0,0,0,0,0,0,0,0,0,0,0,0,0,0,0,0,{"$f":"BO232/206","v":0},0,0,0,0,0,0,0,0,0,0,0,0,0,0,0,0,0,0,0,0,0,0,0,0,0,0,0,0,0,0,0,0,0,0,0,0,0,0,0,0,0,0,0,0,0,0,0,0,0,0,0,0,0,0,0,0,0,0,0,0,0,0,0,{"$f":"EA232/206","v":0},0,0,0,0,0,0,0,0,0,0,0,0,0,0,0,0,0,0,0,0,0]
["# in between",{"$f":"COUNT(B1:B206)-B230-B232","v":0},{"$f":"COUNT(C1:C206)-C230-C232","v":0},0,0,0,0,0,0,0,0,0,0,0,0,0,0,0,0,0,0,0,0,0,0,0,0,0,0,0,0,0,0,0,0,0,0,0,0,0,0,0,0,0,0,0,0,0,0,0,0,0,0,0,0,0,0,0,0,0,0,0,0,0,0,0,{"$f":"COUNT(BO1:BO206)-BO230-BO232","v":0},0,0,0,0,0,0,0,0,0,0,0,0,0,0,0,0,0,0,0,0,0,0,0,0,0,0,0,0,0,0,0,0,0,0,0,0,0,0,0,0,0,0,0,0,0,0,0,0,0,0,0,0,0,0,0,0,0,0,0,0,0,0,0,{"$f":"COUNT(EA1:EA206)-EA230-EA232","v":0},0,0,0,0,0,0,0,0,0,0,0,0,0,0,0,0,0,0,0,0,0]
["% of Total",{"$f":"B234/206","v":0},{"$f":"C234/206","v":0},0,0,0,0,0,0,0,0,0,0,0,0,0,0,0,0,0,0,0,0,0,0,0,0,0,0,0,0,0,0,0,0,0,0,0,0,0,0,0,0,0,0,0,0,0,0,0,0,0,0,0,0,0,0,0,0,0,0,0,0,0,0,0,{"$f":"BO234/206","v":0},0,0,0,0,0,0,0,0,0,0,0,0,0,0,0,0,0,0,0,0,0,0,0,0,0,0,0,0,0,0,0,0,0,0,0,0,0,0,0,0,0,0,0,0,0,0,0,0,0,0,0,0,0,0,0,0,0,0,0,0,0,0,0,{"$f":"EA234/206","v":0},0,0,0,0,0,0,0,0,0,0,0,0,0,0,0,0,0,0,0,0,0]

{"sheet":"MasterFacilityData","index":4,"n_rows":207,"n_cols":25,"rows_kept":207,"cut":false,"hidden":true,"merged":[]}
["Facility ID","Primary Name","Non-EGU or EGU?","PM ALW","PM ACT","SO2 ALW","SO2 ACT","VOC ALW","VOC ACT","NOX ALW","NOX ACT","HAP NOstd ALW","HAP NOstd ACT","HAP std ALW","HAP std ACT","NSPS ALW","NSPS ACT","TOTAL ALW","TOTAL ACT",null,null,null,null,null,"Billing Mode"]
["01-0009","Tennessee Valley Authority - Bull Run Fossil Plant","EGU",null,116,null,199,null,20.2,null,794,null,6.8,null,null,null,null,{"$f":"SUM(D2+F2+H2+J2+L2+N2+P2)","v":0},{"$f":"SUM(E2,G2,I2,K2,M2,O2,Q2)","v":1136},null,null,null,null,null,"Actuals"]
["01-0020","US Department of Energy - Oak Ridge Y-12 National Security Complex","Non-EGU",168.57,3.4,0,0.32,59.23,3.07,165.48,15.41,48,14.43,2,2.65E-3,0,0,443.28,36.632649999999998,null,null,null,null,null,"Mixed"]
["01-0114","The Carlstar Group LLC","Non-EGU",61.42,null,null,7.4999999999999997E-2,null,70.12,null,14.48,null,null,null,null,null,null,61.42,84.675000000000011,null,null,null,null,null,"Mixed"]
["01-0170","Chestnut Ridge Landfill and Recycling Center","Non-EGU",null,7.47,null,13.13,null,20.96,null,69.09,null,null,null,null,null,null,0,110.65,null,null,null,null,null,"Actuals"]
["03-0045","West Camden Sanitary Landfill","Non-EGU",null,8.5,null,29.87,null,19.940000000000001,null,48.18,null,null,null,null,null,null,0,106.49000000000001,null,null,null,null,null,"Actuals"]
["05-0008","Arconic Inc. ","Non-EGU",null,110.69,null,5.93,null,204.4,null,158.82,null,6.6369999999999996,null,56.214700000000001,null,null,0,542.69169999999997,null,null,null,null,null,"Actuals"]
["05-0011","Alcoa/Maryville/Blount County Landfill","Non-EGU",null,18.38,null,null,null,6.03,null,1.1399999999999999,null,0.61799999999999999,null,null,null,null,0,26.167999999999999,null,null,null,null,null,"Actuals"]
["05-0183","Denso Manufacturing Tennessee, Inc.","Non-EGU",15.29,null,0,null,112,null,0,null,null,null,24.95,null,0.2,null,152.43999999999997,0,null,null,null,null,null,"Allowables"]
["05-0199","Skier's Choice, Inc","Non-EGU",45.2,null,0,null,245,null,0,null,null,null,0,null,0,null,290.2,0,null,null,null,null,null,"Allowables"]
["06-0014","Olin Corporation","Non-EGU",12.9,null,33.5,null,6.75,null,163.19999999999999,null,null,null,3.6,null,4.3,null,224.25,0,null,null,null,null,null,"Allowables"]
["06-0085","Duracell Manufacturing, Inc.","Non-EGU",65.599999999999994,null,0,null,77.400000000000006,null,0,null,null,null,0,null,0,null,143,0,null,null,null,null,null,"Allowables"]
["06-0205","Bradley County Landfill (Bradley County Government)","Non-EGU",null,null,null,null,null,15.85,null,null,null,null,null,null,null,9.3699999999999992,0,25.22,null,null,null,null,null,"Actuals"]
["06-0215","Innovative Water Care, LLC","Non-EGU",234.8,null,0.2,null,1.5,null,39.5,null,null,null,40,null,0,null,316,0,null,null,null,null,null,"Allowables"]
["09-0012","GrÃ¤nges Americas Inc.","Non-EGU",102.8,null,254.7,null,2002.61,null,224.5,null,null,null,24.9,null,0,null,2609.5099999999998,0,null,null,null,null,null,"Allowables"]
["11-0023","State Industries Incorporated","Non-EGU",133.4,1,25.8,null,4.0999999999999996,253,77.900000000000006,null,null,null,null,null,null,null,241.20000000000002,254,null,null,null,null,null,"Mixed"]
["11-0039","Arcosa Marine Products, Inc. [Plant No. 296]","Non-EGU",28.6,null,0,null,221,null,0,null,null,null,0,null,0,null,249.6,0,null,null,null,null,null,"Allowables"]
["13-0083","SumiRiko Tennessee, Inc. - Tazewell","Non-EGU",null,12.04,null,null,null,220.78,null,null,null,null,null,null,null,null,0,232.82,null,null,null,null,null,"Actuals"]
["14-0022","Honest Abe Log Homes, Inc.","Non-EGU",273.47000000000003,null,22.95,null,2.15,null,28.03,null,null,null,0,null,0,null,326.60000000000002,0,null,null,null,null,null,"Allowables"]
["15-0005","SI Group, Inc.","Non-EGU",11.92,null,28.23,null,35.03,null,61.23,null,null,null,0,null,0,null,136.41,0,null,null,null,null,null,"Allowables"]
["15-0009","Commercial Furniture Group","Non-EGU",100.73,null,0,null,107,null,0,null,null,null,0,null,0,null,207.73000000000002,0,null,null,null,null,null,"Allowables"]
["15-0020","Sonoco Products Company","Non-EGU",null,2.02,null,0.16,null,2.6890000000000001,null,26.6,null,null,null,2.4300000000000002,null,null,0,33.899000000000001,null,null,null,null,null,"Actuals"]
["16-0010","Arnold Engineering Development Complex","Non-EGU",null,4.6269999999999998,null,2.7290000000000001,null,12.042999999999999,null,59.154000000000003,null,null,null,null,null,null,0,78.552999999999997,null,null,null,null,null,"Actuals"]
["16-0067","Batesville Manufacturing, Inc.","Non-EGU",null,9.4930000000000003,null,null,null,196.64,null,null,null,31.34,null,null,null,null,0,237.47299999999998,null,null,null,null,null,"Actuals"]
["16-0113","Kasai North America, Inc.","Non-EGU",41,null,0,null,225,null,6,null,null,null,0,null,0,null,272,0,null,null,null,null,null,"Allowables"]
["16-0123","Sonoco Protective Solutions, Inc.","Non-EGU",null,0.69,null,0.05,null,56.2,null,9.11,null,null,null,null,null,null,0,66.050000000000011,null,null,null,null,null,"Actuals"]
["18-0090","Crossville Hardwoods, LLC","Non-EGU",null,102.38800000000001,null,1.456,null,6.6319999999999997,null,28.548999999999999,null,null,null,null,null,null,0,139.02500000000001,null,null,null,null,null,"Actuals"]
["18-0120","StonePeak Ceramics, Inc.","Non-EGU",313.67,null,196.97,null,79.38,null,255.13,null,null,null,18.759999999999998,null,0,null,863.91,0,null,null,null,null,null,"Allowables"]
["20-0052","Decatur County Municipal Solid Waste Landfill","Non-EGU",null,null,null,null,null,16.3,null,null,null,null,null,null,null,null,0,16.3,null,null,null,null,null,"Actuals"]
["21-0031","Federal-Mogul Motorparts","Non-EGU",null,1.68,null,1.93,null,53.14,null,13.04,null,null,null,5.34,null,null,0,75.13,null,null,null,null,null,"Actuals"]
["22-0055","Ebbtide Holdings, LLC ","Non-EGU",null,null,null,null,null,null,null,null,null,null,null,null,null,null,0,0,null,null,null,null,null,"Mixed"]
["22-0072","Nemak USA, Inc.","Non-EGU",null,97.19,null,0.2,null,117.12,null,30.42,null,0.08,null,0.22,null,null,0,245.23000000000002,null,null,null,null,null,"Actuals"]
["22-0112","Bridgestone APM","Non-EGU",null,0.67900000000000005,null,1E-3,null,134.79,null,0.1,null,2.46,null,null,null,null,0,138.03,null,null,null,null,null,"Actuals"]
["22-0177","Dal-Tile Tennessee LLC dba Dal-Tile Dickson","Non-EGU",null,63.5,null,1.2,null,38.4,null,47.1,null,1.6,null,null,0,null,0,151.79999999999998,null,null,null,null,null,"Actuals"]
["23-0092","Trunkline Gas Company- Dyersburg Compressor Station","Non-EGU",null,0.23,null,1.65,null,1.05,null,33.729999999999997,null,0.04,null,null,null,null,0,36.699999999999996,null,null,null,null,null,"Actuals"]
["23-0120","SRG Global Coatings, Inc. - Newbern","Non-EGU",103.5,null,0.44,null,230.2,null,4.4000000000000004,null,null,null,24.9,null,0,null,363.43999999999994,0,null,null,null,null,null,"Allowables"]
["23-0182","Frazier Industrial Company - Dyersburg Facility","Non-EGU",13.469999999999999,null,0.01,null,244,null,0.86,null,null,null,0,null,0,null,258.34000000000003,0,null,null,null,null,null,"Allowables"]
["24-0080","Stabilit America, Inc.","Non-EGU",11.8,null,0,null,50.3,null,9.4,null,null,null,0,null,0,null,71.5,0,null,null,null,null,null,"Allowables"]
["26-0079","Tepro Inc.","Non-EGU",17.52,null,0,null,130,null,0,null,null,null,0,null,0,null,147.52000000000001,0,null,null,null,null,null,"Allowables"]
["26-0086","Tennessee Zanini, Inc.","Non-EGU",null,5.4,null,null,null,109.1,null,null,null,17,null,null,null,null,0,131.5,null,null,null,null,null,"Actuals"]
["26-0131","CJBBB, Inc. dba Phoenix Boats","Non-EGU",null,0.48,null,null,null,55.65,null,null,null,null,null,null,null,null,0,56.129999999999995,null,null,null,null,null,"Actuals"]
["27-0100","Ceco Door Products","Non-EGU",93.8,null,0.12,null,230.5,null,19.84,null,null,null,0,null,0,null,344.26,0,null,null,null,null,null,"Allowables"]
["28-0025","Magotteaux Incorporated","Non-EGU",195.8,null,58.5,null,118.2,null,22.4,null,null,null,0,null,0,null,394.9,0,null,null,null,null,null,"Allowables"]
["28-0076","Adient US LLC","Non-EGU",113.9,null,0,null,285.89999999999998,null,0,null,null,null,0,null,0,null,399.79999999999995,0,null,null,null,null,null,"Allowables"]
["28-0091","SaarGummi Tennessee, LLC","Non-EGU",22.2,null,0,null,91.5,null,0,null,null,null,0,null,0,null,113.7,0,null,null,null,null,null,"Allowables"]
["30-0001","Imerys Fused Minerals Greeneville, Inc. ","Non-EGU",244.65,null,0.15,null,1.23,null,41.4,null,null,null,0,null,0,null,287.43,0,null,null,null,null,null,"Allowables"]
["30-0132","Plus Mark, Inc.","Non-EGU",null,0.187,null,1.7000000000000001E-2,null,185.489,null,1.5209999999999999,null,null,null,null,null,null,0,187.214,null,null,null,null,null,"Actuals"]
["30-0136","Donaldson Company, Inc.","Non-EGU",18.600000000000001,null,0,null,70.5,null,0,null,null,null,29.6,null,0,null,118.69999999999999,0,null,null,null,null,null,"Allowables"]
["30-0165","Delfasco, LLC ","Non-EGU",19.7,null,0,null,99.9,null,0,null,null,null,0,null,0,null,119.60000000000001,0,null,null,null,null,null,"Allowables"]
["30-0166","SumiRiko Tennessee, Inc.","Non-EGU",null,39.119999999999997,null,2.1399999999999999E-2,null,106.72,null,3.04,null,null,null,null,null,null,0,148.9014,null,null,null,null,null,"Actuals"]
["30-0190","Sea Ray Boats","Non-EGU",48.4,null,0,null,129,null,0,null,null,null,0,null,0,null,177.4,0,null,null,null,null,null,"Allowables"]
["32-0196","Sonoco Flexible Packaging, Inc.","Non-EGU",null,null,null,null,null,33.649000000000001,null,null,null,null,null,null,null,null,0,33.649000000000001,null,null,null,null,null,"Actuals"]
["32-0275","Trelleborg Coated Systems US, Inc. dba Morristown Facility","Non-EGU",null,1.47,null,0.1,null,14.4,null,1.86,null,null,null,null,null,null,0,17.830000000000002,null,null,null,null,null,"Actuals"]
["34-0014","Powell Valley Electric Cooperative, Inc.","Non-EGU",null,6.9000000000000006E-2,null,0.14000000000000001,null,0.1217,null,8.5039999999999996,null,null,null,null,null,null,0,8.8346999999999998,null,null,null,null,null,"Actuals"]
["35-0001","Kilgore Flares Company, LLC","Non-EGU",55.2,null,0.1,null,82.2,null,2,null,null,null,0.7,null,0,null,140.19999999999999,0,null,null,null,null,null,"Allowables"]
["35-0004","Thyssen Elevator Systems, Inc.","Non-EGU",84.5,null,0,null,398.2,null,1.64,null,null,null,0,null,0,null,484.34,0,null,null,null,null,null,"Allowables"]
["35-0006","Tennessee Gas Pipeline Company, LLC - Compressor Station 71","Non-EGU",null,4.3,null,0.06,null,10.54,null,354.49,null,1.66E-2,null,null,null,null,0,369.40659999999997,null,null,null,null,null,"Actuals"]
["36-0002","Packaging Corporation of America","Non-EGU",463.8,null,1800,null,794.1,null,1665.5,null,null,null,184.6,null,199.2,null,5107.2,0,null,null,null,null,null,"Allowables"]
["36-0061","Tennessee Gas Pipeline Company,  LLC - Compressor Station 856","Non-EGU",null,0,null,0,null,0,null,0,null,null,null,null,null,null,0,0,null,null,null,null,null,"Mixed"]
["36-0074","The Praxis Companies, LLC dba American Whirlpool","Non-EGU",12.7,null,0,null,486,null,0,null,null,null,0,null,0,null,498.7,0,null,null,null,null,null,"Allowables"]
["37-0001","Holliston Holdings, LLC","Non-EGU",null,0.84299999999999997,null,8.1000000000000003E-2,null,27.832999999999998,null,18.46,null,88.129000000000005,null,null,null,null,0,135.346,null,null,null,null,null,"Actuals"]
["37-0007","Tennessee Valley Authority - John Sevier Combined Cycle Plant","EGU",null,80,null,11,null,52.9,null,176,null,null,null,null,null,null,0,319.89999999999998,null,null,null,null,null,"Actuals"]
["37-0026","AGC Flat Glass North America, Inc. - Greenland Plant","Non-EGU",213.59,null,582.26,null,117.72,null,2477.2600000000002,null,null,null,24.75,null,0,null,3415.5800000000004,0,null,null,null,null,null,"Allowables"]
["37-0028","BAE SYSTEMS Ordnance Systems Inc. Holston Army Ammunition Plant","Non-EGU",null,49.68,null,1767.63,null,223.18,null,356.85,null,null,null,7.44,null,null,0,2404.7800000000002,null,null,null,null,null,"Actuals"]
["37-0067","Hutchinson Body Sealing System","Non-EGU",41,5.3999999999999999E-2,0,0,217,42.3,0,0,null,null,24.9,16.5,0,null,282.89999999999998,58.853999999999999,null,null,null,null,null,"Mixed"]
["37-0076","Mundet Tennessee Incorporated","Non-EGU",15.6,null,1,null,199,null,7,null,null,null,0,null,0,null,{"$f":"SUM(D66+F66+H66+J66+L66+N66+P66)","v":222.6},{"$f":"SUM(E66,G66,I66,K66,M66,O66,Q66)","v":0},null,null,null,null,null,"Allowables"]
["37-0080","BFI Waste Systems of Tennessee dba Carter Valley Landfill","Non-EGU",null,14.62,null,0.04,null,6.62,null,0.66,null,null,null,null,null,21.4,0,43.339999999999996,null,null,null,null,null,"Actuals"]
["38-0039","Teknor Apex Tennessee Company","Non-EGU",72.010000000000005,4.76,null,0.18,216.3,38.69,null,15.33,null,null,null,null,null,null,288.31,58.959999999999994,null,null,null,null,null,"Mixed"]
["38-0053","ANR Pipeline Company dba Brownsville Compressor Station","Non-EGU",null,5.09,null,0.3,null,8.3000000000000007,null,110.8,null,0.01,null,null,null,null,0,124.5,null,null,null,null,null,"Actuals"]
["38-0068","Tennessee Valley Authority - Brownsville Combustion Turbine Plant","EGU",null,10.9,null,2.1,null,16.3,249,null,null,null,null,null,null,null,249,29.3,null,null,null,null,null,"Mixed"]
["38-0069","Tennessee Valley Authority (TVA) - Lagoon Creek Combustion Turbine Plant (LCT)","EGU",null,58.1,null,9.1999999999999993,null,31.6,null,282.89999999999998,null,null,null,null,null,null,0,381.79999999999995,null,null,null,null,null,"Actuals"]
["39-0072","Leroy-Somer Americas","Non-EGU",80.8,null,13.1,null,155,null,63.5,null,null,null,0,null,0,null,312.39999999999998,0,null,null,null,null,null,"Allowables"]
["40-0024","ANR Pipeline Company dba Cottage Grove Compressor Station","Non-EGU",null,9.75,null,0.08,null,24.21,null,254.14,null,0.04,null,null,null,null,0,288.22000000000003,null,null,null,null,null,"Actuals"]
["40-0033","Institutional Casework, Inc.","Non-EGU",27.61,null,0,null,128.1,null,0,null,null,null,0,null,0,null,155.70999999999998,0,null,null,null,null,null,"Allowables"]
["40-0077","Tank Lining Of Paris, Inc.","Non-EGU",34.6,null,0,null,189.6,null,2.63,null,null,null,0,null,0,null,226.82999999999998,0,null,null,null,null,null,"Allowables"]
["40-0083","Allegion, PLC, c/o Schlage Lock Company, LLC dba Republic Doors and Frames","Non-EGU",27.41,null,0,null,203.1,null,0,null,null,null,0,null,0,null,230.51,0,null,null,null,null,null,"Allowables"]
["40-0102","PML Inc.","Non-EGU",8.1199999999999992,0.04,null,3.0000000000000001E-3,null,16.559999999999999,null,0.5,null,null,null,null,null,null,8.1199999999999992,17.102999999999998,null,null,null,null,null,"Mixed"]
["40-0107","Dana Sealing Products, LLC","Non-EGU",null,2E-3,null,2E-3,null,28,null,0.03,null,1.1000000000000001,null,null,null,null,0,29.134000000000004,null,null,null,null,null,"Actuals"]
["41-0002","Tennessee Gas Pipeline Company, LLC - Compressor Station 860","Non-EGU",null,27.83,null,0.33,null,69.12,null,1507.5,null,0.11,null,null,null,null,0,1604.8899999999999,null,null,null,null,null,"Actuals"]
["43-0003","Albemarle U S Inc","Non-EGU",8.51,null,0.01,null,98.6,null,3.53,null,null,null,0,null,0,null,110.64999999999999,0,null,null,null,null,null,"Allowables"]
["43-0007","The Chemours Company FC, LLC ","Non-EGU",440.9,7.34,39.06,30.17,4.2300000000000004,74.430000000000007,4.49,72.66,49.19,1518.14,null,null,null,null,537.87,1702.7400000000002,null,null,null,null,null,"Mixed"]
["43-0010","Hood Container Corporation","Non-EGU",379.73,null,576.4,null,501.35,null,863.9,null,null,null,50.8,null,1.5,null,2373.6800000000003,0,null,null,null,null,null,"Allowables"]
["43-0011","Tennessee Valley Authority - Johnsonville Combustion Turbine Plant","EGU",null,21,null,3,null,20,null,245,null,8.6E-3,null,null,null,null,0,289.0086,null,null,null,null,null,"Actuals"]
["43-0021","Prince Specialty Products LLC","Non-EGU",69.22,null,160.27000000000001,null,5.82,null,192.41,null,null,null,0,null,0,null,427.72,0,null,null,null,null,null,"Allowables"]
["45-0085","Ball Metalpack, LLC","Non-EGU",9.9499999999999993,null,0.13,null,249,null,18.690000000000001,null,null,null,0,null,0,null,277.77,0,null,null,null,null,null,"Allowables"]
["45-0101","Overman USA","Non-EGU",44,null,0,null,233,null,0,null,null,null,0,null,0,null,277,0,null,null,null,null,null,"Allowables"]
["47-0018","University of Tennessee","Non-EGU",null,5.21,null,1.27,null,9.67,null,75.06,null,null,null,null,null,null,0,91.210000000000008,null,null,null,null,null,"Actuals"]
["49-0068","Marvin Windows of Tennessee, Inc.","Non-EGU",77.459999999999994,null,0,null,194.47,null,0,null,null,null,0,null,0,null,271.93,0,null,null,null,null,null,"Allowables"]
["50-0003","GT Refractory Solutions LLC","Non-EGU",215,null,522,null,47,null,27,null,null,null,0,null,0,null,811,0,null,null,null,null,null,"Allowables"]
["50-0054","Graphic Packaging International, LLC","Non-EGU",104.44,null,null,null,null,21.73,null,null,null,null,null,null,null,null,104.44,21.73,null,null,null,null,null,"Mixed"]
["51-0031","Oliver Fiberglass Products","Non-EGU",null,6,null,null,null,43.13,null,null,null,null,null,null,null,null,0,49.13,null,null,null,null,null,"Actuals"]
["52-0002","Goodman Company, L.P.","Non-EGU",51.9,null,0,null,231.1,null,16.7,null,null,null,0,null,0,null,299.7,0,null,null,null,null,null,"Allowables"]
["52-0085","Latham Pool Products, Inc. dba Viking Pools - TN","Non-EGU",null,8.7189999999999994,null,null,null,43.73,null,null,null,null,null,null,null,null,0,52.448999999999998,null,null,null,null,null,"Actuals"]
["53-0003","Viskase Companies Inc","Non-EGU",11.46,null,60.61,null,1168.48,null,41.44,null,null,null,0,null,285,null,1566.99,0,null,null,null,null,null,"Allowables"]
["53-0081","Tate & Lyle Ingredients Americas LLC","Non-EGU",267.3,null,247,null,413.4,null,642.79999999999995,null,null,null,0.5,null,0,null,1571,0,null,null,null,null,null,"Allowables"]
["53-0090","Hubbell Lenoir City, Inc.","Non-EGU",63.75,null,0,null,224.53,null,0,null,null,null,0,null,0,null,288.27999999999997,0,null,null,null,null,null,"Allowables"]
["53-0093","Kimberly-Clark Corporation, Loudon Mill","Non-EGU",242.25,1.99,181.64,0.23,207.1,2.11,93.31,38.299999999999997,null,null,null,null,null,null,724.3,42.629999999999995,null,null,null,null,null,"Mixed"]
["53-0098","Malibu Boats, LLC","Non-EGU",69,null,null,null,null,191,null,null,null,null,null,null,null,null,69,191,null,null,null,null,null,"Mixed"]
["53-0110","Santek Waste Services, Inc. dba Loudon County (Matlock Bend) Landfill","Non-EGU",null,null,null,null,null,11.44,null,null,null,null,null,null,null,5.09,0,16.53,null,null,null,null,null,"Actuals"]
["54-0009","Evonik Corporation","Non-EGU",310.60000000000002,63.76,9.1999999999999993,1.59,6.2,0.92,83.2,17,null,null,null,null,null,null,409.2,83.27,null,null,null,null,null,"Mixed"]
["54-0012","Resolute FP US Inc.","Non-EGU",681,173.4,1042,6.63,912,24.37,1172,181.61,245.2,null,254.4,null,64.5,null,4371.0999999999995,386.01,null,null,null,null,null,"Mixed"]
["54-0132","Johns Manville, Inc.","Non-EGU",128.30000000000001,null,102.11,null,13.2,null,161,null,null,null,4.6500000000000004,null,0,null,409.26,0,null,null,null,null,null,"Allowables"]
["54-0167","Johns Manville Corporation","Non-EGU",132.19999999999999,null,8.8000000000000007,null,288.10000000000002,null,132.46,null,null,null,0,null,0,null,561.56000000000006,0,null,null,null,null,null,"Allowables"]
["54-0174","Waupaca Foundry, Inc. Plant 6","Non-EGU",297.24,null,96.34,null,369,null,200.36,null,null,null,1.4,null,0,null,964.34,0,null,null,null,null,null,"Allowables"]
["54-0176","Dynasty Spas, Inc.","Non-EGU",null,0.04,null,null,null,23.79,null,null,null,null,null,null,null,null,0,23.83,null,null,null,null,null,"Actuals"]
["54-0188","Meadow Branch Landfill - Environmental Trust Company","Non-EGU",null,71.290000000000006,null,0.01,null,4.8,null,0.16,null,2.59,null,null,null,null,0,78.850000000000009,null,null,null,null,null,"Actuals"]
["56-0004","Columbia Gulf Transmission Co. Hartsville Compressor Station","Non-EGU",null,1.29,null,0.13,null,2.15,null,28.82,null,0.15,null,null,null,null,0,32.54,null,null,null,null,null,"Actuals"]
["57-0020","Armstrong Flooring, Inc.","Non-EGU",null,3.01,null,0.06,null,7.26,null,2.8,null,null,null,null,null,null,0,13.129999999999999,null,null,null,null,null,"Actuals"]
["57-0024","Owens Corning Composite Materials, LLC","Non-EGU",4.5999999999999996,106.62,0.13,106.56,0.49,125.67,13.51,84.62,null,9.44,null,null,null,null,18.73,432.91,null,null,null,null,null,"Mixed"]
["57-0035","Pringles Manufacturing Company","Non-EGU",181.43,null,6.82,null,169.8,null,211.34,null,null,null,0,null,0,null,569.39,0,null,null,null,null,null,"Allowables"]
["57-0189","Gerdau Ameristeel US Inc.","Non-EGU",8.3000000000000007,60.52,0.4,19.13,1.1000000000000001,91,31,159.85,null,null,null,0.16,null,null,40.799999999999997,330.66,null,null,null,null,null,"Mixed"]
["57-0221","Foam Fabricators, Inc.","Non-EGU",null,0.17,null,0.01,null,98.4,null,2.17,null,null,null,null,null,null,0,100.75000000000001,null,null,null,null,null,"Actuals"]
["57-0254","Sonoco Products Company","Non-EGU",null,null,null,null,null,173.88,null,null,null,null,null,null,null,null,0,173.88,null,null,null,null,null,"Actuals"]
["57-0259","Madison County Development, LLC dba Jackson Madison County Landfill","Non-EGU",null,{"$f":"9.29+2","v":11.29},null,{"$f":"18.68+2","v":20.68},null,{"$f":"1.07+2","v":3.0700000000000003},null,{"$f":"7.78+2","v":9.7800000000000011},null,null,null,null,null,null,0,44.82,null,null,null,null,null,"Actuals"]
["57-0286","Missouri Smelting Technology, Inc.","Non-EGU",72.599999999999994,null,1.5,null,45.3,null,66.400000000000006,null,null,null,49.8,null,0,null,235.60000000000002,0,null,null,null,null,null,"Allowables"]
["58-0011","Lodge Manufacturing Company","Non-EGU",150.97999999999999,null,0.6,null,204,null,1.2,null,null,null,2.4,null,0,null,359.17999999999995,0,null,null,null,null,null,"Allowables"]
["59-0059","East Tennessee Natural Gas, LLC dba Lewisburg Compressor Station 3206","Non-EGU",1,null,1.93,null,20.5,null,73.900000000000006,null,null,null,0,null,0,null,97.330000000000013,0,null,null,null,null,null,"Allowables"]
["59-0061","Calsonic Kansei North America, Inc.","Non-EGU",null,0.221,null,null,null,23.766999999999999,null,null,null,null,null,null,null,null,0,23.988,null,null,null,null,null,"Actuals"]
["59-0066","Trison Coatings Inc","Non-EGU",11.3,null,null,null,null,0.69,null,null,null,null,null,null,null,null,11.3,0.69,null,null,null,null,null,"Mixed"]
["59-0086","Cedar Ridge Landfill, Inc.","Non-EGU",null,1.1100000000000001,null,1.32,null,5.96,null,2.61,null,null,null,null,null,null,0,11,null,null,null,null,null,"Actuals"]
["59-0133","Comfort Research, LLC","Non-EGU",0,null,0,null,225,null,0,null,null,null,0,null,0,null,225,0,null,null,null,null,null,"Allowables"]
["60-0011","Mersen USA GSTN Corporation","Non-EGU",696.5,null,125.2,null,114.8,null,56,null,null,null,0,null,10,null,1002.5,0,null,null,null,null,null,"Allowables"]
["60-0095","Columbia Gulf Transmission Company Hamps","Non-EGU",null,6.05,null,0.21,null,12.39,null,357.71,null,5.56,null,null,null,null,0,381.91999999999996,null,null,null,null,null,"Actuals"]
["60-0132","General Motors LLC Spring Hill Manufacturing","Non-EGU",null,21.55,null,0.2,null,441.3,null,33.29,null,null,null,null,null,null,0,496.34000000000003,null,null,null,null,null,"Actuals"]
["60-0161","Swarco Industries","Non-EGU",0,null,0,null,169,null,0,null,null,null,0,null,0,null,169,0,null,null,null,null,null,"Allowables"]
["60-0184","Sonoco Protective Solutions, Inc.","Non-EGU",null,0.89,null,0.09,null,13.88,null,7.19,null,null,null,null,null,null,0,22.05,null,null,null,null,null,"Actuals"]
["60-0200","Sekisui Plastics USA Inc ","Non-EGU",0,null,0,null,307,null,0,null,null,null,0,null,0,null,307,0,null,null,null,null,null,"Allowables"]
["62-0089","Sea Ray Inc Tellico Facility","Non-EGU",null,113,null,null,null,null,null,null,null,8.5,null,142.6,null,null,0,264.10000000000002,null,null,null,null,null,"Actuals"]
["62-0090","Havco Wood Products, LLC","Non-EGU",247,null,1,null,97,null,156.1,null,null,null,7.5,null,0,null,508.6,0,null,null,null,null,null,"Allowables"]
["62-0096","Yamaha Jet Boat Manufacturing USA, Inc.","Non-EGU",null,29.1,null,null,null,259.2,null,null,null,8.6999999999999993,null,179.1,null,null,{"$f":"SUM(D130+F130+H130+J130+L130+N130+P130)","v":0},{"$f":"SUM(E130,G130,I130,K130,M130,O130,Q130)","v":476.1},null,null,null,null,null,"Actuals"]
["62-0102","Bryant Boats, LLC","Non-EGU",36,null,0,null,100,null,0,null,null,null,0,null,0,null,136,0,null,null,null,null,null,"Allowables"]
["62-0107","MasterCraft Boat Company, Inc.","Non-EGU",null,26.3,null,null,null,185.5,null,null,null,null,null,null,null,null,0,211.8,null,null,null,null,null,"Actuals"]
["62-0125","Mastermelt America, LLC","Non-EGU",101.12,null,99.9,null,61.3,null,8.99,null,null,null,0.32,null,0,null,271.63,0,null,null,null,null,null,"Allowables"]
["62-0166","MacLean Power, LLC dba MacLean Highline","Non-EGU",6,null,0,null,0.3,null,0,null,null,null,98.8,null,0,null,105.1,0,null,null,null,null,null,"Allowables"]
["63-0092","Nyrstar Clarksville Inc.","Non-EGU",null,73.5,null,306.3,null,0.16,null,10.6,null,0.05,null,null,null,2.65,0,393.26000000000005,null,null,null,null,null,"Actuals"]
["63-0097","HQ, 101st Airborne Division and Fort Campbell","Non-EGU",null,0.61099999999999999,null,0.16700000000000001,null,0.26200000000000001,null,5.84,null,null,null,null,null,1.89,0,8.77,null,null,null,null,null,"Actuals"]
["63-0123","Precision Printing and Packaging, Inc. dba Multi-Color Corporation","Non-EGU",9.4,null,17.98,null,366.59,null,23.99,null,null,null,0,null,0,null,417.96,0,null,null,null,null,null,"Allowables"]
["63-0129","Bi-County Solid Waste Management System","Non-EGU",null,null,null,null,null,6.8,null,null,null,null,null,null,null,null,0,6.8,null,null,null,null,null,"Actuals"]
["63-0135","Florim USA, Inc.","Non-EGU",205.5,null,153.97999999999999,null,97.5,null,89.5,null,null,null,7.38,null,0,null,553.86,0,null,null,null,null,null,"Allowables"]
["63-0278","Bi-County Gas Producers, LLC","Non-EGU",42.3,null,0.08,null,40.32,null,80.64,null,null,null,0,null,0,null,163.33999999999997,0,null,null,null,null,null,"Allowables"]
["63-0320","Hankook Tire Manufacturing Tennessee, LP dba Hankook Tire Tennessee Plant","Non-EGU",92.63,null,34.28,null,648.47,null,34.26,null,null,null,0,null,0,null,809.64,0,null,null,null,null,null,"Allowables"]
["63-0339","Foxman LLC dba Foxman â€“ Clarksville Data Center","Non-EGU",30.99,null,2.95,null,27.5,null,249,null,null,null,0,null,0,null,310.44,0,null,null,null,null,null,"Allowables"]
["63-0377","LG Electronics USA, Inc.","Non-EGU",17.309999999999999,null,0.14000000000000001,null,208.9,null,6.44,null,null,null,0,null,0,null,232.79,0,null,null,null,null,null,"Allowables"]
["64-0001","Jack Daniel Distillery, Lem Motlow Proprietor, Inc.","Non-EGU",63.165999999999997,4.7560000000000002,2.04,2.6779999999999999,8.6,883.72,40.94,68.978999999999999,null,null,null,null,null,null,114.746,960.13300000000004,null,null,null,null,null,"Mixed"]
["64-0013","Jack Daniel Distillery, Lem Motlow Proprietor","Non-EGU",7.04,null,226,null,4000,null,76.3,null,null,null,0,null,0,null,4309.34,0,null,null,null,null,null,"Allowables"]
["65-0044","Tennessee Coatings, Inc dba Ellison Custom Coatings","Non-EGU",37.93,null,0,null,50,null,0,null,null,null,0,null,0,null,87.93,0,null,null,null,null,null,"Allowables"]
["65-0049","Heraeus Metal Processing, LLC","Non-EGU",60.92,null,19.38,null,15.26,null,30.86,null,null,null,0,null,0,null,126.42,0,null,null,null,null,null,"Allowables"]
["66-0101","Texas Gas Transmission, LLC dba Kenton Compressor Station","Non-EGU",null,0.06,null,0.01,null,3,null,85.9,null,null,null,null,null,null,0,88.97,null,null,null,null,null,"Actuals"]
["66-0113","Northwest Tennessee Disposal Corporation dba Northwest Tennessee Landfill","Non-EGU",null,{"$f":"11.35+2","v":13.35},null,{"$f":"17.64+2","v":19.64},null,{"$f":"3.06+2","v":5.0600000000000005},null,{"$f":"7.34+2","v":9.34},null,null,null,null,null,null,0,47.39,null,null,null,null,null,"Actuals"]
["66-0123","Green Plains Obion LLC","Non-EGU",53.46,null,97.19,null,118.56,null,151.94999999999999,null,null,null,0,null,0,null,421.16,0,null,null,null,null,null,"Allowables"]
["66-0185","ECM of Ridgely, LLC","Non-EGU",0,null,0.49,null,4.5999999999999996,null,0,null,null,null,4.41,null,0,null,9.5,0,null,null,null,null,null,"Allowables"]
["67-0054","ABC - Inoac Exterior Systems LLC","Non-EGU",81.900000000000006,null,2.19,null,245.2,null,11,null,null,null,0,null,0,null,340.28999999999996,0,null,null,null,null,null,"Allowables"]
["68-0001","Tennessee Gas Pipeline Company LLC - Compressor Station 79","Non-EGU",null,3.6999999999999998E-2,null,3.2000000000000002E-3,null,0.28999999999999998,null,3.12,null,6.9999999999999999E-6,null,null,null,null,0,3.4502070000000002,null,null,null,null,null,"Actuals"]
["68-0034","East Tennessee Natural Gas, LLC - Lobelville Compressor Station 3201","Non-EGU",1.1499999999999999,null,9.35,null,2.75,null,70.66,null,null,null,0,null,0,null,83.91,0,null,null,null,null,null,"Allowables"]
["71-0020","Cummins Filtration","Non-EGU",13.71,null,4.38,null,159.19999999999999,null,45.85,null,null,null,0,null,0,null,223.14,0,null,null,null,null,null,"Allowables"]
["71-0035","Tennessee Technological University","Non-EGU",null,0.9,null,0.4,null,0.5,null,6.4,null,null,null,null,null,null,0,8.2000000000000011,null,null,null,null,null,"Actuals"]
["71-0148","East Tennessee Natural Gas, LLC - Monterey Compressor Station 3107","Non-EGU",null,null,null,null,null,4.2300000000000004,null,88.8,null,null,null,null,null,null,0,93.03,null,null,null,null,null,"Actuals"]
["72-0049","La-Z-Boy Tennessee","Non-EGU",233,null,8.9,null,22.8,38.061,95.7,null,null,null,null,null,null,null,360.4,38.061,null,null,null,null,null,"Mixed"]
["72-0107","Huber Engineered Woods, LLC","Non-EGU",244.8,null,30.7,null,191.27,null,201,null,null,null,9,null,0,null,676.77,0,null,null,null,null,null,"Allowables"]
["72-0109","Santek Waste Services, LLC dba Rhea County Landfill","Non-EGU",null,null,null,null,null,15.05,null,null,null,null,null,null,null,13.39,0,28.44,null,null,null,null,null,"Actuals"]
["72-0116","General Shale Brick - Plant 42","Non-EGU",null,6.18,null,67.62,null,1.91,null,40.67,null,null,null,0.15,null,null,0,116.53000000000002,null,null,null,null,null,"Actuals"]
["73-0013","Tennessee Valley Authority (TVA) - Kingston Fossil Plant","EGU",null,182,null,1327,null,51.5,null,1158,null,23.8,null,null,null,null,0,2742.3,null,null,null,null,null,"Actuals"]
["73-0107","American Zinc Recycling Corp","Non-EGU",195.08,null,76.89,null,163.66999999999999,null,190.63,null,null,null,0,null,0,null,626.27,0,null,null,null,null,null,"Allowables"]
["73-0112","US Department of Energy, Oak Ridge National Laboratory (Office of Science)","Non-EGU",90,1,null,null,null,1,null,20,null,null,null,null,null,null,90,22,null,null,null,null,null,"Mixed"]
["73-0125","Teijin Carbon America, Inc.","Non-EGU",44.7,null,5.42,null,118.9,null,107.3,null,null,null,13.2,null,0,null,289.52,0,null,null,null,null,null,"Allowables"]
["73-0137","Diversified Scientific Services, Inc","Non-EGU",18.02,null,21.9,null,15,null,39,null,null,null,12.76,null,0,null,106.68,0,null,null,null,null,null,"Allowables"]
["73-0182","Isotek Systems, LLC dba US DOE, Oak Ridge National Laboratory - Building 2026","Non-EGU",45.08,null,0,null,0.1,null,1.42,null,null,null,0,null,0,null,46.6,0,null,null,null,null,null,"Allowables"]
["74-0102","Drew Foam Companies Inc.","Non-EGU",0,null,0,null,240,null,0,null,null,null,0,null,0,null,240,0,null,null,null,null,null,"Allowables"]
["75-0057","Bridgestone Americas Tire Operations, LLC - LaVergne","Non-EGU",60.56,null,0.7,null,467.6,null,112.89,null,null,null,0,null,0,null,641.75,0,null,null,null,null,null,"Allowables"]
["75-0155","Nissan North America, Inc. - Smyrna","Non-EGU",96.3,5.73,null,null,6.1,1663.56,null,45.81,null,null,null,null,null,null,102.39999999999999,1715.1,null,null,null,null,null,"Mixed"]
["75-0381","BFI Waste Systems of Tennessee, LLC dba Middle Point Landfill","Non-EGU",null,0.06,null,null,null,0.84,null,null,null,0.48,null,null,null,null,0,1.38,null,null,null,null,null,"Actuals"]
["76-0071","Volunteer Regional Landfill Scott Solid","Non-EGU",null,132.19,null,0.56000000000000005,null,4.67,null,2.87,null,null,null,2.64,null,null,0,142.92999999999998,null,null,null,null,null,"Actuals"]
["78-0028","Johnson Matthey, Inc.","Non-EGU",71.56,null,1.43,null,0.79,null,6.37,null,null,null,0,null,0,null,80.15000000000002,0,null,null,null,null,null,"Allowables"]
["78-0086","East Tennessee Natural Gas, LLC - Boyd's Creek Compressor Station (Station 3302)","Non-EGU",3.4,null,2.6,null,6.9,null,108.7,null,null,null,0,null,0,null,121.60000000000001,0,null,null,null,null,null,"Allowables"]
["80-0009","Bon L Manufacturing Company","Non-EGU",null,15.97,null,0.16,null,13.59,null,18.53,null,null,null,2.97,null,null,0,51.22,null,null,null,null,null,"Actuals"]
["81-0011","Tennessee Valley Authority - Cumberland Fossil Plant","EGU",null,541,4000,null,null,135,null,4000,null,218,null,null,null,null,4000,4894,null,null,null,null,null,"Mixed"]
["81-0030","Georgia-Pacific Gypsum LLC","Non-EGU",145.76,null,1.4,null,155.13999999999999,null,112.24,null,null,null,0,null,0,null,414.53999999999996,0,null,null,null,null,null,"Allowables"]
["82-0003","Eastman Chemical Company","Non-EGU",452,169,4000,null,4000,null,4000,null,390,1,797,107,null,null,13639,277,null,null,null,null,null,"Mixed"]
["82-0007","Seaman Corporation","Non-EGU",null,0.22,null,0.02,null,44.09,null,2.94,null,0.27,null,null,null,null,0,47.540000000000006,null,null,null,null,null,"Actuals"]
["82-0022","Domtar Paper Company, LLC - Kingsport Mill","Non-EGU",154.61000000000001,16.89,27.26,31.39,71.75,35.700000000000003,706.47,188.57,null,null,1.44,0.02,9.84,4.1500000000000004,971.37000000000012,276.71999999999997,null,null,null,null,null,"Mixed"]
["82-0052","Gregory Pharmaceutical Holdings, LLC dba UPM Pharmaceuticals","Non-EGU",40.869999999999997,null,5.05,null,17.13,null,14.98,null,null,null,22.68,null,0,null,100.71000000000001,0,null,null,null,null,null,"Allowables"]
["82-0110","East Tennessee Natural Gas Station 3308","Non-EGU",null,1.29,null,0.12,null,0.47,null,22.95,null,null,null,null,null,null,0,24.83,null,null,null,null,null,"Actuals"]
["82-0153","Microporous, LLC","Non-EGU",49,null,1.28,null,1.97,null,18.38,null,null,null,160,null,0,null,230.63,0,null,null,null,null,null,"Allowables"]
["82-0481","EcoSafe Systems, LLC dba Eco-Safe Landfill ","Non-EGU",null,4.47,null,5.08,null,9.3800000000000008,null,11.62,null,null,null,null,null,null,0,30.549999999999997,null,null,null,null,null,"Actuals"]
["82-0510","Primester","Non-EGU",7.1,null,1.1000000000000001,null,43.15,null,0,null,null,null,0,null,0,null,51.349999999999994,0,null,null,null,null,null,"Allowables"]
["83-0008","Tennessee Gas Pipeline Company, LLC - Compressor Station 87","Non-EGU",null,27.04,null,0.48,null,95.37,null,1083.077,null,0.11,null,null,null,null,0,1206.077,null,null,null,null,null,"Actuals"]
["83-0014","Midwestern Gas Transmission Company dba MGT - Portland Compressor Station (2101)","Non-EGU",8.1999999999999993,null,2.78,null,null,7.34,null,191.95,null,null,null,null,null,null,10.979999999999999,199.29,null,null,null,null,null,"Mixed"]
["83-0025","Tennessee Valley Authority - Gallatin Fossil Plant","EGU",null,183,null,1828,null,99,null,1304,null,10.9,null,null,15.1,null,15.1,3424.9,null,null,null,null,null,"Mixed"]
["83-0129","Hoeganaes Corporation","Non-EGU",155.5,null,106.9,null,46.8,null,272.5,null,null,null,8.5,null,0,null,590.20000000000005,0,null,null,null,null,null,"Allowables"]
["84-0067","Texas Gas Transmission, LLC","Non-EGU",null,28.65,null,0.01,null,2,null,71,null,null,null,null,null,null,0,101.66,null,null,null,null,null,"Actuals"]
["85-0027","East Tennessee Natural Gas, LLC dba Dixon Springs Compressor Station (Station 3104)","Non-EGU",null,null,null,null,null,1.32,null,64.62,null,null,null,null,null,null,0,65.94,null,null,null,null,null,"Actuals"]
["87-0028","Carmeuse Lime & Stone, O-N Minerals (Luttrell) Company","Non-EGU",137.30000000000001,null,746.8,null,2,null,452.6,null,null,null,0,null,0,null,1338.6999999999998,0,null,null,null,null,null,"Allowables"]
["89-0077","Bridgestone Americas Tire Operations, LLC dba Warren Plant","Non-EGU",160.80000000000001,1.63,null,0.13,402,1.18,null,21.4,null,3.56,null,null,null,null,562.79999999999995,27.899999999999995,null,null,null,null,null,"Mixed"]
["90-0039","Mountain Home Energy Center","Non-EGU",null,8.36,null,0.3,null,37.64,null,54.71,null,null,null,null,null,null,{"$f":"SUM(D194+F194+H194+J194+L194+N194+P194)","v":0},{"$f":"SUM(E194,G194,I194,K194,M194,O194,Q194)","v":101.00999999999999},null,null,null,null,null,"Actuals"]
["90-0232","Cantech Industries, Inc.","Non-EGU",4.95,null,0,null,147,null,0,null,null,null,0,null,0,null,151.94999999999999,0,null,null,null,null,null,"Allowables"]
["90-0246","Iris Glen Environmental Center","Non-EGU",null,null,null,null,14.01,null,null,null,null,null,null,null,null,null,14.01,0,null,null,null,null,null,"Allowables"]
["90-0405","LPI, Inc.","Non-EGU",71.099999999999994,null,0,null,99.5,null,0,null,null,null,0,null,0,null,170.6,0,null,null,null,null,null,"Allowables"]
["91-0001","Tennessee Gas Pipeline Company, LLC - Compressor Station 555","Non-EGU",null,6.6239999999999997,null,0.17,null,62.77,null,335.14,null,2.1000000000000001E-2,null,null,null,null,0,404.72500000000002,null,null,null,null,null,"Actuals"]
["91-0075","Praxis Companies, LLC","Non-EGU",68,null,0,null,61.2,null,0,null,null,null,0,null,0,null,129.19999999999999,0,null,null,null,null,null,"Allowables"]
["92-0020","Kentucky-Tennessee Clay Company","Non-EGU",null,3.7040999999999999,null,0.03,null,0.56999999999999995,null,6.3419999999999996,null,null,null,null,null,null,0,10.646100000000001,null,null,null,null,null,"Actuals"]
["92-0052","Meridian Brick LLC - Gleason Plant","Non-EGU",null,24.62,null,16.829999999999998,null,0.6,null,8.7899999999999991,null,20.350000000000001,null,null,null,null,0,71.19,null,null,null,null,null,"Actuals"]
["92-0101","MTD Consumer Group Inc","Non-EGU",64.89,null,0.19,null,87.86,null,23.19,null,null,null,0,null,0,null,176.13,0,null,null,null,null,null,"Allowables"]
["92-0108","Tennessee Valley Authority - Gleason Combustion Turbine Plant","EGU",null,15.8,null,1.8,null,9,null,216,null,null,null,null,null,null,0,242.6,null,null,null,null,null,"Actuals"]
["93-0067","Norcom Of Tennessee, Inc.","Non-EGU",45.11,null,0,null,36,null,0,null,null,null,0,null,0,null,81.11,0,null,null,null,null,null,"Allowables"]
["94-0072","Essex Group, Inc.","Non-EGU",28.78,null,1.6,null,null,65.540000000000006,null,48.86,null,null,null,null,null,null,30.380000000000003,114.4,null,null,null,null,null,"Mixed"]
["94-0100","Fibertek, Inc.","Non-EGU",null,null,null,null,null,31.42,null,null,null,null,null,11.9,null,null,0,43.32,null,null,null,null,null,"Actuals"]
["95-0093","Texas Eastern Transmission, LP dba Gladeville Compressor Station","Non-EGU",6.04,null,0,null,0,null,495,null,null,null,0,null,0,null,501.04,0,null,null,null,null,null,"Allowables"]